{"text_format":"1","workbook":"xlsx","n_sheets":8,"sheets":["Blad1","Aanvraag inhuur","Kwaliteitsraamwerk I(v)","Hulp bij invullen","Kwaliteitsraamwerk I(v) Info","Info VOG Items","Rapportage Info","Brongegevens dienst"],"not_rendered":{"charts":0,"images":3,"macros":1,"external_links":0,"defined_names":27,"comments":1,"pivot_tables":0},"unopened":[],"bounds":{"document_bytes":16777216,"sheet_cells":100000,"rows_first":2000,"rows_last":500,"rows_between":2000,"halvings":0,"cell_chars":16384,"cell_head_chars":4096},"cells_cut":0,"cells_raw":0,"read":"whole","date_system":"1900"}

{"sheet":"Blad1","index":0,"n_rows":0,"n_cols":0,"rows_kept":0,"cut":false,"hidden":true,"merged":[]}

{"sheet":"Aanvraag inhuur","index":1,"n_rows":155,"n_cols":14,"rows_kept":155,"cut":false,"hidden":false,"merged":[[48,0,48,8],[51,3,53,7],[59,2,59,7],[56,2,56,7],[4,3,6,7],[31,1,31,5],[40,2,40,7],[31,7,31,8],[16,1,16,2],[17,1,17,2],[18,1,18,2],[12,0,12,1],[8,3,10,8],[12,3,12,5],[12,6,12,7],[78,0,81,0],[82,7,83,7],[85,1,85,5],[86,1,86,5],[89,1,89,5],[78,2,78,7],[83,1,83,5],[84,1,84,5],[87,1,87,5],[88,1,88,5],[103,0,106,0],[112,7,117,7],[109,0,109,3],[112,3,115,3],[113,4,115,5],[0,3,0,5],[98,0,101,0],[93,0,96,0],[49,0,49,1],[55,2,55,7],[24,1,24,7],[26,1,26,7],[28,1,28,7],[29,1,29,7],[52,1,52,2],[53,1,53,2],[70,2,70,8],[68,1,68,7],[79,2,79,7],[80,2,80,7],[81,2,81,7],[77,2,77,7],[57,2,57,7],[112,6,117,6],[60,2,60,7],[103,1,106,7],[97,5,97,7],[93,1,96,7],[139,2,139,7],[135,5,135,6],[151,3,151,4],[133,3,133,7],[143,5,145,7],[143,3,145,4],[137,3,137,4],[135,3,136,4],[134,5,134,7],[136,5,137,6],[128,6,128,7],[128,3,128,5],[131,1,131,2],[132,3,132,4],[132,5,132,7],[130,3,130,7],[131,3,131,8],[2,3,2,5],[123,2,123,7],[121,2,121,7],[116,3,117,3],[123,0,123,1],[121,0,121,1],[98,1,101,7],[50,3,50,7],[58,2,58,7],[62,1,62,7],[72,2,72,7],[73,2,73,7],[74,2,74,7],[71,2,71,7],[64,1,64,7],[75,2,75,7]]}
["Inhuurformulier Inhuur ICT-Professionals",null,"Referentienummer\n(wordt ingevuld door inhuurdesk)",null,null,null,null,{"$f":"'Brongegevens dienst'!B12","v":"5.6"}]
[{"$f":"CONCATENATE(\"AV\",D1)","v":"AV"},{"$f":"VLOOKUP(B18,'Brongegevens dienst'!D3:G3,4,FALSE)","v":"K:\\5 Inkooptrajecten\\5.7 Inhuur\\ICT\\CJIB\\"},{"$f":"CONCATENATE(\"RI\",D1)","v":"RI"},null,null,null,{"$f":"'Brongegevens dienst'!A10","v":"K:\\5 Inkooptrajecten\\5.7 Inhuur\\ICT\\CJIB\\"},null,{"$f":"'Brongegevens dienst'!A10","v":"K:\\5 Inkooptrajecten\\5.7 Inhuur\\ICT\\CJIB\\"}]
[null,null,"Capaciteitsaanvraagnummer CJIB",null,null,null,null,"!IUC-N",{"$f":"CONCATENATE(\"AV\",D1)","v":"AV"}]
["Soort minicompetitie*","Zonder leiding en toezicht",{"$f":"IF(B4=\"Perceel 1\", \"Soort1\",\"Soort2\")","v":"Soort2"},null,null,null,null,null,{"$f":"'Brongegevens dienst'!A12","v":"Versienummer formulier"}]
["Type Aanvraag*","Regulier","è Toelichting  aanvraag",null,null,null,null,null,{"$f":"'Brongegevens dienst'!A10","v":"K:\\5 Inkooptrajecten\\5.7 Inhuur\\ICT\\CJIB\\"}]
["Eventueel maximum uurtarief"]
["Spoedaanvraag*","Nee"]
[]
["Verwacht aantal gunningen (FTE) bij deze aanvraag*",1,"Bij meerdere geschikte kandidaten behoudt CJIB zich het recht voor om meerdere gunningen te doen.","Voor opdrachtnemers :\n- U moet bij deze aanvraag minimaal één regel rapporteren.\n  Indien u meer kandidaten mag aanbieden en u doet dit ook, dan\n  moet u uiteraard ook meer regels invullen bij de rapportage.\n- Correspondentie over deze aanvraag via onderstaand e-mailadres."]
[]
["Max. aantal CV's (Offertes) per opdrachtnemer*",1]
[]
["Aanvraagformulier volledig invullen en als bijlage via een email naar de inhuurdesk verzenden. Velden met een * zijn verplicht in te vullen. ",null,null,{"$f":"'Brongegevens dienst'!B20","v":"iuc-inhuur@iuc-noord.nl"}]
[]
[null,"AANVRAGER"]
[]
["Departement*",{"$f":"'Brongegevens dienst'!C3","v":"Ministerie van Justitie & Veiligheid"}]
["Deelnemer*",{"$f":"'Brongegevens dienst'!D3","v":"CJIB"}]
["Afdeling/\nBedrijfsonderdeel*"]
[]
["Inhurend manager",null,"Behandelend inkoper"]
[]
[null,"OPDRACHT"]
[]
["Opdrachtbeschrijving *\n- werkzaamheden of\n- prestatiedoelstelling"]
[]
["Achtergrond opdracht*\n","Bij het CJIB werken we hybride. Gemiddeld werken we <…> dagen per week op kantoor in Leeuwarden."]
[]
["Organisatorische context en cultuur",{"$f":"'Brongegevens dienst'!A23","v":"Het CJIB is een relatief jonge en ambitieuze uitvoeringsorganisatie van het Ministerie van Justitie en Veiligheid en is gevestigd te Leeuwarden. \nRuim 1900 gedreven medewerkers zorgen ervoor dat de taken op een juiste wijze, ondersteund door adequate en slimme ICT, binnen het gestelde kader worden uitgevoerd. De ICT-organisatie heeft een interne schil medewerkers met de mogelijkheid om flexibel personeel bij te schakelen. Er wordt gewerkt met DevOps-teams die hoogwaardige (ICT) producten ontwikkelen en beheren."}]
[]
[]
[null,"PLANNING (IN TE VULLEN DOOR DE INHUURDESK)"]
[]
["Planning","Datum Offerte aanvraag*",{"$f":"NOW()","v":"2024-04-08T09:50:05.060"},{"$f":"NOW()","v":45390.409780787035}]
[]
[null,"Eindmoment stellen van vragen*",{"$f":"IF(C34>0,WORKDAY(C34,1,Feestdagen),\"\")","v":"2024-04-09"},{"$f":"D34","v":45390.409780787035}]
[null,"Eindmoment beantwoording vragen*",{"$f":"IF(C36>0,WORKDAY(C36,1,Feestdagen),\"\")","v":"2024-04-10"},{"$f":"D34","v":45390.409780787035}]
[]
[null,"Indienen Offertes*",{"$f":"IF(C37>0,WORKDAY(C37,2,Feestdagen),\"\")","v":"2024-04-12"},{"$f":"D34","v":45390.409780787035}]
[]
[null,"Data selectie/verificatie gesprekken"]
[]
[null,"Streefdatum mededeling gunning*"]
[]
[]
[]
[]
[null,"SELECTIE KWALITEITENPROFIEL UIT KWALITEITSRAAMWERK I(v)"]
["Selecteer vanuit het kwaliteitsraamwerk I(v) vanuit de hoofdgroep het meest dominante kwaliteitenprofiel en de functiefamilie voor deze functie om het gewenste resultaat van de opdracht te behalen. Geef vervolgens aan op welk(e) professionele kennisgebied(en) de aanvraag specifiek betrekking heeft. Er moet minimaal één kennisgebied vereist zijn, maar meer mag ook. Op het werkblad \"Kwaliteitsraamwerk I(v)  info\" staat meer informatie over de kwaliteitenprofielen of kijk op www.functiegebouwrijk.nl."]
[]
["Hoofdgroep*",null,"Kwaliteitenprofiel*"]
["Functiefamilie*",null,"Bijbehorende competenties",{"$f":"IF($B$52=\"\",\"\",VLOOKUP(B52,$K$53:$N$55,4,FALSE))","v":""},null,null,null,null,null,null,{"$f":"IF($D$51=0,\"\",VLOOKUP($D$51,'Kwaliteitsraamwerk I(v)'!$G$2:$AE$62,10,FALSE))","v":""},{"$f":"IF($D$51=0,\"\",VLOOKUP($D$51,'Kwaliteitsraamwerk I(v)'!$G$2:$AE$62,11,FALSE))","v":""},{"$f":"IF($D$51=0,\"\",VLOOKUP($D$51,'Kwaliteitsraamwerk I(v)'!$G$2:$AE$62,12,FALSE))","v":""},{"$f":"IF($D$51=0,\"\",VLOOKUP($D$51,'Kwaliteitsraamwerk I(v)'!$G$2:$AE$62,13,FALSE))","v":""}]
["Functiegroep",{"$f":"IF($B$52=\"\",\"\",VLOOKUP(B52,$K$53:$M$55,2,FALSE))","v":""},null,null,null,null,null,null,null,null,{"$f":"IF($D$51=0,\"\",VLOOKUP($D$51,'Kwaliteitsraamwerk I(v)'!$G$2:$AG$65,14,FALSE))","v":""},{"$f":"IF($D$51=0,\"\",VLOOKUP($D$51,'Kwaliteitsraamwerk I(v)'!$G$2:$AG$65,15,FALSE))","v":""},{"$f":"IF($D$51=0,\"\",VLOOKUP($D$51,'Kwaliteitsraamwerk I(v)'!$G$2:$AG$65,16,FALSE))","v":""},{"$f":"IF($D$51=0,\"\",VLOOKUP($D$51,'Kwaliteitsraamwerk I(v)'!$G$2:$AG$65,17,FALSE))","v":""}]
["Schaalrange",{"$f":"IF($B$52=\"\",\"\",VLOOKUP(B52,$K$53:$M$55,3,FALSE))","v":""},null,null,null,null,null,null,null,null,{"$f":"IF($D$51=0,\"\",VLOOKUP($D$51,'Kwaliteitsraamwerk I(v)'!$G$2:$AG$65,18,FALSE))","v":""},{"$f":"IF($D$51=0,\"\",VLOOKUP($D$51,'Kwaliteitsraamwerk I(v)'!$G$2:$AG$65,19,FALSE))","v":""},{"$f":"IF($D$51=0,\"\",VLOOKUP($D$51,'Kwaliteitsraamwerk I(v)'!$G$2:$AG$65,20,FALSE))","v":""},{"$f":"IF($D$51=0,\"\",VLOOKUP($D$51,'Kwaliteitsraamwerk I(v)'!$G$2:$AG$65,21,FALSE))","v":""}]
[null,"Professionele Kennisgebieden","Certificaten",null,null,null,null,null,null,{"$f":"IF(B56=\" \",\"V\",\" \")","v":" "},{"$f":"IF($D$51=0,\"\",VLOOKUP($D$51,'Kwaliteitsraamwerk I(v)'!$G$2:$AG$65,22,FALSE))","v":""},{"$f":"IF($D$51=0,\"\",VLOOKUP($D$51,'Kwaliteitsraamwerk I(v)'!$G$2:$AG$65,23,FALSE))","v":""},{"$f":"IF($D$51=0,\"\",VLOOKUP($D$51,'Kwaliteitsraamwerk I(v)'!$G$2:$AG$65,24,FALSE))","v":""},{"$f":"IF($D$51=0,\"\",VLOOKUP($D$51,'Kwaliteitsraamwerk I(v)'!$G$2:$AG$65,25,FALSE))","v":""}]
[null,{"$f":"IF($D$51=0,\"\",VLOOKUP($D$51,'Kwaliteitsraamwerk I(v)'!$G$2:$AG$65,2,FALSE))","v":""},{"$f":"IF($D$51=0,\"\",VLOOKUP($D$51,'Kwaliteitsraamwerk I(v)'!$G$2:$AG$65,3,FALSE))","v":""},null,null,null,null,null,null,{"$f":"IF(B56=\" \",\"V\",\" \")","v":" "}]
[null,{"$f":"IF($D$51=0,\"\",VLOOKUP($D$51,'Kwaliteitsraamwerk I(v)'!$G$2:$AG$65,4,FALSE))","v":""},{"$f":"IF($D$51=0,\"\",VLOOKUP($D$51,'Kwaliteitsraamwerk I(v)'!$G$2:$AG$65,5,FALSE))","v":""},null,null,null,null,null,null," "]
[null,{"$f":"IF($D$51=0,\"\",VLOOKUP($D$51,'Kwaliteitsraamwerk I(v)'!$G$2:$AG$65,6,FALSE))","v":""},{"$f":"IF($D$51=0,\"\",VLOOKUP($D$51,'Kwaliteitsraamwerk I(v)'!$G$2:$AG$65,7,FALSE))","v":""},null,null,null,null,null,null," "]
[null,{"$f":"IF($D$51=0,\"\",VLOOKUP($D$51,'Kwaliteitsraamwerk I(v)'!$G$2:$O$62,8,FALSE))","v":""},{"$f":"IF($D$51=0,\"\",VLOOKUP($D$51,'Kwaliteitsraamwerk I(v)'!$G$2:$AG$65,9,FALSE))","v":""},null,null,null,null,null,null," "]
[null,{"$f":"IF($D$51=0,\"\",VLOOKUP($D$51,'Kwaliteitsraamwerk I(v)'!$G$2:$AG$65,10,FALSE))","v":""},{"$f":"IF($D$51=0,\"\",VLOOKUP($D$51,'Kwaliteitsraamwerk I(v)'!$G$2:$AG$65,11,FALSE))","v":""},null,null,null,null,null,null," "]
[null,{"$f":"IF($D$51=0,\"\",VLOOKUP($D$51,'Kwaliteitsraamwerk I(v)'!$G$2:$AG$65,12,FALSE))","v":""},{"$f":"IF($D$51=0,\"\",VLOOKUP($D$51,'Kwaliteitsraamwerk I(v)'!$G$2:$AG$65,13,FALSE))","v":""},null,null,null,null,null,null," "]
[null,"Aanvullende kennisgebieden/Voorbeelden van opleidingen",null,null,null,null,null,null,null,{"$f":"IF(B63=\" \",\"V\",\" \")","v":" "}]
[null,{"$f":"IF($D$51=0,\"\",VLOOKUP($D$51,'Kwaliteitsraamwerk I(v)'!$G$2:$AG$65,27,FALSE))","v":""},null,null,null,null,null,null,null," "]
[null,"Toelichting",null,null,null,null,null,null,null,{"$f":"IF(B65=\" \",\"V\",\" \")","v":" "}]
[null,{"$f":"IF($D$51=0,\"\",VLOOKUP($D$51,'Kwaliteitsraamwerk I(v)'!$G$2:$AG$65,26,FALSE))","v":""},null,null,null,null,null,null,null,{"$f":"IF(B65=\" \",\"V\",\" \")","v":" "}]
[]
["Functieschaal deze aanvraag conform salarisschaal Rijk*"]
[]
["Functienaam (roepnaam)"]
[]
[null,"EISEN BIJ DEZE AANVRAAG","â Let op! Eisen zijn knock-out criteria,  SMART/meetbaar maken"]
[null,"Professionele Kennisgebieden*","Opleiding, Certificaten, Kennisniveau*"]
["Dominant Kwaliteitenprofiel*"]
[]
[]
[]
[]
[null,"Kwaliteitenprofielen","Opleiding, Certificaten, Kennisniveau"]
["Overige vereiste kennisgebieden uit kwaliteitsraamwerk I(v)"]
[]
[]
[]
[null,null,null,null,null,null,null,"Bewezen aantal jaar"]
[null,"Werk- en denkniveau (algemeen en specifiek)"]
["Ervaring"]
[]
[]
[]
[]
[]
[]
[null,"WENSEN BIJ DEZE AANVRAAG"]
[]
["Competenties"]
[]
[]
[]
[]
["Aanvullende kennis en ervaring"]
[]
[]
[]
[]
["Overige functiewensen"]
[]
[]
[]
[]
[null,"WEGING GUNNINGSCRITERIA"]
["Vul een waarde in, indien een criterium van toepassing is. Totaal van alle ingevulde criteria moet gelijk zijn aan 100."]
[]
["Criteria*","Initieel Tarief",20,null,null,null,null,"Prijscriterium"]
[null,"Optioneel: Duurzaamheidsaspecten en\nsocial return doelgroep bij inzet Kandidaat",null,"\nBasis beoordeling\nnaar aanleiding van\nnadere offerte\n",null,null,null,"Kwalitatieve criteria"]
[null,"Relevante werkervaring Kandidaat",20,null,"  Verificatie in\n  selectiegesprek"]
[null,"Kennis, competenties Kandidaat",20]
[null,"Beschikbaarheid Kandidaat"]
[null,"Mate waarin Kandidaat de opdracht begrijpt",20,"Beoordeling d.m.v.\nselectiegesprek (verificatie)"]
[null,"Kandidaat past bij organisatie",20]
[null,"Optioneel: plan van aanpak \nuitvoering opdracht"]
[null,"Totaal",{"$f":"SUM(C112:C119)","v":100}]
[]
["Toelichting duurzaamheid\n(verplicht indien meetellend voor gunning)"]
[]
["Toelichting beschikbaarheid\n(verplicht indien meetellend voor gunning)"]
[]
[null,"INZETGEGEVENS"]
[]
["Inzetgegevens","Gewenste startdatum*"]
[null,"Initiële einddatum*",null,"Aantal maanden initiële inhuurtermijn",null,null,{"$f":"IF(C129<>0,IF(DAY(C129)>=DAY(C128),0,-1)+(YEAR(C129)-YEAR(C128)) *12+MONTH(C129)-MONTH(C128)+1,0)","v":0}]
[]
[null,"Optie op verlenging*"]
[null,"Verlengingsinformatie gebaseerd op periode(s)",null,"of  Verlengingsinformatie gebaseerd op een project"]
[null,"Maximaal aantal verlengingen",null,"Geplande einddatum  project "]
[null,"Termijn per verlenging in maanden",null,{"$f":"IF(C131=\"Ja\",IF(OR(C133<>0,C134<>0),IF(F133<>0,\"Slechts één deel verlengingsinformatie invullen\",\"\"),\"\"),\"\")","v":""}]
[null,{"$f":"IF(C129>0,\"Verwachte uiterste einddatum inzet\",\"\")","v":""},{"$f":"IF(C129>0,IF(C131=\"Ja\",IF(C133*C134>0,IF(C129>0,EDATE(C129,C133*C134),IF(C129>0,C129,\"\")),IF(F133>0,F133,C129)),IF(C129>0,C129,\"\")),\"\")","v":""},null,null,{"$f":"IF(B5=\"Strippenkaart\",\"In te vullen bij Strippenkaart\",\"\")","v":""}]
[null,"Uren per week*",36,{"$f":"IF(B5=\"Strippenkaart\",\"Uren per week is 0 bij een strippenkaart. \nMaximaal aantal uur is dan wel verplicht.\",\"\")","v":""},null,{"$f":"IF(B5=\"Strippenkaart\",\"Beschikbaar na oproep in uren\",\"\")","v":""}]
[null,"Max. aantal uren initiële inhuurtermijn*",{"$f":"(NETWORKDAYS(C128,C129,'Brongegevens dienst'!I4:Q27)*(C136/5))","v":0},null,null,{"$f":"IF(B5=\"Strippenkaart\",\"Optie maximaal aantal uren bij uit- breiden/verlengen\",\"\")","v":""}]
[]
[null,"Vergoeding dienstreizen inbegrepen in tarief\n\nToelichting","Ja"]
[null,"Toelichting"]
[]
[null,"Postcode hoofdstandplaats*","8913 HA"]
[null,"Naam hoofdstandplaats*","Leeuwarden"]
[null,"Extra standplaats(en)",null,"Toelichting extra standplaats\n(bv. frequentie over bezoek)"]
[]
[null,"Screeningsitems VOG",55]
[null,"Veiligheidsonderzoek vereist*","Nee"]
[null,"VOG aanwezig voor start inzet*","Ja"]
[]
[null,"Vrije vervanging toegestaan*","Ja"]
[null,"Parttimers toegestaan*","Nee"]
[null,"Offsite werken bespreekbaar*","Nee"]
[]
[null,"Consignatiediensten*","Nee"]
[null,"Betrokkenheid bij aanbestedingen*","Nee"]

{"sheet":"Kwaliteitsraamwerk I(v)","index":2,"n_rows":65,"n_cols":33,"rows_kept":65,"cut":false,"hidden":true,"merged":[]}
["Hoofgroep","Plannen","Bouwen","Uitvoeren","Mogelijk maken","Sturen","Kwaliteitenprofielen","PK1","C1","PK2","C2","PK3","C3","PK4","C4","PK5","C5","PK6","C6","Functiefamilie 1","Functiegroep 1","Schaal 1","Competenties 1","Functiefamilie 2","Functiegroep 2","Schaal 2","Competenties 2","Functiefamilie 3","Functiegroep 3","Schaal 3","Competenties 3","Toelichting","Voorbeelden van opleidingen"]
["Plannen","1.1.1 INFORMATIEARCHITECTUUR","2.1.1 APPLICATIEONTWIKKELING","3.1.1 SYSTEEMBEHEER","4.1.1 SECURITY MANAGEMENT","5.1.1 PROJECTLEIDERSCHAP IV","1.1.1 INFORMATIEARCHITECTUUR","Bestuurlijke informatica","Diverse HBO- en WO-instellingen bieden deze bachelor en/of master aan","Architectuur (methoden, modelleer-technieken, tools, modellen, etc.)","TOGAF Practitioner; NORA; MARIJ (geen \ncertificering); SCIA, ERIA, basisopleiding \narchitectuur Belastingdienst; IDA (Defensie), \nArchimate Foundation & Practitioner","Informatiemanagement","Business Information Management Foundation"," "," "," "," "," "," ","Uitvoering","Expert IV","S11-13","analyseren, creativiteit, netwerken, omgevingsbewustzijn, organisatiesensitiviteit, overtuigingskracht, plannen en organiseren, resultaatgerichtheid","Bedrijfsvoering","Senior Adviseur Bedrijfsvoering","S11-13","analyseren, creativiteit, netwerken, omgevingsbewustzijn, organisatiesensitiviteit, overtuigingskracht, plannen en organiseren"," "," "," "," ","De informatiearchitectuur richt zich op de beschrijving van de inhoudelijk relaties en samenhang tussen toepassingen en gegevensverzamelingen onderling. Het opstellen, beheren en integreren van de structuur van applicaties, databases en andere (data)gegevensverzamelingen. Ook in persoonlijke applicaties, zoals spreadsheets. Daarbij wordt gelet op eventueel gewijzigde informatiebehoeften van gebruikers. Daarnaast worden de beleidsregels voor het beheer van de (elementen van de) informatiearchitectuur opgesteld. Hoewel het vakgebied datamanagement meestal verantwoordelijk is voor het beheer van het bedrijfsdatamodel, wordt dit voor de invulling van dit model vaak bij data- of informatiearchitectuur (KWIV 1.1.3) belegd.","Informatiebeveiliging :  Information Security Foundation based on ISO/IEC 27002\nOntwikkeling informatiesystemen :  Ontwikkeling Informatiesystemen Foundation"]
["Bouwen","1.1.2 FUNCTIONEEL ONTWERP/STARTARCHITECTUUR","2.1.2 SYSTEEMONTWIKKELING","3.1.2 CHANGE MANAGEMENT","4.1.2 INFORMATIERISICOMANAGEMENT","5.1.2 PROJECTMANAGEMENT IV","1.1.2 FUNCTIONEEL ONTWERP/STARTARCHITECTUUR","Proces Modelleren en Analyseren","ARIS; Mavin, BiZZ designer","Bedrijfsregels modelleren","Business Rules Modeling Foundation Course"," "," "," "," "," "," "," "," ","Uitvoering","Senior Medewerker IV","S8-11","analyseren, klantgerichtheid, omgevingsbewustzijn, plannen en organiseren, resultaatgerichtheid, samenwerken, voortgangscontrole, zelfontwikkeling","Bedrijfsvoering","Adviseur Bedrijfsvoering","S8-11","analyseren, klantgerichtheid, omgevingsbewustzijn, plannen en organiseren, samenwerken, voortgangscontrole, zelfontwikkeling"," "," "," "," ","Functioneel ontwerp/ startarchitectuur richt zich op het beschrijven van wat het informatiesysteem moet kunnen. Samen met (eind)gebruikers en de opdrachtgever worden functionele specificaties opgesteld, waaraan een informatiesysteem moet voldoen. Het ontwerp wordt (mede) op basis van de input vanuit vakgebieden informatieanalyse (KWIV 4.3.1) en/of business analyse (KWIV 4.3.2) gemaakt. Het gaat om het analyseren, modelleren en specifiek de eisen aan informatie bij de gebruikers vaststellen. Het beheer en onderhoud van een informatiesysteem ligt meestal bij functioneel beheer en/of applicatiebeheer. Vanuit functioneel ontwerp/ startarchitectuur wordt ook een bijdrage aan testplannen voor functionele en acceptatietesten geleverd. ","Architectuur :  NORA, MARIJ (geen certificering)\nOntwikkeling van informatiesystemen :  Ontwerp en Ontwikkeling Informatiesystemen, Foundation; RAD/LAD; XML/UML; XBRL\nProgrammeren :  Java; C#; .Net; Visual Basic; SAP/ERP; Cobol; Python; PHP\nGegevensmodellering :  Oracle; Databases en SQL Foundation; Objectoriëntatie Foundation\nTesten :  Testen Foundation; TMapNEXT Foundation"]
["Uitvoeren","1.1.3 APPLICATIEARCHITECTUUR","2.1.3 NETWERKONTWIKKELING","3.1.3 FUNCTIONEEL BEHEER","4.1.3 CYBERSECURITY MANAGEMENT","5.1.3 PROGRAMMAMANAGEMENT IV","1.1.3 APPLICATIEARCHITECTUUR","Bestuurlijke informatica","Bachelor Bedrijfskundige Informatica","Architectuur (methoden, modelleer-technieken, tools, modellen, etc.)","TOGAF Practitioner; NORA; MARIJ (geen certificering); ERIA, basisopleiding architectuur \nBelastingdienst; IDA (Defensie) Archimate\nFoundation & Practitioner","Informatiemanagement","Business Information Management Foundation"," "," "," "," "," "," ","Uitvoering","Expert IV","S11-13","analyseren, creativiteit, netwerken, omgevingsbewustzijn, organisatiesensitiviteit, overtuigingskracht, plannen en organiseren, resultaatgerichtheid","Bedrijfsvoering","Senior Adviseur Bedrijfsvoering","S11-13","analyseren, creativiteit, netwerken, omgevingsbewustzijn, organisatiesensitiviteit, overtuigingskracht, plannen en organiseren"," "," "," "," ","Applicatiearchitectuur richt zich op het beschrijven van de samenhang van de applicaties en informatiesystemen binnen de organisatie. Het modelmatig beschrijven van het applicatielandschap (de daadwerkelijk systemen in productie). Daarbij wordt vanuit de principes van onder meer Nora, Gemma, et cetera gewerkt. Dit vakgebied komt vooral voor in organisaties waar grote en complexe systemen worden ontwikkeld. Tevens bij de ontwikkeling van administratieve applicaties en embedded software (software geschreven om machines en apparaten te besturen). Vaak is applicatiearchitectuur sterk verbonden met informatiearchitectuur (KWIV 1.1.1).","Programmeren :   Java; C#; .Net; Visual Basic; SAP/ERP; Groupware/Lotus Notes; Powerbuil\u0002der/Sybase; Cobol/Cics/DB2; Cool Gen\nInformatiebeveiliging :  Information Security Foundation based on ISO/IEC 27002\nOntwikkeling informatiesystemen :  Ontwikkeling Informatiesystemen Foundation\nApplicatiemanagement :  Applicatiemanagement Foundation"]
["Mogelijk maken","1.1.4 TECHNISCHE ARCHITECTUUR","2.1.4 DATA ENGINEERING","3.1.4 SERVERBEHEER","4.2.1 CATEGORIEMANAGEMENT IV","5.1.4 PORTFOLIOMANAGEMENT IV","1.1.4 TECHNISCHE ARCHITECTUUR","Bestuurlijke Informatica","Bachelor Bedrijfskundige Informatica","Architectuur (methoden, modelleer-technieken, tools, modellen, etc.)","TOGAF Practitioner; NORA; MARIJ (geen \ncertificering); SCIA, ERIA, basisopleiding \narchitectuur Belastingdienst; IDA (Defensie) Archimate Foundation & Practitioner","Informatiemanagement","Business Information Management Foundation","Servicemanagement","Professional ITSM Service Delivery"," "," "," "," ","Uitvoering","Expert IV","S11-13","analyseren, creativiteit, netwerken, omgevingsbewustzijn, organisatiesensitiviteit, overtuigingskracht, plannen en organiseren, resultaatgerichtheid","Bedrijfsvoering","Senior Adviseur Bedrijfsvoering","S11-13","analyseren, creativiteit, netwerken, omgevingsbewustzijn, organisatiesensitiviteit, overtuigingskracht, plannen en organiseren"," "," "," "," ","Technische architectuur richt zich op het beschrijven van de principes, richtlijnen en regels om de informatiesystemen te laten werken. De focus is om de overkoepelende structuur van de technische infrastructuur te ontwerpen. Dit zijn netwerk, servers en storage (opslag). De technische infrastructuur moet worden gebaseerd op de informatiearchitectuur (KWIV 1.1.1), het automatiseringsbeleid en de automatiseringsplannen. Hierbij wordt niet alleen een structuur ontworpen, maar er wordt ook gecontroleerd of aan de gestelde eisen wordt voldaan. Bijvoorbeeld eisen aan passieve en actieve netwerkcomponenten (ook multimedia), systeemsoftware (operating systemen en middleware), de netwerk(beheer)software, servers, server(beheer)software en storage.","Informatiebeveiliging :   Information Security Foundation based on ISO/IEC 27002\nServicemanagement :  ITSM Foundation; ITIL Foundation"]
["Sturen","1.1.5 SYSTEEMARCHITECTUUR","2.2.1 TESTMANAGEMENT","3.1.5 NETWERKBEHEER","4.2.2 INKOOP IV","5.2.1 SCRUM MASTER","1.1.5 SYSTEEMARCHITECTUUR","Bestuurlijke Informatica","Bachelor Bedrijfskundige Informatica","Architectuur (methoden, modelleer-technieken, tools, modellen, etc.)","TOGAF Practitioner; NORA; MARIJ (geen certificering); SCIA, ERIA, basisopleiding \narchitectuur Belastingdienst; IDA (Defensie) \nArchimate Foundation & Practitioner","Informatiemanagement","Business Information Management Foundation","Servicemanagement","Professional ITSM Service Delivery"," "," "," "," ","Uitvoering","Expert IV","S11-13","analyseren, creativiteit, netwerken, omgevingsbewustzijn, organisatiesensitiviteit, overtuigingskracht, plannen en organiseren, resultaatgerichtheid","Bedrijfsvoering","Senior Adviseur Bedrijfsvoering","S11-13","analyseren, creativiteit, netwerken, omgevingsbewustzijn, organisatiesensitiviteit, overtuigingskracht, plannen en organiseren"," "," "," "," ","Systeemarchitectuur richt zich op het beschrijven van een conceptueel model dat de structuur, het gedrag en de weergave van een systeem definieert. Hierbij wordt er rekening gehouden met beveiliging, audits, de prestaties en de uitwisseling van gegevens met externe bronnen of bestemmingen. Systeemarchitectuur overziet het gehele domein in technische zin. De schakel tussen de product- of domeinvisie, en de benodigde aanpassingen aan het specifieke IV-landschap. Binnen het Scaled Agile Framework is systeemarchitectuur verantwoordelijk voor het opstellen van de 'architectural features' op programmaniveau. De systeeminfrastructuur moet passen binnen de informatiearchitectuur (KWIV 1.1.1), het automatiseringsbeleid en de automatiseringsplannen. Hierbij is systeemarchitectuur een belangrijke sparringpartner voor de product manager (KWIV 4.5.2) en product owners (KWIV 4.5.1). Vaak maakt systeemarchitectuur deel uit van het productmanagementteam. ","Informatiebeveiliging :  Information Security Foundation based on ISO/IEC 27002\nServicemanagement :  ITSM Foundation; ITIL Foundation\nScaled Agile Framework :  SAFe Agilist, Leading SAFE Agile voor Lead engineers"]
[null,"1.1.6 ENTERPRISE ARCHITECTUUR","","3.1.6 APPLICATIEBEHEER","4.2.3 RELATIEMANAGEMENT IV","5.2.2 RELEASE TRAIN ENGINEER","1.1.6 ENTERPRISE ARCHITECTUUR","Bestuurlijke informatica","Bachelor Bedrijfskundige Informatica","Architectuur (methoden, modelleer-technieken, tools, modellen, etc.)","TOGAF Practitioner; NORA; MARIJ (geen \ncertificering); SCIA, ERIA, basisopleiding \narchitectuur Belastingdienst; IDA (Defensie)","Informatiemanagement","Business Information Management Foundation"," "," "," "," "," "," ","Uitvoering","Expert IV","S11-13","analyseren, creativiteit, netwerken, omgevingsbewustzijn, organisatiesensitiviteit, overtuigingskracht, plannen en organiseren, resultaatgerichtheid","Bedrijfsvoering","Senior Adviseur Bedrijfsvoering","S11-13","analyseren, creativiteit, netwerken, omgevingsbewustzijn, organisatiesensitiviteit, overtuigingskracht, plannen en organiseren"," "," "," "," ","Enterprise architectuur richt zich op over het vertalen van doelstellingen naar de inrichting van organisatie, processen en informatievoorziening en is in het ontwerpproces vaak als een van de eersten betrokken. Vaak is enterprise architectuur betrokken bij het ontwerp en het beheer van de bedrijfsarchitectuur (doellandschap). Waarbij er stappen worden definieert om van de huidige vorm en status (IST) naar de gewenste vorm en status van het IV-landschap en de bedrijfsprocessen (SOLL) te komen. In een SAFe-omgeving is enterprise architectuur verantwoordelijk voor het opstellen van de 'architectural epics' op portfolioniveau. Het vakgebied kan op bedrijfsniveau - dan wel domeinportfolioniveau - samen met business analyse (KWIV 4.3.2) optrekken om alle epics te visualiseren en de organisatie van werkvoorraad te voorzien. Vanuit enterprise architectuur kan de IV-professional hier de rol van 'epic owner' aannemen. ","Informatiebeveiliging :  Information Security Foundation based on ISO/IEC 27002\nOntwikkeling informatiesystemen :  Ontwikkeling Informatiesystemen Foundation\nScaled Agile Framework :  Leading SAFE Agile voor Lead engineers\nUser Stories :  Writing User Stories \nEnterprise Architectuur :  Opleiding Enterprise architectuur\nArchimate :  Archimate Foundation & Practitioner"]
[null,"1.2.1 INFORMATIEBELEID","","3.1.7 DATABASEBEHEER","4.2.4 CONTRACT/LEVERANCIERSMANAGEMENT IV","5.3.1 INFORMATIEMANAGEMENT","1.2.1 INFORMATIEBELEID","Bestuurlijke informatica, Bestuurlijke in- formatiekunde","Master Bedrijfskundige Informatica, Master Public Information Management","Architectuur (methoden, modelleer-technieken, tools, modellen, etc.)","TOGAF Practitioner; NORA; MARIJ (geen \ncertificering); SCIA, ERIA, basisopleiding \narchitectuur Belastingdienst; IDA (Defensie), \nArchimate Foundation & Practitioner","Informatiemanagement","Business Information Management Foundation"," "," "," "," "," "," ","Advisering","Coördinerend Specialistisch Adviseur","S13-15","bestuurssensitiviteit, creativiteit, netwerken, motiveren, samenwerken, overtuigingskracht, plannen en organiseren","Bedrijfsvoering","Coördinerend/Specialistisch Adviseur Bedrijfsvoering","S13-15","oordeelsvorming, creativiteit, netwerken, motiveren, omgevingsbewustzijn, organisatiesensitiviteit, overtuigingskracht, plannen en organiseren"," "," "," "," ","Informatiebeleid is gericht op het verbeteren van betrouwbare informatie en van de informatievoorziening (IV), conform het organisatiebeleid. Informatiebeleid omvat de doelen, middelen en wijze om te voorzien in de benodigde IV en om deze in stand te houden. Informatiebeleid stelt een meerjarig informatieplan op, waarin ook uitgangspunten en randvoorwaarden staan met een samenhang tussen missie, bedrijfsdoelstellingen (en benodigde IV) binnen het Rijk. Het vakgebied wordt in groter verband gezien, waarbij nadrukkelijk relaties worden gelegd tussen overheidsorganisaties en bestuurlijke niveaus. Daarbinnen wordt gebruik gemaakt van rijksbrede standaards, richtlijnen en afspraken.","Informatiebeveiliging :  Information Security Foundation based on ISO/IEC 27002\nOntwikkeling informatiesystemen :  Ontwikkeling Informatiesystemen Foundation\nApplicatiemanagement :  Applicatiemanagement Foundation\nServicemanagement :  ITSM Foundation; ITIL Foundation"]
[null,"1.2.2 INNOVATIEMANAGEMENT","","3.1.8 RECORDBEHEER","4.3.1 INFORMATIEANALYSE","5.3.2 DATA/GEGEVENSMANAGEMENT","1.2.2 INNOVATIEMANAGEMENT","Bestuurlijke Informatica","Bachelor Bedrijfskundige Informatica","Architectuur (methoden, modelleer-technieken, tools, modellen, etc.)","TOGAF Practitioner; NORA; MARIJ (geen \ncertificering); basisopleiding architectuur \nBelastingdienst; IDA (Defensie), Archimate \nFoundation & Practitioner","Informatiemanagement","Business Information Management Foundation"," "," "," "," "," "," ","Advisering","(Senior) Adviseur","S11-13","analyseren, creativiteit, netwerken, flexibiliteit, organisatiesensitiviteit, overtuigingskracht, plannen en organiseren","Bedrijfsvoering","Senior Adviseur Bedrijfsvoering","S11-13","analyseren, creativiteit, netwerken, omgevingsbewustzijn, organisatiesensitiviteit, overtuigingskracht, plannen en organiseren"," "," "," "," ","Innovatiemanagement richt zich op het consequent verbeteren en (deels) vernieuwen van producten, processen, organisatie en vaardigheden. Gedurende de initiatiefase van (potentieel) nieuwe projecten. Daarbij houdt het rekening met de departementale architectuur-, beveiligings- en privacykaders. De innovatie kan zich uiten in bijvoorbeeld een experiment, een idee uitwerken tot een pilot of een brainstormsessie organiseren om de gebruikerswensen goed boven tafel te krijgen. Ook is het mogelijk de markt op te gaan om de innovatie te beproeven en de levensvatbaarheid concreet te maken. Doorgaans is er contact met een projectenbureau of andere bron waaruit inspiratie tot innovatie kan worden gehaald. Vakgebied heeft raakvlakken met Informatiebeleid (KWIV 1.2.1) en Kwaliteitsmanagement (KWIV 5.3.5).","Architectuur Postdoc opleidingen, Zoals IMAC, UVA, TI- AS, ROI9\nInformatiebeveiliging :  Information Security Foundation based on ISO/IEC 27002\nOntwikkeling informatiesystemen :  Ontwikkeling Informatiesystemen Foundation\nApplicatiemanagement :  Applicatiemanagement Foundation\nServicemanagement :  ITSM Foundation; ITIL Foundation"]
[null,"1.2.3 MANAGEMENT INFORMATIEVOORZIENING","","3.1.9 DATA STEWARDSHIP","4.3.2 BUSINESS ANALYSE","5.3.3 RECORDMANAGEMENT","1.2.3 MANAGEMENT INFORMATIEVOORZIENING","Bestuurlijke informatica, Bestuurlijke in- formatiekunde","Master Bedrijfskundige Informatica, Master Public Information Management","Architectuur (methoden, modelleer-technieken, tools, modellen, etc.)","TOGAF Practitioner; NORA; MARIJ (geen \ncertificering); SCIA, ERIA, basisopleiding \narchitectuur Belasting- dienst; IDA (Defensie), \nArchimate Foundation & Practitioner","Informatiemanagement","Business Information Management Foundation"," "," "," "," "," "," ","Advisering","(Senior) Adviseur","S11-13","analyseren, creativiteit, netwerken, flexibiliteit, organisatiesensitiviteit, overtuigingskracht, plannen en organiseren","Bedrijfsvoering","Senior Adviseur Bedrijfsvoering","S11-13","analyseren, creativiteit, netwerken, omgevingsbewustzijn, organisatiesensitiviteit, overtuigingskracht, plannen en organiseren","Uitvoering","Expert IV","S11-13","analyseren, creativiteit, netwerken, omgevingsbewustzijn, organisatiesensitiviteit, overtuigingskracht, plannen en organiseren, resultaatgerichtheid","Management Informatievoorziening richt zich op het beheren en managen van informatie die ondersteuning biedt bij het behalen van de organisatie doelstellingen. In dit proces wordt de informatiebehoefte die vanuit de primaire processen en de IT van de organisatie ontstaan, beantwoord met de informatievoorziening. Het initieert de vertaling van technologische en maatschappelijke ontwikkelingen en de nieuwe informatiebehoeften die hierdoor ontstaan. Binnen deze context zorgt het vakgebied voor realisatie van een duurzaam toegankelijke informatiehuishouding. Dit gebeurt door de uiteenlopende kaders, normen en eisen systematisch te wegen en af te zetten tegen huidig en toekomstig gebruik. Ook verwacht men dat vanuit dit vakgebied adequaat over de proportionaliteit van te nemen maatregelen wordt geadviseerd. ","nformatiebeveiliging :  Information Security Foundation based on ISO/IEC 27002\nOntwikkeling informatiesystemen :  Ontwikkeling Informatiesystemen Foundation\nApplicatiemanagement :  Applicatiemanagement Foundation\nServicemanagement :  ITSM Foundation; ITIL Foundation"]
[null,"1.3.1 SOURCING MANAGEMENT","","3.2.1 TECHNICAL SUPPORT","4.3.3 BUSINESS INTELLIGENCE/DATA ANALYSE","5.3.4 METADATA/GEGEVENSMANAGEMENT","1.3.1 SOURCING MANAGEMENT","Bestuurlijke informatica","Bachelor Bedrijfskundige Informatica","Opleiding Financieel Management van IT","Zie bijvoorbeeld\nhttps://www.cibit.nl/nl/opleidingen/opleiding\u0002financieel-management-van-it/"," "," "," "," "," "," "," "," ","Uitvoering","Senior Medewerker Behandelen en Ontwikkelen ","S11-13","analyseren, creativiteit, samenwerken, motiveren, bestuurssensitiviteit, overtuigingskracht, plannen en organiseren, klantgerichtheid","Bedrijfsvoering","Senior Adviseur Bedrijfsvoering","S11-13","analyseren, creativiteit, netwerken, omgevingsbewustzijn, organisatiesensitiviteit, overtuigingskracht, plannen en organiseren"," "," "," "," ","Sourcing management richt zich op het adviseren en vastleggen (op IV-gebied) wat de organisatie zelf doet en wat wordt uitbesteed aan leverancier(s). Waarbij er (resultaat)afspraken worden opgesteld met private partijen en/of een (Shared) Service Centrum. Het kan bijvoorbeeld gaan over vernieuwing, ontwikkeling of beheer van applicaties, of het exploiteren van een nieuw rekencentrum. Regionale of landsgrenzen spelen hierbij vrijwel geen rol meer. Ook de wijze waarop de samenwerking tussen klant en leverancier het beste vorm en inhoud kan worden gegeven, behoort tot de expertise. Vaak wordt de beslissing over al dan niet uitbesteden en de contractuele vorm van samenwerking vastgelegd in een sourcingbeleid. ","Informatiesystemen :  Informatiesystemen Foundation\nInformatiemanagement :   Business Information Management Foundation\nInformatiebeveiliging :  Information Security Foundation based on ISO/IEC 27002\nContractmanagement :  Contractmanagement CATS CM Foundation"]
[null,"","","3.2.2 1e LIJNS GEBRUIKERSONDERSTEUNING","4.3.4 DATA SCIENCE","5.3.5 KWALITEITSMANAGEMENT IV","2.1.1 APPLICATIEONTWIKKELING","Professional Developer Scrum ","PSD I of vergelijkbare opleiding","SAFe","Leading SAFe ","Softwareontwerp ","Java Software Designer; Microsoft Certified Solution Developer (etc.)","Methoden en technieken voor Agile ontwerp","RAD/LAD, RUP","Programmeren","Java; C#; .Net; Visual Basic; SAP/ERP; Oracle; \nGroupware/Lotus Notes; Powerbuilder/Sybase; \nCobol/Cics/DB2; Cool Gen, Ruby on Rails","Testen","Tmap Next Foundation","Uitvoering","Senior Medewerker IV","S8-11","analyseren, klantgerichtheid, omgevingsbewustzijn, plannen en organiseren, resultaatgerichtheid, samenwerken, voortgangscontrole, zelfontwikkeling","Bedrijfsvoering","Adviseur Bedrijfsvoering","S8-11","analyseren, klantgerichtheid, omgevingsbewustzijn, plannen en organiseren, samenwerken, voortgangscontrole, zelfontwikkeling"," "," "," "," ","Applicatieontwikkeling richt zich op het proces van het maken van applicaties. Dit kan bijvoorbeeld zijn (1) modulair opbouwen, (2) aanvullende functionaliteit ontwikkelen of (3) parameterisering: standaardapplicaties geschikt maken voor een specifieke situatie. De manier van technisch ontwerpen en applicatieontwikkeling is hierop aangepast, waaronder het gebruik van open software. Veelgebruikte methodieken bij het ontwikkelen van applicatie/softwaresystemen zijn Agile Scrum, Agile XP en SAFe, waarbij de ontwikkelaars in toenemende mate deel gaan uitmaken van DevOps-teams. Waar systeemontwikkeling (KWIV 2.1.2) verantwoordelijk is voor de back-end, is applicatieontwikkeling verantwoordelijk voor de front-end. ","Ontwikkelen van informatiesystemen :  Ontwikkeling informatiesystemen Foundation; Object Oriëntatie Foundation\nApplicatiemanagement :  Applicatiemanagement Foundation (ASL)\nIT Infrastructuur :  IT Foundation; A+ Essentials"]
[null,"","","3.2.3 INCIDENT MANAGEMENT","4.4.1 INFORMATIECOACHING","5.4.1 IT-CONTROL","2.1.2 SYSTEEMONTWIKKELING","Service Design","Professional ITSM Delivery of IT Services; ITIL Service Transition"," "," "," "," "," "," "," "," "," "," ","Uitvoering","Senior Medewerker IV","S8-11","analyseren, klantgerichtheid, omgevingsbewustzijn, plannen en organiseren, resultaatgerichtheid, samenwerken, voortgangscontrole, zelfontwikkeling","Bedrijfsvoering","Adviseur Bedrijfsvoering","S8-11","analyseren, klantgerichtheid, omgevingsbewustzijn, plannen en organiseren, samenwerken, voortgangscontrole, zelfontwikkeling"," "," "," "," ","Systeemontwikkeling richt zich op één van de volgende processen: (1) de ontwikkeling van een systeem, (2) het ontwerp en de constructie van een nieuw systeem, of (3) de modificatie van een bestaand systeem of een onderdeel daarvan. Op basis van de wensen van de organisatie en gebruikers wordt dit vertaald naar concrete hardware en software (digitale infrastructuur). Daarbij worden technische systemen gebouwd en/of ontworpen (embedded software, ofwel: software geschreven om machines en apparaten te besturen). Het kan gezien worden als een combinatie tussen ontwerpen en programmeren. Waar applicatieontwikkeling (KWIV 2.1.1) verantwoordelijk is voor de front-end, is systeemontwikkeling verantwoordelijk voor de back-end.","Ontwikkeling van informatiesystemen :  Ontwerp en Ontwikkeling Informatiesystemen Foundation\nTesten :  Testen Foundation\nInformatietechnologie :  IT Foundation; A+ Essentials\nApplicatiemanagement :  Applicatiemanagement Foundation\nInformatiebeveiliging :  Information Security Foundation"]
[null,"","","3.2.4 PROBLEM MANAGEMENT","4.4.2 LEER- EN ONTWIKKELMANAGEMENT","","2.1.3 NETWERKONTWIKKELING","Service Design","Professional ITSM Delivery of IT Services; ITIL Service Transition"," "," "," "," "," "," "," "," "," "," ","Uitvoering","Senior Medewerker IV","S8-11","analyseren, klantgerichtheid, omgevingsbewustzijn, plannen en organiseren, resultaatgerichtheid, samenwerken, voortgangscontrole, zelfontwikkeling","Bedrijfsvoering","Adviseur Bedrijfsvoering","S8-11","analyseren, klantgerichtheid, omgevingsbewustzijn, plannen en organiseren, samenwerken, voortgangscontrole, zelfontwikkeling"," "," "," "," ","Netwerkontwikkeling richt zich op het ontwerp, de implementatie en het beheer en onderhoud van IT-netwerken. Het gaat hierbij om het ontwerpen en configureren van het interne netwerk (LAN; Local Area Network) en de koppelingen met externe netwerken (WAN; Wide Area Network). Dit is dan ook een ander soort ontwikkeling dan applicaties of systemen. Onderdeel hiervan is de componenten van het netwerk (netwerkapparatuur en besturings-, beheer- en netwerkprogrammatuur) te selecteren en het aansturen van de installatie en het beheer van deze componenten. Vaak wordt kennis verwacht van technieken zoals Routing, Switching, DNS, DHCP en IPAM, maar ook van de laatste e-mailbeveiligingsstandaarden.","Informatiesystemen :  Informatiesystemen Foundation\nOntwikkeling van informatiesystemen :  Ontwerp en Ontwikkeling Informatiesystemen Foundation\nInformatietechnologie :  IT Foundation; A+ Essentials\nApplicatiemanagement :  Applicatiemanagement Foundation\nInformatiebeveiliging :  Information Security Foundation"]
[null,"","","3.3.1 SERVICE LEVEL MANAGEMENT","4.4.3 (AGILE) COACHING","","2.1.4 DATA ENGINEERING","Programmeren ","SQL, SAS, Teradata, C, R, Java, Cobol en LSF","Data Management Body of Knowledge","DMBOK"," "," "," "," "," "," "," "," ","Uitvoering","Senior Medewerker IV","S8-11","analyseren, klantgerichtheid, omgevingsbewustzijn, plannen en organiseren, resultaatgerichtheid, samenwerken, voortgangscontrole, zelfontwikkeling","Bedrijfsvoering","Adviseur Bedrijfsvoering","S8-11","analyseren, klantgerichtheid, omgevingsbewustzijn, plannen en organiseren, samenwerken, voortgangscontrole, zelfontwikkeling"," "," "," "," ","Data enginering richt zich op het organiseren van data voor analytische doeleinden. Waarbij de data wordt gekoppeld, gestructureerd en geïnterpreteerd uit verschillende databronnen. Het doel is betrouwbare, efficiënte en schaalbare oplossingen bieden voor o.a. business intelligence-doeleinden en machine learning-modellen. Deze oplossingen zijn getoetst aan de onderliggende logica, waarmee de organisatie strategische keuzes kan maken. Vanuit Data enginering is nauw contact met stakeholders aan de business-kant. Verder is het vakgebied data enginering gericht op eventuele productieverstoringen oplossen en betrokken bij productontwikkelingsprojecten. Data enginering draagt zorg voor het beschikbaar, veilig, beheersbaar en robuust beschikbaar stellen van data op bijvoorbeeld een analytics-platform.","Softwareontwerp :  Java Software Designer; Microsoft Certified Solution Developer (etc.)\nMethoden en technieken voor Agile ontwerp :  RAD/LAD, RUP\nDatawarehouse, ETL :  Analyzing Data with Power BI, Analyzing Data with SQL Server Reporting Services\nBI Tooling :  Python Fundamentals / Advanced"]
[null,"","","3.3.2 CAPACITY MANAGEMENT","4.5.1 PRODUCT OWNER","","2.2.1 TESTMANAGEMENT","Test Management","Testen Professional; TMap NEXT Advanced; ISTQB Advanced","Testorganisatie en -uitvoering","TMap NEXT Foundation, TMap next in Scrum"," "," "," "," "," "," "," "," ","Uitvoering","Senior Medewerker IV","S8-11","analyseren, klantgerichtheid, omgevingsbewustzijn, plannen en organiseren, resultaatgerichtheid, samenwerken, voortgangscontrole, zelfontwikkeling","Bedrijfsvoering","Adviseur Bedrijfsvoering","S8-11","analyseren, klantgerichtheid, omgevingsbewustzijn, plannen en organiseren, samenwerken, voortgangscontrole, zelfontwikkeling"," "," "," "," ","Testmanagement richt zich op het proces om de software te testen. Vaak is het testmanagement onderdeel van Agile Scrum, waarbij het testen zelf uitgevoerd wordt door medewerkers en/of via geautomatiseerd testen. Ook 'test driven development' (ontwikkelmethode met eerst de tests schrijven en daarna pas de code) wordt onder dit vakgebied geschaard. Het testen van de software geeft inzicht in, en adviseert over, de kwaliteit van de software en de daaraan gerelateerde risico's. Onderdeel van dit vakgebied kan zijn 'testengineering': hierin wordt het proces bepaald dat onder bepaalde omstandigheden tot een zo goed mogelijke test zal leiden. ","Testen en testmethoden :  Testen Foundation; ISTQB Foundation\nInformatietechnologie :  IT Foundation; A+ Essentials\nInformatiesystemen :  Informatiesystemen Foundation\nProjectmanagement :  Projectmanagement Foundation; PRINCE2 Foundation\nApplicatiemanagement :  Applicatiemanagement Foundation\nOntwikkeling van informatiesystemen :  Ontwerp en Ontwikkeling Informatiesystemen Foundation; Object Oriëntatie Foundation"]
[null,"","","3.3.3 CONFIGURATION MANAGEMENT","4.5.2 PRODUCT MANAGER","","3.1.1 SYSTEEMBEHEER","Systeembeheer","Server+; Linux+; MCITP; Jenkins; Gitlab, MSCE, \nCCDA","Service Control","Professional ITSM Control of IT Services; ITIL Service Transition"," "," "," "," "," "," "," "," ","Uitvoering","Senior Medewerker IV","S8-11","analyseren, klantgerichtheid, omgevingsbewustzijn, plannen en organiseren, resultaatgerichtheid, samenwerken, voortgangscontrole, zelfontwikkeling","Bedrijfsvoering","Adviseur Bedrijfsvoering","S8-11","analyseren, klantgerichtheid, omgevingsbewustzijn, plannen en organiseren, samenwerken, voortgangscontrole, zelfontwikkeling"," "," "," "," ","Systeembeheer is een algemene benaming voor het beheer van servers en netwerken. In grotere organisaties is dit vakgebied vaak opgesplitst naar serverbeheerder (KWIV 3.1.4) en netwerkbeheerder (KWIV 3.1.5). De naam wordt ook wel gebruikt voor het technisch beheer van een systeem, of de combinatie van meerdere systemen en de servers waarop die draaien. Incidenten en changes kunnen grote gevolgen hebben voor de continuïteit van systemen en daarmee voor de continuïteit van en beeldvorming over de organisatie. Systeembeheer moet in dergelijke situaties onder druk nauwkeurig en volgens de voorgeschreven procedures kunnen werken. Ontwikkel- en beheerrollen worden soms samengevoegd in DevOps-teams. In dat geval zal systeembeheer naast kennis van beheer ook kennis van continuous delivery en continuous integration moeten hebben.","Servicemanagement :  ITSM Foundation; ITIL Foundation\nInformatietechnologie :  IT Foundation; A+ Essentials\nInfrastructuurmanagement :  Infrastructuurmanagement Foundation\nInformatiebeveiliging :  Information Security Foundation"]
[null,"","","3.3.4 RELEASE MANAGEMENT","4.5.3 BUSINESS OWNER (GEDELEGEERD)","","3.1.2 CHANGE MANAGEMENT","Service Control","Professional ITSM Support of IT Services; ITIL Service Transition"," "," "," "," "," "," "," "," "," "," ","Uitvoering","Senior Medewerker IV","S8-11","analyseren, klantgerichtheid, omgevingsbewustzijn, plannen en organiseren, resultaatgerichtheid, samenwerken, voortgangscontrole, zelfontwikkeling","Bedrijfsvoering","Adviseur Bedrijfsvoering","S8-11","analyseren, klantgerichtheid, omgevingsbewustzijn, plannen en organiseren, samenwerken, voortgangscontrole, zelfontwikkeling"," "," "," "," ","Changemanagement richt zich op het aanpassen, beheersen en gecoördineerd invoeren van changes (wijzigingen) in de IV-omgeving. Changemanagement helpt de organisatie met het aanvragen, prioriteren, toestaan, goedkeuren, inplannen en implementeren van allerlei soorten changes. Daarmee moet worden geborgd dat changes zonder merkbare of onacceptabele gevolgen voor gebruikers worden ingevoerd én dat de continuïteit van de informatievoorziening niet in gevaar komt. Changes in de IV-omgeving kunnen betrekking hebben op informatiesystemen of applicaties en/of de technische infrastructuur: netwerk, servers, storage (opslag). ","Servicemanagement :  ITSM Foundation; ITIL FoundationProjectmanagement :  Projectmanagement Foundation; PRINCE2 Foundation\nInformatietechnologie :  IT Foundation; A+ Essentials\nInformatiesystemen :  Informatiesystemen Foundation; MSCE, CDAA\nApplicatiemanagement :  Applicatiemanagement Foundation\nInformatiebeveiliging :  Information Security Foundation"]
[null,null,null,null,"4.6.1 SERVICE DESIGN",null,"3.1.3 FUNCTIONEEL BEHEER","Functioneel beheer","Professional Functioneel Beheerder"," "," "," "," "," "," "," "," "," "," ","Uitvoering","Senior Medewerker IV","S8-11","analyseren, klantgerichtheid, omgevingsbewustzijn, plannen en organiseren, resultaatgerichtheid, samenwerken, voortgangscontrole, zelfontwikkeling","Bedrijfsvoering","Adviseur Bedrijfsvoering","S8-11","analyseren, klantgerichtheid, omgevingsbewustzijn, plannen en organiseren, samenwerken, voortgangscontrole, zelfontwikkeling"," "," "," "," ","Functioneel beheer is de verbindende schakel tussen de uitvoering en ICT van de organisatie. Is verantwoordelijk voor het beantwoorden van gebruikersvragen en zorgt ervoor dat het informatiesysteem (blijvend) voldoet aan de eisen van de gebruikers en dat de functionaliteit consistent is. Functioneel beheer werkt nauw samen met gebruikers voor het evalueren van de functionele specificaties van een informatiesysteem en het uitwerken van de functionele specificaties bij gewenste wijzigingen. Gerealiseerde wijzigingen worden door functioneel beheer getest in acceptatietesten. Daarnaast coördineert functioneel beheer de invoering van wijzigingen in de gebruikersorganisatie. Tot slot is functioneel beheer een vraagbaak voor gebruikers (in de tweede lijn) en het coördineren van oplossingen voor problemen.","Informatiemanagement :  Business Information Management Foundation\nInformatiesystemen :  Informatiesystemen Foundation; MSCE, CDAA\nTesten :  Testen Foundation\nServicemanagement :  ITSM Foundation; ITIL Foundation\nInformatiebeveiliging :  Information Security Foundation based on ISO/IEC 27002"]
[null,null,null,null,"4.6.2 USER INTERFACE DESIGN",null,"3.1.4 SERVERBEHEER","Systeembeheer","Server+; Linux+; MCITP; MSCE, CDAA","Service Control","Professional ITSM Control of IT Services; ITIL Service Transition"," "," "," "," "," "," "," "," ","Uitvoering","Senior Medewerker IV","S8-11","analyseren, klantgerichtheid, omgevingsbewustzijn, plannen en organiseren, resultaatgerichtheid, samenwerken, voortgangscontrole, zelfontwikkeling","Bedrijfsvoering","Adviseur Bedrijfsvoering","S8-11","analyseren, klantgerichtheid, omgevingsbewustzijn, plannen en organiseren, samenwerken, voortgangscontrole, zelfontwikkeling"," "," "," "," ","Serverbeheer richt zich op het monitoren en onderhouden van servers om deze betrouwbaar en optimaal te laten werken. Daarbij richt het zich op het beheer van hardware, software, beveiliging en back-ups, zodat de IT-omgeving operationeel en doeltreffend blijft. Serverbeheer is betrokken bij de configuratie van een server en het installeren én configureren van wijzigingen. Serverbeheer monitort de werking van servers (vaak met specifieke tooling) en onderneemt acties of voert preventief maatregelen door om een server aan de gestelde eisen te laten voldoen. Bij storingen aan de server zorgt serverbeheer voor het oplossen daarvan. Dit profiel kan een specialisatie zijn van Systeembeheer (KWIV 3.1.1).","Servicemanagement :  ITSM Foundation; ITIL Foundation\nInformatietechnologie :  IT Foundation; A+ Essentials\nInfrastructuurmanagement :  Infrastructuurmanagement Foundation\nInformatiebeveiliging :  Information Security Foundation"]
[null,null,null,null,"4.6.3 UX RESEARCH",null,"3.1.5 NETWERKBEHEER","Systeembeheer","Server+; Linux+; MCITP; ASE-Network \nInfrastructure; MSCE, CDAA","Service Control","Professional ITSM Control of IT Services; ITIL Service Transition"," "," "," "," "," "," "," "," ","Uitvoering","Senior Medewerker IV","S8-11","analyseren, klantgerichtheid, omgevingsbewustzijn, plannen en organiseren, resultaatgerichtheid, samenwerken, voortgangscontrole, zelfontwikkeling","Bedrijfsvoering","Adviseur Bedrijfsvoering","S8-11","analyseren, klantgerichtheid, omgevingsbewustzijn, plannen en organiseren, samenwerken, voortgangscontrole, zelfontwikkeling"," "," "," "," ","Netwerkbeheer richt zich op het monitoren en onderhouden van netwerken om deze betrouwbaar en optimaal te laten werken. Daarbij richt het zich op het beheer van hardware, software, beveiliging en back-ups, zodat de IT-netwerkomgeving operationeel en doeltreffend blijft. Netwerkbeheer is betrokken bij het ontwerp van een netwerk en het installeren én configureren van wijzigingen in de netwerkcomponenten. Netwerkbeheer monitort de werking van een netwerk (vaak met specifieke monitoringtools) en neemt reactief of preventief maatregelen om het netwerk aan de gestelde eisen te laten voldoen. Storingen in het netwerk worden door netwerkbeheer opgelost. Dit profiel kan een specialisatie zijn van Systeembeheer (KWIV 3.1.1).","Servicemanagement :  ITSM Foundation; ITIL Foundation\nInformatietechnologie :  IT Foundation; A+ Essentials\nInfrastructuurmanagement :  Infrastructuurmanagement Foundation\nInformatiebeveiliging :  Information Security Foundation"]
[null,null,null,null,null,null,"3.1.6 APPLICATIEBEHEER","Applicatiebeheer","Professional ITSM Control of IT Services; ITIL Service Transition","Programmeren","Oracle Certified Professional; Microsoft Certified \nProgram Developer; Cobol"," "," "," "," "," "," "," "," ","Uitvoering","Senior Medewerker IV","S8-11","analyseren, klantgerichtheid, omgevingsbewustzijn, plannen en organiseren, resultaatgerichtheid, samenwerken, voortgangscontrole, zelfontwikkeling","Bedrijfsvoering","Adviseur Bedrijfsvoering","S8-11","analyseren, klantgerichtheid, omgevingsbewustzijn, plannen en organiseren, samenwerken, voortgangscontrole, zelfontwikkeling"," "," "," "," ","Applicatiebeheer richt zich op het beheer en onderhoud van de applicaties conform de overeengekomen prestatiekenmerken (performance, bedrijfszekerheid). Applicatiebeheer zorgt voor het aansturen van de realisatie van gewenste wijzigingen door een programmeur of DBA. Ook zorgt applicatiebeheer voor het coördineren van de (technische) implementatie van de wijziging in de productieomgeving. Applicatiebeheer werkt vaak samen met databasebeheer (KWIV 3.1.7) en/of systeembeheer (KWIV 3.1.1). Vaak is applicatiebeheer – in de tweede lijn – betrokken bij het oplossen van incidenten en problemen die ontstaan zijn door technische redenen. ","Ontwikkeling van informatiesystemen : Ontwerp en Ontwikkeling Informatiesystemen, Foundation; RAD/LAD; XML/UML; XBRL\nWebtechnologie en gerelateerde technologieën :  HTML, ASP, SOAP, XML, XSL-T, XPath, DOM, XML Schema’s\nDatabases :  Databases en SQL Foundation\nInformatietechnologie :  IT Foundation; A+ Essentials\nInformatiesystemen :  Informatiesystemen Foundation; MSCE, CDAA \nTesten :  Testen Foundation; TMapNext Foundation; ISTQB Certified Tester Foundation Level\nApplicatiemanagement :  Applicatiemanagement Foundation\nServicemanagement :  ITSM Foundation; ITIL Foundation"]
[null,null,null,null,null,null,"3.1.7 DATABASEBEHEER","Database Administration","MCDBA, Oracle Certified Associate (OCA)","Datawarehouse","Certified Data Centre Expert, Professional, Specialist"," "," "," "," "," "," "," "," ","Uitvoering","Senior Medewerker IV","S8-11","analyseren, klantgerichtheid, omgevingsbewustzijn, plannen en organiseren, resultaatgerichtheid, samenwerken, voortgangscontrole, zelfontwikkeling","Bedrijfsvoering","Adviseur Bedrijfsvoering","S8-11","analyseren, klantgerichtheid, omgevingsbewustzijn, plannen en organiseren, samenwerken, voortgangscontrole, zelfontwikkeling"," "," "," "," ","Databasebeheer richt zich op het beheer en onderhoud van de data (gegevens) conform de overeengekomen prestatiekenmerken (performance, bedrijfszekerheid). Databasebeheer draagt zorg voor de kwaliteit, actualiteit, volledigheid en consistentie van gegevens in een database(s). Verder stelt Databasebeheer het gegevensmodel voor een applicatie op en beheert deze, in samenwerking met informatieanalyse (KWIV 4.3.1) of informatiearchitectuur (KWIV 1.1.1). Databasebeheer zorgt voor het verifiëren van de productieresultaten op het aspect gegevensconsistentie en –correctheid én voert de periodieke analyses op de kwaliteit van de gegevens uit.","Databases :  Databases en QSL Foundation\nOntwikkeling van informatiesystemen :  Ontwerp en Ontwikkeling Informatiesystemen Foundation\nInformatietechnologie :  IT Foundation; A+ Essentials\nInformatiesystemen :  Informatiesystemen Foundation; MSCE, CDAA \nApplicatiemanagement :  Applicatiemanagement Foundation\nInformatiebeveiliging :  Information Security Foundation"]
[" ",null,null,null,null,null,"3.1.8 RECORDBEHEER","Archief- en informatiewetgeving; ordenings- en ontsluitingsmethodieken; zoektechnieken","SOD I, SOD II, MBO Informatiedienst verlening, HMDI"," "," "," "," "," "," "," "," "," "," ","Uitvoering","Medewerker IV","S8-9","analyseren, klantgerichtheid, omgevingsbewustzijn, plannen en organiseren, resultaatgerichtheid, samenwerken, voortgangscontrole, zelfontwikkeling","Bedrijfsvoering","Adviseur Bedrijfsvoering","S8-11","analyseren, klantgerichtheid, omgevingsbewustzijn, plannen en organiseren, samenwerken, voortgangscontrole, zelfontwikkeling"," "," "," "," ","Recordbeheer richt zich op het identificeren, klasseren, archiveren, bewaren en vernietigen van records (archief). Daarmee draagt het zorg voor kwalitatieve intake, formele ontsluiting, distributie en archivering van gekanaliseerde inkomende (digitale) documentstromen. Recordbeheer zorgt voor het monitoren van de eenduidigheid en juistheid van metagegevenssets op zaken, proces- en documentniveau, het tijdig signaleren van de afwijkingen én de noodzakelijke herstelbewerkingen hierop. Recordbeheer onderhoudt hiertoe veelvuldig contact met zaakhouders en/of (mede)behandelaren om de informatiebehoeften zo goed mogelijk af te stemmen en informatieprocessen bij het organisatieonderdeel beter te laten verlopen.","Informatiesystemen :  Informatiesystemen Foundation; MSCE, CDAA"]
[null,null,null,null,null,null,"3.1.9 DATA STEWARDSHIP"," "," "," "," "," "," "," "," "," "," "," "," ","Uitvoering","Senior Medewerker IV","S8-11","analyseren, klantgerichtheid, omgevingsbewustzijn, plannen en organiseren, resultaatgerichtheid, samenwerken, voortgangscontrole, zelfontwikkeling","Bedrijfsvoering","Adviseur Bedrijfsvoering","S8-11","analyseren, klantgerichtheid, omgevingsbewustzijn, plannen en organiseren, samenwerken, voortgangscontrole, zelfontwikkeling"," "," "," "," ","Datastewardship richt zich voornamelijk op het ondersteunen van de klant/business in het onderhouden en creëren van data met een hoge kwaliteit. Het vakgebied zorgt voor het definiëren, meten en verbeteren van de datakwaliteit - in een continu proces. Bijvoorbeeld conform criteria voor juistheid, compleetheid of actualiteit (vanuit businessperspectief). Hier valt ook onder het correcte formaat en de correcte betekenis (vanuit vorm, perspectief, conform gegevensdefinitie). Het vakgebied kan op meerdere niveaus (zoals operationeel of tactisch) worden ingedeeld."," "]
[null,null,null,null,null,null,"3.2.1 TECHNICAL SUPPORT","Systeembeheer","Server+; Linux+; MCITP; MSCE, CDAA","Service Delivery","Professional ITSM Delivery of IT Services"," "," "," "," "," "," "," "," ","Uitvoering","Senior Medewerker IV","S8-11","analyseren, klantgerichtheid, omgevingsbewustzijn, plannen en organiseren, resultaatgerichtheid, samenwerken, voortgangscontrole, zelfontwikkeling","Bedrijfsvoering","Adviseur Bedrijfsvoering","S8-11","analyseren, klantgerichtheid, omgevingsbewustzijn, plannen en organiseren, samenwerken, voortgangscontrole, zelfontwikkeling"," "," "," "," ","Technical support richt zich op het ondersteunen en oplossen van complexe technische problemen van de klant/medewerkers. Tevens voert het controles uit om problemen vroegtijdig te signaleren. Technical support is een tweede lijn support. Veelal gaat het over IT-gerelateerde problemen, maar het kan ook gaan over (rand)apparatuur of machines die niet meer naar behoren functioneren. Technical support is in staat om het totaal van een vraagstuk te overzien. Breedte (overzicht) en diepte (specialistische deskundigheid) op enkele terreinen zijn hierbij van belang. Waar technical support zich richt op de complexere technisch problemen (2de lijn), richt de 1e lijns gebruikersondersteuning (KWIV 3.2.2) op standaard storingen, problemen etc. ","Servicemanagement :  ITSM Foundation; ITIL Foundation\nProjectmanagement :  Projectmanagement Foundation; PRINCE2 Foundation\nInformatietechnologie :  IT Foundation; A+ Essentials\nInformatiesystemen :  Informatiesystemen Foundation\nApplicatiemanagement :  Applicatiemanagement Foundation15\nDatabases :  Databases en SQL Foundation\nOntwikkeling van informatiesystemen :  Ontwerp en Ontwikkeling Informatiesystemen Foundation\nFunctioneel beheer :  Functioneel Beheer Foundation\nInformatiebeveiliging :  Information Security Foundation\nKantoorautomatisering :  Europees Computer Rijbewijs"]
[null,null,null,null,null,null,"3.2.2 1e LIJNS GEBRUIKERSONDERSTEUNING","Servicemanagement","ITSM Foundation; ITIL Foundation"," "," "," "," "," "," "," "," "," "," ","Uitvoering","Medewerker Verwerken en Behandelen ","S3-8","flexibiliteit; klantgerichtheid, mondelinge uitdrukkingsvaardigheid; resultaatgerichtheid, samenwerken, schriftelijke uitdrukkingsvaardigheid, stressbestendigheid","Bedrijfsvoering","Medewerker IV/Techniek/Beheer/DIV","S5-8","luisteren, klantgerichtheid, analyseren, initiatief, integriteit, accuraat werken, zelfontwikkeling"," "," "," "," ","1e lijns gebruikersondersteuning richt zich op het coördineren, ondersteunen en oplossen van technische problemen van de klant/medewerkers. Het is de eerste lijn support (direct klantcontact). Daarbij coördineert het dat incidenten conform de dienstverleningsovereenkomst (SLA) worden afgehandeld. Indien 1e lijns gebruikersondersteuning het probleem niet kan oplossen, dan wordt het incident doorgezet naar de 2e lijn: bijvoorbeeld technical support (KWIV 3.2.1) of applicatiebeheer (KWIV 3.1.6). Afhankelijk van de organisatie kunnen de volgende facetten ook onder het vakgebied worden geschaard: het identificeren van problemen, het coördineren van wijzigingen, het registreren van gebruikers en/of het instellen van autorisaties.","Informatietechnologie :  IT Foundation; A+ Essentials\nInformatiesystemen :  Informatiesystemen Foundation; MSCE, CDAA\nKantoorautomatisering :  Europees Computer Rijbewijs"]
[null,null,null,null,null,null,"3.2.3 INCIDENT MANAGEMENT","Service Support","Professional ITSM Support of IT Services"," "," "," "," "," "," "," "," "," "," ","Uitvoering","Senior Medewerker IV","S8-11","analyseren, klantgerichtheid, omgevingsbewustzijn, plannen en organiseren, resultaatgerichtheid, samenwerken, voortgangscontrole, zelfontwikkeling","Bedrijfsvoering","Adviseur Bedrijfsvoering","S8-11","analyseren, klantgerichtheid, omgevingsbewustzijn, plannen en organiseren, samenwerken, voortgangscontrole, zelfontwikkeling"," "," "," "," ","Incidentmanagement richt zich op het vroegtijdig en snel oplossen van een ongeplande verstoring. Deze verstoring kan zich voordoen met de informatievoorziening, in de informatiesystemen of applicaties als in de technische infrastructuur. Hierbij wordt tevens de prioritering van het incident bepaald, aan de hand van urgentie en impact. Dit profiel Incident management is afgeleid van het gelijknamige ITIL-proces. Het vakgebied kan zowel procesmatig als inhoudelijk operationeel zijn ingestoken. Problem management (KWIV 3.2.4) is een direct aanpalend vakgebied.","Servicemanagement ITSM Foundation; ITIL Foundation\nInformatietechnologie :  IT Foundation; A+ Essentials\nInformatiesystemen :  Informatiesystemen Foundation; MSCE, CDAA \nApplicatiemanagement :  Applicatiemanagement Foundation\nInformatiebeveiliging :  Information Security Foundation"]
[null,null,null,null,null,null,"3.2.4 PROBLEM MANAGEMENT","Service Support","Professional ITSM Support of IT Services; ITIL Operational Support and Analysis","Service Design","Professional ITSM Delivery of IT Services; ITIL Service Design"," "," "," "," "," "," "," "," ","Uitvoering","Senior Medewerker IV","S8-11","analyseren, klantgerichtheid, omgevingsbewustzijn, plannen en organiseren, resultaatgerichtheid, samenwerken, voortgangscontrole, zelfontwikkeling","Bedrijfsvoering","Adviseur Bedrijfsvoering","S8-11","analyseren, klantgerichtheid, omgevingsbewustzijn, plannen en organiseren, samenwerken, voortgangscontrole, zelfontwikkeling"," "," "," "," ","Problemmanagement richt zich op, een gestructureerde wijze, het bundelen van incidenten, het proactief voorkomen van een probleem/incident en het minimaliseren van de impact. Hierbij gaat het om verstoringen van de informatiesystemen/applicaties als in de technische infrastructuur. Problemmanagement onderzoekt incidenten, zodat de achterliggende (mogelijke) oorzaken helder worden en de (waarschijnlijke) impact van incidenten worden verminderd. Daarbij wordt er een Known Error Database (KED) aangelegd. Problemmanagement komt in actie wanneer het incidentmanagementproces (KWIV 3.2.3) nog niet tot de juiste oplossing heeft geleid of een structurele oplossing moet worden gerealiseerd, nadat in het kader van incidentmanagement een workaround is geïmplementeerd of geboden.","Servicemanagement :  ITSM Foundation; ITIL Foundation\nInformatietechnologie :  IT Foundation; A+ Essentials\nInformatiesystemen :  Informatiesystemen Foundation; MSCE, CDAA\nApplicatiemanagement :  Applicatiemanagement Foundation\nInformatiebeveiliging :  Information Security Foundation"]
[null,null,null,null,null,null,"3.3.1 SERVICE LEVEL MANAGEMENT","Service Alignment","Professional ITSM Alignment of IT and the Business (ISO 20000); ITIL Service Design; ITIL Service Offerings and Agreements"," "," "," "," "," "," "," "," "," "," ","Uitvoering","Senior Medewerker Behandelen en Ontwikkelen ","S11-13","analyseren, creativiteit, samenwerken, motiveren, bestuurssensitiviteit, overtuigingskracht, plannen en organiseren, klantgerichtheid","Bedrijfsvoering","Senior Adviseur Bedrijfsvoering","S11-13","analyseren, creativiteit, netwerken, omgevingsbewustzijn, organisatiesensitiviteit, overtuigingskracht, plannen en organiseren"," "," "," "," ","Service level management (SLM) richt zich op de uitgangspunten van de overeengekomen dienstverlening. Het stelt hiervoor een raamwerk op van de processen in de vorm van overeenkomsten, verplichtingen en relaties, die worden beheerd via de zogenaamde dienstencatalogus. De eisen / wensen en behoeften van de gebruikers/lijnmanagement en leveranciers worden afgestemd en vastgelegd in service level agreements (SLA’s). SLM bewaakt proactief of de daadwerkelijk geboden dienstverlening conform de SLA wordt uitgevoerd. SLM herkent en onderscheidt patronen in dienstverlening en de naleving van de gemaakte afspraken. En stelt oplossingen voor ter voorkoming van eventuele problemen.","Servicemanagement :  ITSM Foundation; ITIL Foundation\nProjectmanagement :  Projectmanagement Foundation; PRINCE2 Foundation\nInformatiebeveiliging :  Information Security Foundation based on ISO/IEC 27002"]
[null,null,null,null,null,null,"3.3.2 CAPACITY MANAGEMENT","Service Design","Professional ITSM Delivery of IT Services; ITIL Service Design; ITIL Planning Protection and Optimization"," "," "," "," "," "," "," "," "," "," ","Uitvoering","Senior Medewerker IV","S8-11","analyseren, klantgerichtheid, omgevingsbewustzijn, plannen en organiseren, resultaatgerichtheid, samenwerken, voortgangscontrole, zelfontwikkeling","Bedrijfsvoering","Adviseur Bedrijfsvoering","S8-11","analyseren, klantgerichtheid, omgevingsbewustzijn, plannen en organiseren, samenwerken, voortgangscontrole, zelfontwikkeling"," "," "," "," ","Capacity management is erop gericht om de vraag naar en het aanbod van capaciteit (storage) op optimale wijze op elkaar af te stemmen. Onderdelen van dit vakgebied zijn onder meer het meten, analyseren en het verbeteren van performance. Dit kan door het bepalen van de vereiste capaciteit van IT-middelen, het plannen van die IT-middelen en het voorspellen van de werklast. Relevant daarin is te weten welke systeemperformance nodig is en ook of dit op piekmomenten of in het algemeen zo is. In het geval van een ketenproces worden van tevoren met ketenpartners afspraken gemaakt over de capaciteit die zij ten behoeve van de keten beschikbaar moeten hebben.","Servicemanagement :  ITSM Foundation; ITIL Foundation\nInformatietechnologie :  IT Foundation; A+ Essentials\nInformatiesystemen :  Informatiesystemen Foundation"]
[null,null,null,null,null,null,"3.3.3 CONFIGURATION MANAGEMENT","Service Control","Professional ITSM Control of IT Services; ITIL Service Transition; ITIL Release Control and Validation; Practitioner Software Asset Management"," "," "," "," "," "," "," "," "," "," ","Uitvoering","Senior Medewerker IV","S8-11","analyseren, klantgerichtheid, omgevingsbewustzijn, plannen en organiseren, resultaatgerichtheid, samenwerken, voortgangscontrole, zelfontwikkeling","Bedrijfsvoering","Adviseur Bedrijfsvoering","S8-11","analyseren, klantgerichtheid, omgevingsbewustzijn, plannen en organiseren, samenwerken, voortgangscontrole, zelfontwikkeling"," "," "," "," ","Configuration management richt zich op het operationele beheer van de configuratiedatabase, identificeren en classificeren van de zogenoemde ‘configuratie-items’. Daarbij worden alle componenten van de IT-infrastructuur in kaart gebracht met de onderlinge relaties, gerelateerde documentaties en overige IT-processen welke hierop ondersteuning geven. Deze gegevens worden vastgelegd in de configuratiedatabase. Configuration management is van belang voor het configuratieproces met centraal en zorgvuldig licentiebeheer. En is hiermee een belangrijke schakel in de op- en verdere uitbouw van het configuratieproces en vervult hierin een actieve ‘voortrekkersrol’. Lifecycle-management kan nadrukkelijk als een onderdeel van dit vakgebied worden gezien.","Servicemanagement :  ITSM Foundation; ITIL Foundation\nInformatietechnologie :  IT Foundation; A+ Essentials\nInformatiesystemen :  Informatiesystemen Foundation\nApplicatiemanagement :  Applicatiemanagement Foundation\nInformatiebeveiliging Information Security Foundation"]
[null,null,null,null,null,null,"3.3.4 RELEASE MANAGEMENT","Service Control","Professional ITSM Control of IT Services; ITIL Service Transition; ITIL Release Control and Validation"," "," "," "," "," "," "," "," "," "," ","Uitvoering","Senior Medewerker IV","S8-11","analyseren, klantgerichtheid, omgevingsbewustzijn, plannen en organiseren, resultaatgerichtheid, samenwerken, voortgangscontrole, zelfontwikkeling","Bedrijfsvoering","Adviseur Bedrijfsvoering","S8-11","analyseren, klantgerichtheid, omgevingsbewustzijn, plannen en organiseren, samenwerken, voortgangscontrole, zelfontwikkeling"," "," "," "," ","Release management richt zich op het managen van het plannen, bouwen en testen van gewijzigde en nieuwe onderdelen in de software voor een stabiele versie van informatiesystemen (ook wel release). Het gaat daarbij om ervoor te zorgen dat de integriteit van de live-omgeving wordt beschermd en dat de juiste componenten worden vrijgegeven. Niet alleen de afstemming van releases op de businesseisen (zoals invoerings- en beschikbaarheidsdata) is van belang, maar ook het bewaken dat releases zonder problemen voor de continuïteit en consistentie van de IV en de bedrijfsvoering plaatsvinden. Vooral in een Agile-omgeving, waarin in korte tijd nieuwe functionaliteit wordt gebouwd, is het belangrijk op tijdige en accurate integratie van releases te letten.","Servicemanagement :  ITSM Foundation; ITIL Foundation\nInformatietechnologie :  IT Foundation; A+ Essentials\nInformatiesystemen :  Informatiesystemen Foundation"]
[null,null,null,null,null,null,"4.1.1 SECURITY MANAGEMENT","Informatiebeveiligingsbeleid","Information Security Expert (ISO 27001/2), VIR en VIRBI (geen certificering), A en K analyses (geen certificering)","Informatiebeveiliging","Information Security Foundation (ISO 27001/2), Information Security Advanced (ISO 27001/2), Information Systems Security Management Professional","CISM / CISP","Certified Information Security Management, Certified Information Security Professional"," "," "," "," "," "," ","Uitvoering","Expert IV","S11-13","analyseren, creativiteit, netwerken, omgevingsbewustzijn, organisatiesensitiviteit, overtuigingskracht, plannen en organiseren, resultaatgerichtheid","Bedrijfsvoering","Senior Adviseur Bedrijfsvoering","S11-13","analyseren, creativiteit, netwerken, omgevingsbewustzijn, organisatiesensitiviteit, overtuigingskracht, plannen en organiseren"," "," "," "," ","IV-securitymanagement (informatiebeveiliging) richt zich op technische maatregelen die ingezet worden voor bescherming/beveiliging van een organisatie en de daarbij behorende medewerkers, klanten/gasten, data, financiën, goederen, et cetera. Het omvat het ontwerpen, implementeren, onderhouden en evalueren van beveiligingsmaatregelen met betrekking tot de IV (hardware en software). Securitymanagement is verantwoordelijk voor de beveiliging van de informatievoorziening (IV). De focus ligt op het beveiligen van de IV wat betreft de vertrouwelijkheid, de integriteit en de beschikbaarheid van informatie.","Informatiemanagement :  Business Information Management Foundation"]
[null,null,null,null,null,null,"4.1.2 INFORMATIERISICOMANAGEMENT","Risicomanagement","Management of Risks (M_o_R) Foundation / Practitioner"," "," "," "," "," "," "," "," "," "," ","Advisering","(Senior) Adviseur","S11-13","analyseren, creativiteit, netwerken, flexibiliteit, organisatiesensitiviteit, overtuigingskracht, plannen en organiseren","Bedrijfsvoering","Senior Adviseur Bedrijfsvoering","S11-13","analyseren, creativiteit, netwerken, omgevingsbewustzijn, organisatiesensitiviteit, overtuigingskracht, plannen en organiseren"," "," "," "," ","Informatierisicomanagement (risicobeheer) richt zich op het identificeren, analyseren en evalueren van de organisatierisico's. Met als doel om de risico's te beheersen die verbonden zijn aan de beschikbaarstelling en het gebruik van componenten van de informatievoorziening (IV). Denk aan netwerken, servers, informatiesystemen en/of applicaties. Meestal is de scope van de verantwoordelijkheden beperkt tot de IV, maar soms wordt dit vakgebied ook ingezet voor het identificeren en mitigeren van risico’s in programma’s of projecten. In veel gevallen levert informatierisicomanagement bijdragen aan het beleid en de richtlijnen voor risicomanagement. Daarnaast hoort ook het opstellen van concrete risicobeheersmaatregelen en/of de gewenste werking toetsen.","Informatiemanagement :  Business Information Management Foundation\nInformatiebeveiliging :  Information Security Foundation based on ISO/IEC 27002\nProject-/programmamanagement :  Prince2 Foundation; Managing Successfull Programs Practitioner\nOrganisatie-/Proces management :  IT Management Foundation; Professional Management and Improvement of IT Service Management processes"]
[null,null,null,null,null,null,"4.1.3 CYBERSECURITY MANAGEMENT","Informatica","HBO / WO Informatica"," "," "," "," "," "," "," "," "," "," ","Uitvoering","Expert IV","S11-13","analyseren, creativiteit, netwerken, omgevingsbewustzijn, organisatiesensitiviteit, overtuigingskracht, plannen en organiseren, resultaatgerichtheid","Bedrijfsvoering","Senior Adviseur Bedrijfsvoering","S11-13","analyseren, creativiteit, netwerken, omgevingsbewustzijn, organisatiesensitiviteit, overtuigingskracht, plannen en organiseren"," "," "," "," ","Cybersecuritymanagement richt zich op de bescherming van de systemen. Het vakgebied houdt zich bezig met het proactief detecteren van kwetsbaarheden en dreigingen en het nemen van maatregelen om gevolgen van onbekende dreigingen te voorkomen en/of te mitigeren. Verder worden er analyses en forensisch onderzoek van eventueel besmette en gecompromitteerde systemen uitgevoerd. Met als doel om kwetsbaarheden op te sporen en bedreigingen van buitenaf (waaronder hackers) te voorkomen. Het is een relatief jong vakgebied dat volop in ontwikkeling is, waardoor ook het focusgebied met de tijd wat kan verschuiven.","Aanvullende kennis :  TCP/IP, UDP, DNS. DHCP, FTP, SNMP, SMTP, SSH, SSL, HTTP, HTTPS,19\nCertificaten :  gehaald bij SANS/GIA/ ISACA / CIBIT / NCOI\nTooling :  Nmap, Wireshark, Metasploit, Javascript, HTML, Python, HP ArcSight, Splunk"]
[null,{"$f":"PROPER(B19)","v":""},{"$f":"PROPER(C19)","v":""},"",null,"","4.2.1 CATEGORIEMANAGEMENT IV","Bestuurlijke informatica, Bestuurlijke informatiekunde","Bachelor Bedrijfskundige Informatica, Master Public Information Management","Inkoopstrategie","Purchaising Leadership NEVI 3"," "," "," "," "," "," "," "," ","Uitvoering","Senior Medewerker Behandelen en Ontwikkelen ","S11-13","analyseren, creativiteit, samenwerken, motiveren, bestuurssensitiviteit, overtuigingskracht, plannen en organiseren, klantgerichtheid","Bedrijfsvoering","Coördinerend Adviseur Bedrijfsvoering","S13-15","bestuurssensitiviteit, creativiteit, netwerken, motiveren, samenwerken, overtuigingskracht, plannen en organiseren"," "," "," "," ","Categoriemanagement IV richt zich op het bundelen en beheren van de IV-inkoop, op basis van logisch samenhangende diensten of producten. Categoriemanagement IV is betrokken bij het optimaal inkopen (inclusief uitvraag specificaties) en het optimaal benutten van contracten van producten of diensten. Daarbij wordt een visie ontwikkeld ten aanzien van de levenscyclus van de producten of diensten en de sourcingstrategie, waarbij ook Sourcing management (KWIV 1.3.1) wordt betrokken. Waar categoriemanagement IV zich richt op het beheer, visie en sourcing, richt Inkoop IV (KWIV 4.2.2) zich op productspecificaties ten aanzien van de inkoop IV. NB. In het KWIK (InkoopKolom) bestaat een profiel dat raakvlakken heeft met dit KWIV-profiel.","Programma-/projectmanagement : \n       Rijksacademie voor Project- en Programmamanagement;  Managing Successfull Programs Practitioner \n(Ontwikkelingen, producten en diensten) IT-markt, functioneren van IT marktpartijen én de spelregels :\n      (Post) HBO-modules, Rijksacademie Inkoop,Aanbesteding en IV"]
[null,null,null,null,null,null,"4.2.2 INKOOP IV","Bestuurlijke informatica","Bachelor Bedrijfskundige Informatica","Informatiemanagement","Business Information Management Foundation","Professioneel Inkopen","Expert NEVI 2","Uitbesteding ICT","Foundation ISPL Procurement Management"," "," "," "," ","Uitvoering","Senior Medewerker Behandelen en Ontwikkelen ","S11-13","analyseren, creativiteit, samenwerken, motiveren, bestuurssensitiviteit, overtuigingskracht, plannen en organiseren, klantgerichtheid","Bedrijfsvoering","Senior Adviseur Bedrijfsvoering","S11-13","analyseren, creativiteit, netwerken, omgevingsbewustzijn, organisatiesensitiviteit, overtuigingskracht, plannen en organiseren"," "," "," "," ","Inkoop IV richt zich op het inkopen van IV-producten of -diensten voor de organisatie. Daarbij levert Inkoop IV input aan de inkoopleider aan ten aanzien van de software, hardwarevereisten en de licenties. Dit door het opstellen van de productvereisten waarbij de visie en beleid van de organisatie worden meegenomen (zoals innovatie, duurzaamheid en MVO). Inkoop IV werkt hierbij samen met de business over wat de vereisten zijn van het product of de dienst. Waar Inkoop IV zich richt op productspecificaties voor de inkoop IV, richt categoriemanagement IV (KWIV 4.2.1) zich op het beheer, visie en sourcing van deze inkoop. NB. In het KWIK (InkoopKolom) bestaat een profiel dat raakvlakken heeft met dit KWIV-profiel.","(Ontwikkelingen, producten en diensten) IT-markt, functioneren van IT marktpartijen én de spelregels:\n     (Post) HBO-modules, Rijksacademie Inkoop, Aanbesteding en IV\nJuridische deelgebieden, zoals auteurs- en octrooirecht en intellectueel eigendom\nProjectmanagement :  Prince2 Foundation"]
[null,null,null,null,null,null,"4.2.3 RELATIEMANAGEMENT IV","Service Alignment","Professional ITSM Alignment of IT and the Business (ISO 20000); ITIL Service Design; ITIL Service Offerings and Agreements"," "," "," "," "," "," "," "," "," "," ","Uitvoering","Senior Medewerker Behandelen en Ontwikkelen ","S11-13","analyseren, creativiteit, samenwerken, motiveren, bestuurssensitiviteit, overtuigingskracht, plannen en organiseren, klantgerichtheid","Bedrijfsvoering","Senior Adviseur Bedrijfsvoering","S11-13","analyseren, creativiteit, netwerken, omgevingsbewustzijn, organisatiesensitiviteit, overtuigingskracht, plannen en organiseren"," "," "," "," ","Relatiemanagement IV richt zich op het opbouwen, verdiepen en verstevigen van interne en externe relaties. Hierbij hoort het opstellen van een IV-organisatiestrategie t.a.v. alle partijen die betrokken zijn over de informatievoorziening. Relatiemanagement IV is verantwoordelijk voor het afstemmen van de communicatie, de sturing, structurering en werkwijze van alle partijen. Met als doel om het producten- en dienstenaanbod beter aan te laten sluiten op de vraag en aanbod (interne en externe relaties). Relatiemanagement IV werkt nauw samen met contractmanagement IV (KWIV 4.2.4). NB. In het KWIK (InkoopKolom) bestaat een profiel dat raakvlakken heeft met dit KWIV-profiel.","Servicemanagement :  ITSM Foundation; ITIL Foundation20\nMarketing en accountmanagement van diensten :  Nima B\nInformatiemanagement/Functioneel beheer :  Business Information Management Foundation\nInformatiesystemen :  Informatiesystemen Foundation"]
[null,null,null,null,null,null,"4.2.4 CONTRACT/LEVERANCIERSMANAGEMENT IV","Service Level management","Professional ITSM Alignment of IT and the Business (ISO20000)","Professioneel Inkopen","Expert NEVI 2","Uitbesteding ICT","Foundation ISPL Procurement Management"," "," "," "," "," "," ","Uitvoering","Expert IV","S11-13","analyseren, creativiteit, netwerken, omgevingsbewustzijn, organisatiesensitiviteit, overtuigingskracht, plannen en organiseren, resultaatgerichtheid","Bedrijfsvoering","Senior Adviseur Bedrijfsvoering","S11-13","analyseren, creativiteit, netwerken, omgevingsbewustzijn, organisatiesensitiviteit, overtuigingskracht, plannen en organiseren"," "," "," "," ","Contractmanagement IV richt zich op het afsluiten van contracten en bewaken van de naleving van de in het contract gemaakte afspraken (bijv. KPI's) met leveranciers. De aandacht zit vooral op de juridische en financiële aspecten. Het vakgebied heeft een overzicht van de lopende contracten, eventuele (raam)overeenkomsten, signalering van looptijden, garantietermijnen en prijsherzieningen en het aantal en soorten gecontracteerde leveranciers bij de diverse \nafdelingen. Contractmanagement IV werkt nauw samen met relatiemanagement IV (KWIV 4.2.3). NB. In het KWIK (InkoopKolom) bestaat een profiel dat raakvlakken heeft met dit KWIV-profiel.","Contractmanagement :  Contractmanagement Foundation (CATS)\n(Ontwikkelingen, producten en diensten) IT-markt, functioneren van IT marktpartijen én de spelregels :  (Post) HBO-modules\nServicemanagement :  ITSM Foundation; ITIL Foundation"]
[null,null,null,null,null,null,"4.3.1 INFORMATIEANALYSE","Informatiemanagement","Business Information Management Foundation"," "," "," "," "," "," "," "," "," "," ","Uitvoering","Senior Medewerker Behandelen en Ontwikkelen ","S11-13","analyseren, creativiteit, samenwerken, motiveren, bestuurssensitiviteit, overtuigingskracht, plannen en organiseren, klantgerichtheid","Bedrijfsvoering","Senior Adviseur Bedrijfsvoering","S11-13","analyseren, creativiteit, netwerken, omgevingsbewustzijn, organisatiesensitiviteit, overtuigingskracht, plannen en organiseren"," "," "," "," ","Informatieanalyse richt zich op welke informatiebehoeften er zijn binnen de organisatie en/of gebruikers. Informatieanalyse vertaalt technologische en maatschappelijke ontwikkelingen, onderzoek naar de kwaliteit van de IV-bedrijfsprocessen en realistische IV-mogelijkheden, naar verbetervoorstellen en consequenties voor de IV-bedrijfsvoering. Waarbij er een verdiepende analyse wordt uitgevoerd van de gekozen oplossing en de validatie van de requirements. Informatieanalyse is de eerste fase in de ontwikkeling van een informatie- of gegevenssysteem. Op basis van kwalitatieve requirements kan de analyse gericht worden uitgevoerd. ","Architectuur :  TOGAF practitioner\nBestuurlijke informatica :  Bachelor Bedrijfskundige Informatica\nInformatiebeveiliging :  Information Security Foundation based on ISO/IEC 27002\nOntwikkeling informatiesystemen :  Ontwikkeling Informatiesystemen Foundation, Object Oriëntatie Foundation\nApplicatiemanagement :  Applicatiemanagement Foundation\nServicemanagement :  ITSM Foundation; ITIL Foundation"]
[null,null,null,null,null,null,"4.3.2 BUSINESS ANALYSE","Informatiemanagement","Business Information Management Foundation"," "," "," "," "," "," "," "," "," "," ","Uitvoering","Senior Medewerker Behandelen en Ontwikkelen ","S11-13","analyseren, creativiteit, samenwerken, motiveren, bestuurssensitiviteit, overtuigingskracht, plannen en organiseren, klantgerichtheid","Bedrijfsvoering","Senior Adviseur Bedrijfsvoering","S11-13","analyseren, creativiteit, netwerken, omgevingsbewustzijn, organisatiesensitiviteit, overtuigingskracht, plannen en organiseren"," "," "," "," ","Business analyse richt zich op de ondersteuning van de business op het gebied van inrichten en verbeteren van de bedrijfsprocessen. Business analyse analyseert (de behoeften aan) informatie en informatiesystemen, uitgaande van de eisen aan de bedrijfsprocessen en de workflow daarbinnen. Tevens worden voorstellen gedaan ter verbetering van de IV om daarmee bedrijfsprocessen optimaal te ondersteunen. Business analyse stelt de epics (overkoepelende gebruikerswensen) van het te ontwikkelen proces op. Het vakgebied verbindt de ondersteunende directies en/of afdelingen met de business-informatiebehoefte (bijvoorbeeld met HR, IT, communicatie, bedrijfsvoering). Business analyse werkt samen met enterprisearchitectuur (KWIV 1.1.6) op corporate-, dan wel domeinportfolioniveau.","Architectuur :  TOGAF practitioner\nBestuurlijke informatica :  Bachelor Bedrijfskundige Informatica21\nInformatiebeveiliging :  Information Security Foundation based on ISO/IEC 27002\nOntwikkeling informatiesystemen :  Ontwikkeling Informatiesystemen Foundation, \nApplicatiemanagement :  Applicatiemanagement Foundation\nServicemanagement :  ITSM Foundation; ITIL Foundation\nSAFE :  SAFE Agilist, SAFe Product Owner"]
[null,null,null,null,null,null,"4.3.3 BUSINESS INTELLIGENCE/DATA ANALYSE","Informatiemanagement","Business Information Management Foundation","  Data Management","  Data Management Body of Knowledge"," "," "," "," "," "," "," "," ","Uitvoering","Expert IV","S11-13","analyseren, creativiteit, netwerken, omgevingsbewustzijn, organisatiesensitiviteit, overtuigingskracht, plannen en organiseren, resultaatgerichtheid","Bedrijfsvoering","Senior Adviseur Bedrijfsvoering","S11-13","analyseren, creativiteit, netwerken, omgevingsbewustzijn, organisatiesensitiviteit, overtuigingskracht, plannen en organiseren"," "," "," "," ","Data-analyse richt zich op het verzamelen van gegevens binnen de eigen organisatie. Met als doel om deze gegevens om te zetten in informatie, dat vervolgens leidt tot kennis en het aanzetten tot adequate actie (slimmer werken). Het vakgebied verzamelt gegevens uit verschillende systemen (logistieke volgsystemen, ERP, enz.), analyseert deze en vormt deze om tot bruikbare informatie voor onder meer het management (dashboard en parameters). Dit vakgebied kan zowel voor de business als voor de IV-afdeling worden ingezet. Waar Data-analyse zich richt op de voorkant van de organisatievraag (adviseren MT), richt Data Science (KWIV 4.3.4) zich op de achterkant van de vraag met veel grote datasets en specialistische data.","Architectuur :  TOGAF practitioner\nOntwikkeling informatiesystemen :  Ontwikkeling Informatiesystemen Foundation, Object Oriëntatie Foundation\nBestuurlijke informatica :  Bachelor Bedrijfskundige Informatica\nBI Tooling :  Python Fundamentals / Advanced"]
[null,null,null,null,null,null,"4.3.4 DATA SCIENCE","Bestuurlijke informatica","Bachelor / Master Bedrijfskundige Informatica","Big Data / statistiek ","Bachelor / Master Wiskunde, Statistiek, Actuariaat, \nEconometrie, dan wel via post-HBO / post-WO "," "," "," "," "," "," "," "," ","Uitvoering","Senior Medewerker Behandelen en Ontwikkelen ","S11-13","analyseren, creativiteit, samenwerken, motiveren, bestuurssensitiviteit, overtuigingskracht, plannen en organiseren, klantgerichtheid","Bedrijfsvoering","Senior Adviseur Bedrijfsvoering","S11-13","analyseren, creativiteit, netwerken, omgevingsbewustzijn, organisatiesensitiviteit, overtuigingskracht, plannen en organiseren"," "," "," "," ","Data Science richt zich op het verkrijgen van inzichten uit (big) data. Voor de analyse worden programmeervaardigheden, statistische kennis, en afdeling- en organisatiekennis gebruikt om verbanden te leggen en inzichten te destilleren. Hiervoor wordt gebruik gemaakt van grote datasets en specialistische data door geavanceerde BI (business intelligence)-tooling en gedefinieerde algoritmen. Daarmee kunnen onder meer patronen worden ontdekt, (beleids)beslissingen worden gevalideerd en voorspellingen worden gedaan over mogelijke gebeurtenissen, gebaseerd op de historische data. Waar Data Science zich richt op de achterkant van de vraag met veel grote datasets en specialistische data, richt de Business Intelligence (KWIV 4.3.3) zich op de voorkant van de organisatievraag (zoals adviseren MT).","Informatiemanagement :  Business Information Management Foundation\nData Management :  Data Management Body of Knowledge\nBI Tooling :  Python Fundamentals / Advanced"]
[null,null,null,null,null,null,"4.4.1 INFORMATIECOACHING"," Functioneel beheer"," Professional Functioneel Beheerder"," "," "," "," "," "," "," "," "," "," ","Uitvoering","Medewerker Behandelen en Ontwikkelen ","S9-10","analyseren, klantgerichtheid, omgevingsbewustzijn, plannen en organiseren, resultaatgerichtheid, samenwerken, voortgangscontrole, zelfontwikkeling","Bedrijfsvoering","Adviseur Bedrijfsvoering","S8-11","analyseren, klantgerichtheid, omgevingsbewustzijn, plannen en organiseren, samenwerken, voortgangscontrole, zelfontwikkeling"," "," "," "," ","Informatiecoaching richt zich op het duurzaam toegankelijk maken van informatie voor en met de huidige en toekomstige medewerkers. Hieronder valt de begeleiding (instrueren) en ondersteuning van medewerkers in het leerproces hoe zij hun informatie opslaan, toegankelijk maken en houden: digivaardigheden. Inzicht en kennis van zaken (processen, kaders, richtlijnen en mogelijkheden van systemen) is hierbij van belang. Informatiecoaching stelt informatieprofielen op (informatiebehoeften en zoekgedrag persona's) en onderhoudt deze. Verder richt het vakgebied zich op het analyseren van de informatiebehoefte van medewerkers en structurele verbeteringen voorstellen.","Informatiemanagement :  Business Information Management Foundation\nInformatiesystemen :  Informatiesystemen Foundation"]
[null,null,null,null,null,null,"4.4.2 LEER- EN ONTWIKKELMANAGEMENT","Scrum Master SAFe","SAFe Scrum Manager ","Product Owner SAFe","SAFe Product Owner, Leading SAFe"," "," "," "," "," "," "," "," ","Uitvoering","Senior Medewerker Behandelen en Ontwikkelen ","S11-13","analyseren, creativiteit, samenwerken, motiveren, bestuurssensitiviteit, overtuigingskracht, plannen en organiseren, klantgerichtheid","Bedrijfsvoering","Senior Adviseur Bedrijfsvoering","S11-13","analyseren, creativiteit, netwerken, omgevingsbewustzijn, organisatiesensitiviteit, overtuigingskracht, plannen en organiseren"," "," "," "," ","Leer- en ontwikkelmanagement richt zich op de leer- en ontwikkelomgeving van alle (IV)-medewerkers binnen de organisatie. Gericht op het verbeteren of verdiepen van competenties, maar ook op de persoonlijke (carrière-)ontwikkeling. En het opstellen van een leerstrategie voor de organisatie. Naast het adviseren / begeleiden van teams (naar zelforganisatie en team excellence), ondersteunt het leer- en ontwikkelmanagement de Scrummasters (KWIV 5.2.1) en de Release train engineers (KWIV 5.2.2) in het wegnemen van belemmeringen. Agile- en Lean-principes worden hierbij in ogenschouw gehouden. Continu verbeteren en het overdragen van kennis is onderdeel van dit vakgebied. ","Dienend Leiderschap :  Leergang Coachend Leidinggeven of Agile, Leidinggeven of Dienend, Faciliterend en Coachend, Leiderschap in een Agile omgeving \nCoachen :  Opleiding Teamcoach – Individueel Coachen\nVerwachtingen Management :  Resultaatgericht Leidinggeven\nDevOps :  DevOps Fundamentals"]
[null,null,null,null,null,null,"4.4.3 (AGILE) COACHING","Scrum Master Agile Scrum","PSM I of vergelijkbare opleiding ","Scrum Master SAFe","SAFe Scrum Manager ","Product Owner Scrum","PSPO I of vergelijkbare opleiding ","Product Owner SAFe","SAFe Product Owner, Leading SAFe"," "," "," "," ","Uitvoering","Senior Medewerker Behandelen en Ontwikkelen ","S11-13","analyseren, creativiteit, samenwerken, motiveren, bestuurssensitiviteit, overtuigingskracht, plannen en organiseren, klantgerichtheid","Bedrijfsvoering","Senior Adviseur Bedrijfsvoering","S11-13","analyseren, creativiteit, netwerken, omgevingsbewustzijn, organisatiesensitiviteit, overtuigingskracht, plannen en organiseren"," "," "," "," ","Agile coaching richt zich op de ondersteuning van teams om Agile te werken. Op basis van Agile waarden en principes wordt het team ondersteund om zich naar een effectieve, transparante samenhangende teams door te ontwikkelen. De coaching vindt plaats op proces, rol en inhoud. Verandermanagement en kennis van organisatiecultuur zijn hierin ook relevant. Agile coaching past hierop de best passende coachingstechnieken en leer- en ontwikkelinterventies toe. Een (agile) coach heeft een bredere visie op het bedrijf en de medewerkers en heeft als doelstelling om het probleemoplossend vermogen van een individu en/of team te vergroten. ","Dienend Leiderschap : Leergang Coachend Leidinggeven of Agile, Leidinggeven of Dienend, Faciliterend en Coachend , Leiderschap in een Agile omgeving \nCoachen :  Opleiding Teamcoach\nVerwachtingen Management :  Resultaatgericht Leidinggeven\nDevOps :  DevOps Fundamentals"]
[null,null,null,null,null,null,"4.5.1 PRODUCT OWNER","Product Owner Scrum","PSPO I of vergelijkbare opleiding ","Product Owner SAFe","SAFe Product Owner"," "," "," "," "," "," "," "," ","Uitvoering","Expert IV","S11-13","analyseren, creativiteit, netwerken, omgevingsbewustzijn, organisatiesensitiviteit, overtuigingskracht, plannen en organiseren, resultaatgerichtheid","Bedrijfsvoering","Senior Adviseur Bedrijfsvoering","S11-13","analyseren, creativiteit, netwerken, omgevingsbewustzijn, organisatiesensitiviteit, overtuigingskracht, plannen en organiseren"," "," "," "," ","Product owner is als \"eigenaar\" van het te ontwikkelen product het eerste aanspreekpunt voor het ontwikkel- of beleidsteam naar de rest van de organisatie. De Product owner zorgt voor stakeholdermanagement, de productvisie, -planning en stelt prioriteiten en de functionaliteit van het product vast. Waarbij het doel is om de waarde van het (business) product te maximaliseren en te waarborgen. De precieze invulling van het vakgebied hangt af van het type organisatie waarin dit voorkomt. Waar Product Owner zich richt op de functionaliteit van het te ontwikkelen product, richt Product management (KWIV 4.5.2) zich op de gehele levenscyclus van een product binnen een organisatie.","Dienend Leiderschap : Leergang Coachend Leidinggeven of Agile, Leidinggeven of Dienend, Faciliterend en Coachend, Leiderschap in een Agile omgeving \nUser Stories :  Writing User Stories \nStakeholder Management :  Stakeholder Management Training \nVerwachtingen Management :  Resultaatgericht Leidinggeven \nDevOps :  DevOps Fundamentals \nEffectief Beïnvloeden :  Effectief Beïnvloeden"]
[null,null,null,null,null,null,"4.5.2 PRODUCT MANAGER","Product Owner Scrum","PSPO I of vergelijkbare opleiding ","Product Owner SAFe","SAFe Product Owner"," "," "," "," "," "," "," "," ","Uitvoering","Expert IV","S11-13","analyseren, creativiteit, netwerken, omgevingsbewustzijn, organisatiesensitiviteit, overtuigingskracht, plannen en organiseren, resultaatgerichtheid","Bedrijfsvoering","Senior Adviseur Bedrijfsvoering","S11-13","analyseren, creativiteit, netwerken, omgevingsbewustzijn, organisatiesensitiviteit, overtuigingskracht, plannen en organiseren"," "," "," "," ","Product management richt zich op het managen van de totale levenscyclus van een product, van het begin tot het einde. Product management richt zich op productcreatie en product lifecycle management. Dit door het opstellen van de strategie van de business als geheel (bijvoorbeeld een portfolioplan en productroadmap), het tactisch management van de levenscyclus per product-marktcombinatie (infaseren of het uitfaseren van het product) en operationeel management van de waardeketen. Waar Product management zich richt op de gehele levenscyclus van een product binnen een organisatie, richt Product Owner (KWIV 4.5.1) zich op de functionaliteit van het te ontwikkelen product. ","Dienend Leiderschap Leergang :  Coachend Leidinggeven of Agile, Leidinggeven of Dienend, Faciliterend en Coachend, Leiderschap in een Agile omgeving \nUser Stories :  Writing User Stories \nStakeholder Management :  Stakeholder Management Training \nVerwachtingen Management :  Resultaatgericht Leidinggeven \nDevOps :  DevOps Fundamentals \nEffectief Beïnvloeden :  Effectief Beïnvloeden"]
[null,null,null,null,null,null,"4.5.3 BUSINESS OWNER (GEDELEGEERD)","Business Owner SAFe","PSPO I of vergelijkbare opleiding","Product Owner SAFe","SAFe Product Owner "," "," "," "," "," "," "," "," ","Uitvoering","Senior Medewerker Behandelen en Ontwikkelen ","S11-13","analyseren, creativiteit, samenwerken, motiveren, bestuurssensitiviteit, overtuigingskracht, plannen en organiseren, klantgerichtheid","Bedrijfsvoering","Coördinerend/Specialistisch Adviseur Bedrijfsvoering","S13-15","oordeelsvorming, creativiteit, netwerken, motiveren, omgevingsbewustzijn, organisatiesensitiviteit, overtuigingskracht, plannen en organiseren"," "," "," "," ","Business owner richt zich bij de productontwikkeling op het oplijnen van de strategische thema's en vertegenwoordigt hierin de business. Draagt de verantwoordelijkheid voor de governance, doelgerichtheid en rendement van het product in de business; onder andere door het beschrijven van de processen. Eventuele belemmeringen worden weggenomen of verkleind. Verder is de Business Owner het eerste aanspreekpunt voor de business ten aanzien van de productontwikkeling. Waar de Business Owner de stakeholder is binnen het ontwikkelteam namens de business, richt de Product Owner (KWIV 4.5.1) zich op de functionaliteit van het te ontwikkelen product. ","Dienend Leiderschap :  Leergang Coachend Leidinggeven of Agile, Leidinggeven of Dienend, Faciliterend en Coachend, Leiderschap in een Agile omgeving \nStakeholder Management :  Stakeholder Management Training \nVerwachtingen Management :  Resultaatgericht Leidinggeven \nDevOps :  DevOps Fundamentals \nEffectief Beïnvloeden :  Effectief Beïnvloeden"]
[null,null,null,null,null,null,"4.6.1 SERVICE DESIGN"," "," "," "," "," "," "," "," "," "," "," "," ","Uitvoering","Expert IV","S11-13"," "," "," "," "," "," "," "," "," ","Service Design richt zich op het praktisch en creatief toepassen van design-tools en -methodes met het doel om diensten te ontwikkelen of verbeteren. Waarbij enerzijds organisatorische doelen, processen en proposities, en anderzijds (latente) behoeften, wensen en eisen van doelgroepen in kaart worden gebracht. Opgedane inzichten worden ingezet om eindproducten of -diensten te definiëren op zo’n wijze dat deze zowel voor een organisatie als voor eindgebruikers toepasbaar zijn. Hoewel Service Design qua categorie onder UX Design valt, kan deze ook buiten UX Design worden ingezet. Waar Service Design zich richt op het creëren of optimaliseren van diensten, richt User Interface Design (KWIV 4.6.2) zich op het ontwikkelen van een product voor de gebruiker."," "]
[null,null,null,null,null,null,"4.6.2 USER INTERFACE DESIGN"," "," "," "," "," "," "," "," "," "," "," "," ","Uitvoering","Expert IV","S11-13"," "," "," "," "," "," "," "," "," ","User Interface Design richt zich op het ontwerpen van de gebruikersomgeving. Waarbij dit vakgebied zich bezighoudt met het vormgeven van interacties tussen de mens en een systeem. Dit resulteert in aantrekkelijke, toegankelijke (digitale) interfaces die efficiënt, effectief en intuïtief samenwerken met eindgebruikers. De activiteiten binnen User Interface Design kunnen variëren van het definiëren van interacties, het ontwerpen van interfaces tot het ontwikkelen van content. Waar User Interface Design zich richt op het ontwikkelen van producten voor de gebruiker, richt Service Design (KWIV 4.6.1) zich op creëren of optimaliseren van diensten."," "]
[null,null,null,null,null,null,"4.6.3 UX RESEARCH"," "," "," "," "," "," "," "," "," "," "," "," ","Uitvoering","Expert IV","S11-13"," "," "," "," "," "," "," "," "," ","UX Research richt zich op het begrijpen van gebruikers, zodat product design een zo goed mogelijke 'fit' kan maken. Door middel van het uitvoeren van kwalitatief en kwantitatief onderzoek inzichten in de behoeftes, motivaties en emoties van eindgebruikers over een product of dienst wordt dit begrip en inzicht verkregen. Hiernaast worden relevante doelgroepen en belanghebbenden geïdentificeerd en onderzocht om de toegankelijkheid en gebruiksvriendelijkheid van oplossingen te bepalen."," "]
[null,null,null,null,null,null,"5.1.1 PROJECTLEIDERSCHAP IV","Projectmanagement","Professional Projectmanager; PRINCE2 Practitioner","Programmamanagement"," MSP Foundation"," "," "," "," "," "," "," "," ","Project-/Programmamanagement","Projectleider","S9-11","netwerken, motiveren, organisatiesensitiviteit, plannen en organiseren, resultaatgerichtheid, zelfontwikkeling","Project-/Programmamanagement","Project-/Programmamanager","S12-15","bestuurssensitiviteit, plannen en organiseren, resultaatgerichtheid, omgevingsbewustzijn, netwerken, aansturen organisatie, motiveren, creativiteit"," "," "," "," ","Projectleiderschap IV richt zich op het managen van (een deel van) een IV-project; doorgaans op operationeel/tactisch niveau. Hieronder valt het (laten) opstellen van projectplanning, organiseren van de uitvoering (inclusief budget), het aansturen van het team en het bewaken van de voortgang en projectrisico’s. Tevens is dit vakgebied verantwoordelijk voor de informatievoorziening rondom het project richting de opdrachtgever en het creëren van draagvlak bij alle interne- en externe partijen. Opdrachtgever kan zijn de business, Projectmanagement IV (KWIV 5.1.2) of Programmamanagement IV (KWIV 5.1.3). ","Organisatie-/Proces management :  IT Management Foundation; Professional, Management and Improvement of IT Service Management processes\nProgramma-/projectmanagement :  Rijksacademie voor Project- en Programmamanagement\nInformatiemanagement/Functioneel beheer :  Business Information Management Foundation\nServicemanagement :  ITSM Foundation; ITIL Foundation\nAgile Scrum :  Agile Scrum Foundation"]
[null,null,null,null,null,null,"5.1.2 PROJECTMANAGEMENT IV","Projectmanagement","Professional Projectmanager; PRINCE2 Practitioner","Programmamanagement"," MSP Foundation, MSP Practitioner"," "," "," "," "," "," "," "," ","Project-/Programmamanagement","Project-/Programmamanager","S12-15","bestuurssensitiviteit, plannen en organiseren, resultaatgerichtheid, omgevingsbewustzijn, netwerken, aansturen organisatie, motiveren, creativiteit"," "," "," "," "," "," "," "," ","Projectmanagement IV richt zich op het beheersen van projecten binnen de organisatie, waarbij het doel is om alle projecten in een organisatie succesvol uit te voeren. Hierbij richt een project zich op de realisatie van één vooraf overeengekomen resultaat. Projectmanagement IV bepaalt de standaarden binnen de organisatie voor IV-projecten en coördineert deze, conform standaarden voor het plannen, organiseren, monitoren, beheersen van en rapporteren over IV-projecten. Tevens is projectmanagement IV verantwoordelijk voor het definiëren van projecten en de prioritering hiervan. Waar projectmanagement IV zich richt op het beheersen van projecten, richt programmamanagement IV (KWIV 5.1.3) zich op de beheersing van programma's (met complexe en meerdere doelen). ","Organisatie-/Proces management :   IT Management Foundation; Professional Management and Improvement of IT Service Management processes\nProgramma-/projectmanagement :  Rijksacademie voor Project- en Programmamanagement\nInformatiemanagement/Functioneel beheer :  Business Information Management Foundation\nServicemanagement :  ITSM Foundation; ITIL Foundation\nApplicatiemanagement :  Applicatiemanagement Foundation\nAgile Scrum :  Agile Scrum Foundation"]
[null,null,null,null,null,null,"5.1.3 PROGRAMMAMANAGEMENT IV","Projectmanagement","Professional Projectmanager; PRINCE2 Practitioner","Programmamanagement","MSP Practitioner"," "," "," "," "," "," "," "," ","Project-/Programmamanagement","Project-/Programmamanager","S12-15","bestuurssensitiviteit, plannen en organiseren, resultaatgerichtheid, omgevingsbewustzijn, netwerken, aansturen organisatie, motiveren, creativiteit"," "," "," "," "," "," "," "," ","Programmamanagement IV richt zich op het beheersen en succesvol uitvoeren van programma's binnen de organisatie. Hierbij richt een programma zich richt op het nastreven van meerdere, soms onderling zelfs strijdige doelen in doorgaans minimaal vijf IV-projecten. Programmamanagement IV bepaalt de standaarden binnen de organisatie voor IV-programma's en coördineert deze. De standaarden betreffen het plannen, organiseren, monitoren, beheersen van en rapporteren over IV-programma's. Tevens is programmamanagement IV verantwoordelijk voor het definiëren van programma's en de prioritering hiervan. Waar programmamanagement IV zich richt op het beheersen van programma's (met complexe en meerdere doelen), richt projectmanagement IV (KWIV 5.1.2) zich op de beheersing van projecten. ","Organisatie-/Proces management :  IT Management Foundation; Professional, Management and Improvement of IT Service Management processes\nProgramma-/projectmanagement :  Rijksacademie voor Project- en Programmamanagement; Managing Successful Programs Practitioner\nInformatiemanagement/Functioneel beheer :  Business Information Management Foundation\nServicemanagement :  ITSM Foundation; ITIL Foundation\nApplicatiemanagement :  Applicatiemanagement Foundation\nScaled Agile Framework :  SAFe (Scaled Agile Framework), RTE (Rail Train Engineer)"]
[null,null,null,null,null,null,"5.1.4 PORTFOLIOMANAGEMENT IV","Bestuurlijke informatica","Bachelor Bedrijfskundige Informatica","Portfolio Management","Management of Portfolio Foundation\nManagement of Portfolio Practitioner"," "," "," "," "," "," "," "," ","Uitvoering","Senior Medewerker Behandelen en Ontwikkelen ","S11-13","analyseren, creativiteit, samenwerken, motiveren, bestuurssensitiviteit, overtuigingskracht, plannen en organiseren, klantgerichtheid","Bedrijfsvoering","Senior Adviseur Bedrijfsvoering","S11-13","analyseren, creativiteit, netwerken, omgevingsbewustzijn, organisatiesensitiviteit, overtuigingskracht, plannen en organiseren"," "," "," "," ","Portfoliomanagement IV richt zich op het beheren en afstemmen van middelen (programma's, projecten, producten en diensten) binnen de (IV-)organisatie. Een portfolio-overzicht bestaat uit een serie van bij elkaar horende middelen met een eigen levenscyclus en de bijbehorende resources, budgetten en processen. Door middel van monitoring wordt er inzicht gegeven in de huidige en toekomstige inzet van deze middelen. Hiervoor stelt Portfoliomanagement IV adviezen op. Centralisatie van resources, budgetten en processen zijn hierin belangrijk. Het verschil met programmamanagement IV (5.1.3) is dat die over het managen van een combinatie van projecten gaat, waar portfoliomanagement IV zich vooral focust op het proces van afwegen, selecteren en prioriteren van projecten en programma’s.","Informatiesystemen :  Informatiesystemen Foundation\nInformatiemanagement :  Business Information Management Foundation\nProgrammanagement :  Managing Succesful Programs Foundation\nIT Management :  IT Management Foundation\nP30 :  Foundation Certificate in Portfolio, Programma and Project Offices"]
[null,null,null,null,null,null,"5.2.1 SCRUM MASTER","Scrum Master Agile Scrum","PSM I of vergelijkbare opleiding ","Scrum Master SAFe","SAFe Scrum Manager "," "," "," "," "," "," "," "," ","Uitvoering","Expert IV","S11-13","analyseren, creativiteit, netwerken, omgevingsbewustzijn, organisatiesensitiviteit, overtuigingskracht, plannen en organiseren, resultaatgerichtheid","Bedrijfsvoering","Senior Adviseur Bedrijfsvoering","S11-13","analyseren, creativiteit, netwerken, omgevingsbewustzijn, organisatiesensitiviteit, overtuigingskracht, plannen en organiseren"," "," "," "," ","Scrum mastership richt zich op het begrip en het op de correcte wijze uitvoeren van de scrum-aanpak (theorie, praktijk en regels). Het vakgebied ondersteunt het scrumteam en de Product Owner (KWIV 4.5.1) door middel van coaching en facilitering en is het eerste aanspreekpunt. Scrum master is dienend aan het scrumteam en beperkt eventuele belemmeringen, gericht op maximale waarde voor het scrumteam. De scrumaanpak volgens het Agile scrum-framework (rollen, artefacten en events) wordt hierin gevolgd. ","Dienend Leiderschap :  Leergang Coachend Leidinggeven of Agile Leidinggeven of Dienend, Faciliterend en Coachend Leiderschap in een Agile omgeving \nCoachen :  Opleiding Teamcoach\nVerwachtingen Management :  Resultaatgericht Leidinggeven\nDevOps :  DevOps Fundamentals"]
[null,null,null,null,null,null,"5.2.2 RELEASE TRAIN ENGINEER","Scrum Master Agile Scrum","PSM I of vergelijkbare opleiding ","Scrum Master SAFe","SAFe Scrum Manager","SAFE Release Train Engineer","RTE-Certificering "," "," "," "," "," "," ","Uitvoering","Expert IV","S11-13","analyseren, creativiteit, netwerken, omgevingsbewustzijn, organisatiesensitiviteit, overtuigingskracht, plannen en organiseren, resultaatgerichtheid","Bedrijfsvoering","Senior Adviseur Bedrijfsvoering","S11-13","analyseren, creativiteit, netwerken, omgevingsbewustzijn, organisatiesensitiviteit, overtuigingskracht, plannen en organiseren"," "," "," "," ","Release train engineering (RTE) richt zich op de ondersteuning van het totaal aan teams op meerdere niveaus (ondersteunende teams, voorbereidende teams, uitvoerende teams, afrondende teams). RTE in het Scaled Agile Framework (SAFe) is verantwoordelijk voor het geheel van de scrumteams; de ‘Agile Release Train’ (ART). De ondersteuning vindt in samenwerking plaats met de andere ondersteunende agile-vakgebieden, zoals Product management (KWIV 4.5.2) en scrum master (KWIV 5.2.1). RTE is verantwoordelijk voor het onderhouden van de ART en faciliteert alle evenementen (zoals tweedaagse planning, de systeemreview).","Dienend Leiderschap :  Leergang Coachend Leidinggeven of Agile Leidinggeven of Dienend, Faciliterend en Coachend Leiderschap in een Agile omgeving \nCoachen :  Opleiding Teamcoach \nVerwachtingen Management :  Resultaatgericht Leidinggeven \nDevOps :  DevOps Fundamentals"]
[null,null,null,null,null,null,"5.3.1 INFORMATIEMANAGEMENT","Bestuurlijke informatica","Master Bedrijfskundige Informatica"," "," "," "," "," "," "," "," "," "," ","Uitvoering","Senior Medewerker Behandelen en Ontwikkelen ","S11-13","analyseren, creativiteit, samenwerken, motiveren, bestuurssensitiviteit, overtuigingskracht, plannen en organiseren, klantgerichtheid","Bedrijfsvoering","Senior Adviseur Bedrijfsvoering","S11-13","analyseren, creativiteit, netwerken, omgevingsbewustzijn, organisatiesensitiviteit, overtuigingskracht, plannen en organiseren"," "," "," "," ","Informatiemanagement richt zich op het managen van het verzamelen, opslaan en beheren van gegevens en andere soorten van informatie binnen een organisatie. Deze informatiebehoefte ontstaat vanuit verschillende bedrijfsprocessen en wordt vertaald in informatievoorziening (IV). Het vakgebied professionaliseert de vraagzijde en is daarvoor op strategisch of tactisch niveau verantwoordelijk. Het zorgt voor de IV-strategie en werkt samen met Informatiebeleid (KWIV 1.2.1) voor het meerjarig informatieplan, gericht op het verbeteren van de IV en conform het organisatiebeleid. Hierin neemt Informatiemanagement de samenhang tussen missie, de bedrijfsdoelstellingen en de (toekomstig) benodigde IV voor Informatiemanagement mee. ","Informatiemanagement :  Business Information Management Foundation\nServicemanagement :  ITSM Foundation; ITIL Foundation\nApplicatiemanagement :  Applicatiemanagement Foundation\nProjectmanagement :  Projectmanagement Foundation; PRINCE2 Foundation\nProgrammamanagement :  Managing Successful Programs Foundation\nInformatiebeveiliging :  Information Security Foundation based on ISO/IEC 27002\nIT Management :  IT Management Foundation"]
[null,null,null,null,null,null,"5.3.2 DATA/GEGEVENSMANAGEMENT","Database Administration","MCDBA"," "," "," "," "," "," "," "," "," "," ","Uitvoering","Senior Medewerker Behandelen en Ontwikkelen ","S11-13","analyseren, creativiteit, samenwerken, motiveren, bestuurssensitiviteit, overtuigingskracht, plannen en organiseren, klantgerichtheid","Bedrijfsvoering","Senior Adviseur Bedrijfsvoering","S11-13","analyseren, creativiteit, netwerken, omgevingsbewustzijn, organisatiesensitiviteit, overtuigingskracht, plannen en organiseren"," "," "," "," ","Datamanagement richt zich op het managen van de technische infrastructuur voor de data / gegevens in een organisatie. Met als doel om de data optimaal te beheren en te gebruiken. Daarbij wordt beleid ontwikkeld ten aanzien van de kwaliteit, compliance-eisen, het gebruik en de opslag van deze data / gegevens. Het zorgt ook voor een corporate datamodel, met daarin onder meer de voor de organisatie relevante gegevensdefinities en technische informatie in bijvoorbeeld databases, applicaties en/of systemen. Waar datamanagement zich richt op het managen van de technische infrastructuur van de data, richt recordmanagement (KWIV 5.3.3) zich op het managen het beheer van de records. ","Databases :  Databases en QSL Foundation\nOntwikkeling van informatiesystemen :  Ontwerp en Ontwikkeling Informatiesystemen Foundation\nInformatietechnologie :  IT Foundation; A+ Essentials\nInformatiesystemen :  Informatiesystemen Foundation\nApplicatiemanagement :  Applicatiemanagement Foundation\nInformatiebeveiliging :  Information Security Foundation"]
[null,null,null,null,null,null,"5.3.3 RECORDMANAGEMENT","Database Administration","MCDBA, Oracle Certified Associate (OCA)"," "," "," "," "," "," "," "," "," "," ","Uitvoering","Senior Medewerker IV","S8-11","analyseren, klantgerichtheid, omgevingsbewustzijn, plannen en organiseren, resultaatgerichtheid, samenwerken, voortgangscontrole, zelfontwikkeling","Bedrijfsvoering","Adviseur Bedrijfsvoering","S8-11","analyseren, klantgerichtheid, omgevingsbewustzijn, plannen en organiseren, samenwerken, voortgangscontrole, zelfontwikkeling"," "," "," "," ","Recordmanagement richt zich op het managen van het beheer van de records (een record is informatie die gemaakt, ontvangen en onderhouden wordt) in een organisatie. Met als doel om efficiënte en systematische controle van de records mogelijk te maken. Het vakgebied is ook vanuit kwaliteitszorg in bedrijfsinformatie- en archiveringsprocessen een fundamenteel onderdeel. Hierin neemt recordmanagement de samenhang tussen missie, de bedrijfsdoelstellingen en de (toekomstig) benodigde IV voor recordmanagement mee. Waar recordmanagement zich richt op het managen van het beheer van de records, richt datamanagement (KWIV 5.3.2) zich op het managen van de technische infrastructuur van de data. ","Databases :  Databases en QSL Foundation\nInformatietechnologie :  IT Foundation; A+ Essentials"]
[null,null,null,null,null,null,"5.3.4 METADATA/GEGEVENSMANAGEMENT","Database Administration ","MCDBA"," "," "," "," "," "," "," "," "," "," ","Uitvoering","Medewerker Behandelen en Ontwikkelen ","S9-10","analyseren, klantgerichtheid, omgevingsbewustzijn, plannen en organiseren, resultaatgerichtheid, samenwerken, voortgangscontrole, zelfontwikkeling","Bedrijfsvoering","Adviseur Bedrijfsvoering","S8-11","analyseren, klantgerichtheid, omgevingsbewustzijn, plannen en organiseren, samenwerken, voortgangscontrole, zelfontwikkeling"," "," "," "," ","Metadatamanagement richt zich op het managen van het organiseren en beheren van de data die andere data beschrijft. Ook wel data over data genoemd. Metadatamanagement borgt de eenheid in definitie en gebruik van sets van (niet) verplichte metagegevens. En biedt hiermee het fundament voor het duurzaam beheer, de (inter)departementale uitwisseling en het actief openbaar maken van overheidsinformatie. De visie over metadatamanagement sluit aan bij de doelstellingen van de organisatie en geeft inzicht in de toegevoegde waarde van metadata. Dit geheel conform wet- en regelgeving en de door de organisatie gestelde eisen op het gebied van onder andere (duurzame) toegankelijkheid, vertrouwelijkheid en privacybescherming.","Databases :  Databases en QSL Foundation\nOntwikkeling van informatiesystemen :  Ontwerp en Ontwikkeling Informatiesystemen Foundation\nInformatietechnologie :  IT Foundation; A+ Essentials\nInformatiesystemen :  Informatiesystemen Foundation\nApplicatiemanagement :  Applicatiemanagement Foundation\nInformatiebeveiliging :  Information Security Foundation"]
[null,null,null,null,null,null,"5.3.5 KWALITEITSMANAGEMENT IV","Kwaliteitsmanagement","IT Quality Assurance","Projectmanagement","Professional Projectmanager; PRINCE2 Practitioner","Programmamanagement"," MSP Foundation, MSP Practitioner"," "," "," "," "," "," ","Uitvoering","Expert IV","S11-13","analyseren, creativiteit, netwerken, omgevingsbewustzijn, organisatiesensitiviteit, overtuigingskracht, plannen en organiseren, resultaatgerichtheid","Bedrijfsvoering","Senior Adviseur Bedrijfsvoering","S11-13","analyseren, creativiteit, netwerken, omgevingsbewustzijn, organisatiesensitiviteit, overtuigingskracht, plannen en organiseren"," "," "," "," ","Kwaliteitsmanagement IV richt zich op het managen van de optimalisatie van de kwaliteit van IV-processen, -producten en -services. Dit vakgebied kan ingezet worden binnen een (onderdeel van een) organisatie of een groot programma, maar komt ook voor in alle delen van het management van een organisatie. Kwaliteitsmanagement IV is gericht op een optimale beschikbaarheid en kwaliteit van de duurzaam toegankelijke informatiehuishouding, vanuit een ‘end-to-end’-benadering. Met als intentie om de doelen en normen te bereiken, via het handhaven van de vooropgestelde principes voor betrouwbaarheid en integriteit en methoden verder te verbeteren.","Organisatie-/Proces management :  IT Management Foundation; Professional Management and Improvement of IT Service Management processes\nProgramma-/projectmanagement :  Rijksacademie voor Project- en Programmamanagement\nInformatiemanagement/Functioneel beheer :  Business Information Management Foundation\nServicemanagement :  ITSM Foundation; ITIL Foundation\nApplicatiemanagement :  Applicatiemanagement Foundation\nAgile Scrum :  Agile Scrum Foundation"]
[null,null,null,null,null,null,"5.4.1 IT-CONTROL","IT-auditing","Post HBO-opleiding, Certified Information Systems Auditor"," "," "," "," "," "," "," "," "," "," ","Uitvoering","Senior Medewerker Behandelen en Ontwikkelen ","S11-13","analyseren, creativiteit, samenwerken, motiveren, bestuurssensitiviteit, overtuigingskracht, plannen en organiseren, klantgerichtheid","Bedrijfsvoering","Senior Adviseur Bedrijfsvoering","S11-13","analyseren, creativiteit, netwerken, omgevingsbewustzijn, organisatiesensitiviteit, overtuigingskracht, plannen en organiseren"," "," "," "," ","IT-control, beter gezegd: IV-control, richt zich op de controle van het informatiebeveiligingsbeleid of IT Risk Management. Het betreft de controle op de algemene beheersmaatregelen (zoals beleidslijnen en procedures) rond de IV-omgeving, die ervoor moeten zorgen dat beheersmaatregelen met een IV-component continu betrouwbaar werken. IV-control is verantwoordelijk voor het toetsen van de kwaliteit, de integratie en de kosten van de IV (inclusief projecten) aan die van de organisatie. Gericht om het risico te verkleinen en rapportages over de bevindingen op te stellen. Hiervoor wordt vaak een framework voor IV-control opgesteld.","Informatiesystemen :  Informatiesystemen Foundation\nInformatiemanagement :  Business Information Management Foundation\nInformatietechnologie :  IT Foundation; A+ Essentials28\nDatabasebases :  Databases en QSL Foundation\nApplicatiemanagement :  Applicatiemanagement Foundation\nArchitectuur :  TOGAF Practitioner\nInformatiebeveiliging :  Information Security Foundation based on ISO/IEC 27002\nServicemanagement :  ITSM Foundation; ITIL Foundation"]

{"sheet":"Hulp bij invullen","index":3,"n_rows":26,"n_cols":8,"rows_kept":26,"cut":false,"hidden":false,"merged":[[12,2,19,5],[4,7,10,8],[21,2,23,5],[25,2,26,5],[0,0,0,1],[4,2,5,5],[7,2,10,5]]}
["Aanvragen juist in de markt plaatsen"]
[]
["1. Enkelvoudige reguliere aanvraag  zonder extra opties?",null,"Ga naar stap 3",null,null,null,null,"Niet doen bij het invullen van aanvragen ICT Inhuur!!"]
[]
["2. Meerdere FTE's nodig?",null,"In negen van de tien gevallen gewoon als reguliere aanvraag zonder extra opties. \n\nLet wel op dat de eisen in proportie blijven (werk en denkniveau i.p.v. diploma, aantal jaren ervaring van iemand die iets dedicated heeft gedaan kan lager. Vermijdt ook ervaringseisen gerelateerd aan een specifieke klant). ",null,null,null,null,"Teveel Fte’s op 1 aanvraag. Geef leveranciers de ruimte meer cv’s in te dienen en voeg de regel toe: ‘in geval meerdere kandidaten geschikt worden bevonden, behoudt de dienst zich het recht voor meerdere gunningen te doen.’\n\nOp de aanvraag aangeven dat het om een aangewezen / gerede kandidaat of warme stoel gaat. De ADR verklaart dit onrechtmatig!\n\nVerambtelijken zonder de nog lopende nok te respecteren!\n\nWensen als eis opnemen! Bijv. Bij voorkeur heeft de kandidaat…. Dit suggereert een wens en moet dan ook als wens worden genoteerd.\n\nTelefonisch toelichting geven aan een opdrachtnemer zonder dit ook te delen met de andere opdrachtnemers."]
[]
[]
[null,null,"Voeg eventueel de volgende regel toe bij de aanvraag:\n \nIn geval meerdere kandidaten geschikt worden bevonden, behoudt de dienst zich het recht voor meerdere gunningen te doen.\n\nAfhankelijk van de hoeveelheid Fte’s, kan dan eventueel nog op de aanvraag worden meegegeven dat er bijv. 3 cv’s per opdrachtnemer mogen worden ingediend. Opdrachtnemers worden dan qua aanbiedingsbetrouwbaarheid niet benadeeld (KPI ziet op het indienen van minimaal 1 cv) en hebben de mogelijkheid door het indienen van meer cv’s ook met het tarief meer ruimte te pakken (een dure kandidaat kan direct worden gecompenseerd met een iets goedkopere kandidaat).\n\nVermijdt onnodige clustering van aanvragen, maar zet ze zoveel mogelijk als aparte aanvragen uit, waar mogelijk ook verspreid in de tijd (met vooraankondiging van gelijkwaardige aanvragen). Breid de reguliere inschrijvingstijd uit, als dat kan."]
[]
[]
[]
[]
["3. Schaars profiel en mogelijk lastig in te vullen (zie ook 5)?",null,"Optie 1: zet de aanvraag uit als regulier met een max. tarief (geen aanbiedingsplicht, maar ook zekerheid dat afhankelijkheid/schaarste niet leidt tot voor klant onacceptabel tarief) \n\nOptie 2: zet de aanvraag uit tegen een hogere salarisschaal Rijk \n\nOptie 3: maak de aanvraag vrijblijvend (geen aanbiedingsplicht, tarief afhankelijk van actuele schaarste en mate van concurrentie)\n\nOptie 4: zet de aanvraag uit als regulier, maar geef de opdrachtnemers langer de kans om te zoeken (schuif de datum ‘indienen offerte’ verder in de tijd.)\n\nOptie 5: doe een vooraankondiging dat de aanvragen er eerdaags (bijv. over twee weken) aankomen met een ruwe indicatie van de profielen, niveau, tarief/schaal\n\nOptie 6: zet de aanvraag uit en beleg een conference call waarin de opdrachtnemers, de inhurend manager en een inkoopvertegenwoordiger aanwezig zijn om in 1 x keer binnen korte tijd alle vragen helder te krijgen en te beantwoorden.\n\nOptie 7: beleg op voorhand een leveranciersmeeting waarin de manager de aanvraag (en het project) kan toelichten en breng daarna pas de aanvraag in de markt. \n\nOptie 8: voor schaarse profielen waaraan een constante behoefte is: zet een aanvraag proactief uit met een langere inschrijvingstijd (bijv. 1 maand). Herhaal deze zo vaak als nodig. Worden geschikte kandidaten gevonden, kan achteraf alsnog een budgetaanvraagMBPC worden ingeschoten. Er geldt geen aanbiedingsplicht.\n\nOptie 9: vermijdt in elk geval onnodige clustering van aanvragen met schaars profiel en wees zeer terughoudend bij het formuleren van eisen aan de kandidaat. Overweeg om eisen om te zetten naar wensen."]
[]
[]
[]
[]
[]
[]
[]
[]
["4. Veel profielen in een kort tijdsbestek?",null,"Optie 1: beleg op voorhand een leveranciersmeeting waarin de manager de aanvragen (en het project) kan toelichten en breng daarna pas de aanvragen in de markt.\n\nOptie 2: zet de aanvragen uit als regulier, maar geef de opdrachtnemers langer de kans om te zoeken (schuif de datum ‘indienen offerte’ verder in de tijd.)\n\nOptie 3: doe een vooraankondiging dat de aanvragen er eerdaags (bijv. over twee weken) aankomen met een ruwe indicatie van de profielen, niveau, tarief/schaal"]
[]
[]
[]
["5. Schaarste moeilijk in te schatten ?",null,"optie 1: neem contact op met de decentrale contractmanager bij je ministerie of de centrale contractmanager van de categorie. Deze heeft misschien ook informatie over soortgelijke profielen bij andere opdrachtgevers.\n\noptie 2: vraag informatie op bij de opdrachtnemers en leg zo mogelijk een indicatief profiel uit met het verzoek daarop te reageren (kandidaat aanbieden wel/niet mogelijk binnen toegestane afwijking van overheidstarieven, welke eisen in de aanvraag worden als knelpunt ervaren). "]

{"sheet":"Kwaliteitsraamwerk I(v) Info","index":4,"n_rows":65,"n_cols":3,"rows_kept":65,"cut":false,"hidden":false,"merged":[]}
["Kwaliteitenprofielen","Toelichting","Voorbeelden van opleidingen"]
["1.1.1 INFORMATIEARCHITECTUUR","De informatiearchitectuur richt zich op de beschrijving van de inhoudelijk relaties en samenhang tussen toepassingen en gegevensverzamelingen onderling. Het opstellen, beheren en integreren van de structuur van applicaties, databases en andere (data)gegevensverzamelingen. Ook in persoonlijke applicaties, zoals spreadsheets. Daarbij wordt gelet op eventueel gewijzigde informatiebehoeften van gebruikers. Daarnaast worden de beleidsregels voor het beheer van de (elementen van de) informatiearchitectuur opgesteld. Hoewel het vakgebied datamanagement meestal verantwoordelijk is voor het beheer van het bedrijfsdatamodel, wordt dit voor de invulling van dit model vaak bij data- of informatiearchitectuur (KWIV 1.1.3) belegd.","Informatiebeveiliging :  Information Security Foundation based on ISO/IEC 27002\nOntwikkeling informatiesystemen :  Ontwikkeling Informatiesystemen Foundation"]
["1.1.2 FUNCTIONEEL ONTWERP/STARTARCHITECTUUR","Functioneel ontwerp/ startarchitectuur richt zich op het beschrijven van wat het informatiesysteem moet kunnen. Samen met (eind)gebruikers en de opdrachtgever worden functionele specificaties opgesteld, waaraan een informatiesysteem moet voldoen. Het ontwerp wordt (mede) op basis van de input vanuit vakgebieden informatieanalyse (KWIV 4.3.1) en/of business analyse (KWIV 4.3.2) gemaakt. Het gaat om het analyseren, modelleren en specifiek de eisen aan informatie bij de gebruikers vaststellen. Het beheer en onderhoud van een informatiesysteem ligt meestal bij functioneel beheer en/of applicatiebeheer. Vanuit functioneel ontwerp/ startarchitectuur wordt ook een bijdrage aan testplannen voor functionele en acceptatietesten geleverd. ","Architectuur :  NORA, MARIJ (geen certificering)\nOntwikkeling van informatiesystemen :  Ontwerp en Ontwikkeling Informatiesystemen, Foundation; RAD/LAD; XML/UML; XBRL\nProgrammeren :  Java; C#; .Net; Visual Basic; SAP/ERP; Cobol; Python; PHP\nGegevensmodellering :  Oracle; Databases en SQL Foundation; Objectoriëntatie Foundation\nTesten :  Testen Foundation; TMapNEXT Foundation"]
["1.1.3 APPLICATIEARCHITECTUUR","Applicatiearchitectuur richt zich op het beschrijven van de samenhang van de applicaties en informatiesystemen binnen de organisatie. Het modelmatig beschrijven van het applicatielandschap (de daadwerkelijk systemen in productie). Daarbij wordt vanuit de principes van onder meer Nora, Gemma, et cetera gewerkt. Dit vakgebied komt vooral voor in organisaties waar grote en complexe systemen worden ontwikkeld. Tevens bij de ontwikkeling van administratieve applicaties en embedded software (software geschreven om machines en apparaten te besturen). Vaak is applicatiearchitectuur sterk verbonden met informatiearchitectuur (KWIV 1.1.1).","Programmeren :   Java; C#; .Net; Visual Basic; SAP/ERP; Groupware/Lotus Notes; Powerbuil\u0002der/Sybase; Cobol/Cics/DB2; Cool Gen\nInformatiebeveiliging :  Information Security Foundation based on ISO/IEC 27002\nOntwikkeling informatiesystemen :  Ontwikkeling Informatiesystemen Foundation\nApplicatiemanagement :  Applicatiemanagement Foundation"]
["1.1.4 TECHNISCHE ARCHITECTUUR","Technische architectuur richt zich op het beschrijven van de principes, richtlijnen en regels om de informatiesystemen te laten werken. De focus is om de overkoepelende structuur van de technische infrastructuur te ontwerpen. Dit zijn netwerk, servers en storage (opslag). De technische infrastructuur moet worden gebaseerd op de informatiearchitectuur (KWIV 1.1.1), het automatiseringsbeleid en de automatiseringsplannen. Hierbij wordt niet alleen een structuur ontworpen, maar er wordt ook gecontroleerd of aan de gestelde eisen wordt voldaan. Bijvoorbeeld eisen aan passieve en actieve netwerkcomponenten (ook multimedia), systeemsoftware (operating systemen en middleware), de netwerk(beheer)software, servers, server(beheer)software en storage.","Informatiebeveiliging :   Information Security Foundation based on ISO/IEC 27002\nServicemanagement :  ITSM Foundation; ITIL Foundation"]
["1.1.5 SYSTEEMARCHITECTUUR","Systeemarchitectuur richt zich op het beschrijven van een conceptueel model dat de structuur, het gedrag en de weergave van een systeem definieert. Hierbij wordt er rekening gehouden met beveiliging, audits, de prestaties en de uitwisseling van gegevens met externe bronnen of bestemmingen. Systeemarchitectuur overziet het gehele domein in technische zin. De schakel tussen de product- of domeinvisie, en de benodigde aanpassingen aan het specifieke IV-landschap. Binnen het Scaled Agile Framework is systeemarchitectuur verantwoordelijk voor het opstellen van de 'architectural features' op programmaniveau. De systeeminfrastructuur moet passen binnen de informatiearchitectuur (KWIV 1.1.1), het automatiseringsbeleid en de automatiseringsplannen. Hierbij is systeemarchitectuur een belangrijke sparringpartner voor de product manager (KWIV 4.5.2) en product owners (KWIV 4.5.1). Vaak maakt systeemarchitectuur deel uit van het productmanagementteam. ","Informatiebeveiliging :  Information Security Foundation based on ISO/IEC 27002\nServicemanagement :  ITSM Foundation; ITIL Foundation\nScaled Agile Framework :  SAFe Agilist, Leading SAFE Agile voor Lead engineers"]
["1.1.6 ENTERPRISE ARCHITECTUUR","Enterprise architectuur richt zich op over het vertalen van doelstellingen naar de inrichting van organisatie, processen en informatievoorziening en is in het ontwerpproces vaak als een van de eersten betrokken. Vaak is enterprise architectuur betrokken bij het ontwerp en het beheer van de bedrijfsarchitectuur (doellandschap). Waarbij er stappen worden definieert om van de huidige vorm en status (IST) naar de gewenste vorm en status van het IV-landschap en de bedrijfsprocessen (SOLL) te komen. In een SAFe-omgeving is enterprise architectuur verantwoordelijk voor het opstellen van de 'architectural epics' op portfolioniveau. Het vakgebied kan op bedrijfsniveau - dan wel domeinportfolioniveau - samen met business analyse (KWIV 4.3.2) optrekken om alle epics te visualiseren en de organisatie van werkvoorraad te voorzien. Vanuit enterprise architectuur kan de IV-professional hier de rol van 'epic owner' aannemen. ","Informatiebeveiliging :  Information Security Foundation based on ISO/IEC 27002\nOntwikkeling informatiesystemen :  Ontwikkeling Informatiesystemen Foundation\nScaled Agile Framework :  Leading SAFE Agile voor Lead engineers\nUser Stories :  Writing User Stories \nEnterprise Architectuur :  Opleiding Enterprise architectuur\nArchimate :  Archimate Foundation & Practitioner"]
["1.2.1 INFORMATIEBELEID","Informatiebeleid is gericht op het verbeteren van betrouwbare informatie en van de informatievoorziening (IV), conform het organisatiebeleid. Informatiebeleid omvat de doelen, middelen en wijze om te voorzien in de benodigde IV en om deze in stand te houden. Informatiebeleid stelt een meerjarig informatieplan op, waarin ook uitgangspunten en randvoorwaarden staan met een samenhang tussen missie, bedrijfsdoelstellingen (en benodigde IV) binnen het Rijk. Het vakgebied wordt in groter verband gezien, waarbij nadrukkelijk relaties worden gelegd tussen overheidsorganisaties en bestuurlijke niveaus. Daarbinnen wordt gebruik gemaakt van rijksbrede standaards, richtlijnen en afspraken.","Informatiebeveiliging :  Information Security Foundation based on ISO/IEC 27002\nOntwikkeling informatiesystemen :  Ontwikkeling Informatiesystemen Foundation\nApplicatiemanagement :  Applicatiemanagement Foundation\nServicemanagement :  ITSM Foundation; ITIL Foundation"]
["1.2.2 INNOVATIEMANAGEMENT","Innovatiemanagement richt zich op het consequent verbeteren en (deels) vernieuwen van producten, processen, organisatie en vaardigheden. Gedurende de initiatiefase van (potentieel) nieuwe projecten. Daarbij houdt het rekening met de departementale architectuur-, beveiligings- en privacykaders. De innovatie kan zich uiten in bijvoorbeeld een experiment, een idee uitwerken tot een pilot of een brainstormsessie organiseren om de gebruikerswensen goed boven tafel te krijgen. Ook is het mogelijk de markt op te gaan om de innovatie te beproeven en de levensvatbaarheid concreet te maken. Doorgaans is er contact met een projectenbureau of andere bron waaruit inspiratie tot innovatie kan worden gehaald. Vakgebied heeft raakvlakken met Informatiebeleid (KWIV 1.2.1) en Kwaliteitsmanagement (KWIV 5.3.5).","Architectuur Postdoc opleidingen, Zoals IMAC, UVA, TI- AS, ROI9\nInformatiebeveiliging :  Information Security Foundation based on ISO/IEC 27002\nOntwikkeling informatiesystemen :  Ontwikkeling Informatiesystemen Foundation\nApplicatiemanagement :  Applicatiemanagement Foundation\nServicemanagement :  ITSM Foundation; ITIL Foundation"]
["1.2.3 MANAGEMENT INFORMATIEVOORZIENING","Management Informatievoorziening richt zich op het beheren en managen van informatie die ondersteuning biedt bij het behalen van de organisatie doelstellingen. In dit proces wordt de informatiebehoefte die vanuit de primaire processen en de IT van de organisatie ontstaan, beantwoord met de informatievoorziening. Het initieert de vertaling van technologische en maatschappelijke ontwikkelingen en de nieuwe informatiebehoeften die hierdoor ontstaan. Binnen deze context zorgt het vakgebied voor realisatie van een duurzaam toegankelijke informatiehuishouding. Dit gebeurt door de uiteenlopende kaders, normen en eisen systematisch te wegen en af te zetten tegen huidig en toekomstig gebruik. Ook verwacht men dat vanuit dit vakgebied adequaat over de proportionaliteit van te nemen maatregelen wordt geadviseerd. ","nformatiebeveiliging :  Information Security Foundation based on ISO/IEC 27002\nOntwikkeling informatiesystemen :  Ontwikkeling Informatiesystemen Foundation\nApplicatiemanagement :  Applicatiemanagement Foundation\nServicemanagement :  ITSM Foundation; ITIL Foundation"]
["1.3.1 SOURCING MANAGEMENT","Sourcing management richt zich op het adviseren en vastleggen (op IV-gebied) wat de organisatie zelf doet en wat wordt uitbesteed aan leverancier(s). Waarbij er (resultaat)afspraken worden opgesteld met private partijen en/of een (Shared) Service Centrum. Het kan bijvoorbeeld gaan over vernieuwing, ontwikkeling of beheer van applicaties, of het exploiteren van een nieuw rekencentrum. Regionale of landsgrenzen spelen hierbij vrijwel geen rol meer. Ook de wijze waarop de samenwerking tussen klant en leverancier het beste vorm en inhoud kan worden gegeven, behoort tot de expertise. Vaak wordt de beslissing over al dan niet uitbesteden en de contractuele vorm van samenwerking vastgelegd in een sourcingbeleid. ","Informatiesystemen :  Informatiesystemen Foundation\nInformatiemanagement :   Business Information Management Foundation\nInformatiebeveiliging :  Information Security Foundation based on ISO/IEC 27002\nContractmanagement :  Contractmanagement CATS CM Foundation"]
["2.1.1 APPLICATIEONTWIKKELING","Applicatieontwikkeling richt zich op het proces van het maken van applicaties. Dit kan bijvoorbeeld zijn (1) modulair opbouwen, (2) aanvullende functionaliteit ontwikkelen of (3) parameterisering: standaardapplicaties geschikt maken voor een specifieke situatie. De manier van technisch ontwerpen en applicatieontwikkeling is hierop aangepast, waaronder het gebruik van open software. Veelgebruikte methodieken bij het ontwikkelen van applicatie/softwaresystemen zijn Agile Scrum, Agile XP en SAFe, waarbij de ontwikkelaars in toenemende mate deel gaan uitmaken van DevOps-teams. Waar systeemontwikkeling (KWIV 2.1.2) verantwoordelijk is voor de back-end, is applicatieontwikkeling verantwoordelijk voor de front-end. ","Ontwikkelen van informatiesystemen :  Ontwikkeling informatiesystemen Foundation; Object Oriëntatie Foundation\nApplicatiemanagement :  Applicatiemanagement Foundation (ASL)\nIT Infrastructuur :  IT Foundation; A+ Essentials"]
["2.1.2 SYSTEEMONTWIKKELING","Systeemontwikkeling richt zich op één van de volgende processen: (1) de ontwikkeling van een systeem, (2) het ontwerp en de constructie van een nieuw systeem, of (3) de modificatie van een bestaand systeem of een onderdeel daarvan. Op basis van de wensen van de organisatie en gebruikers wordt dit vertaald naar concrete hardware en software (digitale infrastructuur). Daarbij worden technische systemen gebouwd en/of ontworpen (embedded software, ofwel: software geschreven om machines en apparaten te besturen). Het kan gezien worden als een combinatie tussen ontwerpen en programmeren. Waar applicatieontwikkeling (KWIV 2.1.1) verantwoordelijk is voor de front-end, is systeemontwikkeling verantwoordelijk voor de back-end.","Ontwikkeling van informatiesystemen :  Ontwerp en Ontwikkeling Informatiesystemen Foundation\nTesten :  Testen Foundation\nInformatietechnologie :  IT Foundation; A+ Essentials\nApplicatiemanagement :  Applicatiemanagement Foundation\nInformatiebeveiliging :  Information Security Foundation"]
["2.1.3 NETWERKONTWIKKELING","Netwerkontwikkeling richt zich op het ontwerp, de implementatie en het beheer en onderhoud van IT-netwerken. Het gaat hierbij om het ontwerpen en configureren van het interne netwerk (LAN; Local Area Network) en de koppelingen met externe netwerken (WAN; Wide Area Network). Dit is dan ook een ander soort ontwikkeling dan applicaties of systemen. Onderdeel hiervan is de componenten van het netwerk (netwerkapparatuur en besturings-, beheer- en netwerkprogrammatuur) te selecteren en het aansturen van de installatie en het beheer van deze componenten. Vaak wordt kennis verwacht van technieken zoals Routing, Switching, DNS, DHCP en IPAM, maar ook van de laatste e-mailbeveiligingsstandaarden.","Informatiesystemen :  Informatiesystemen Foundation\nOntwikkeling van informatiesystemen :  Ontwerp en Ontwikkeling Informatiesystemen Foundation\nInformatietechnologie :  IT Foundation; A+ Essentials\nApplicatiemanagement :  Applicatiemanagement Foundation\nInformatiebeveiliging :  Information Security Foundation"]
["2.1.4 DATA ENGINEERING","Data enginering richt zich op het organiseren van data voor analytische doeleinden. Waarbij de data wordt gekoppeld, gestructureerd en geïnterpreteerd uit verschillende databronnen. Het doel is betrouwbare, efficiënte en schaalbare oplossingen bieden voor o.a. business intelligence-doeleinden en machine learning-modellen. Deze oplossingen zijn getoetst aan de onderliggende logica, waarmee de organisatie strategische keuzes kan maken. Vanuit Data enginering is nauw contact met stakeholders aan de business-kant. Verder is het vakgebied data enginering gericht op eventuele productieverstoringen oplossen en betrokken bij productontwikkelingsprojecten. Data enginering draagt zorg voor het beschikbaar, veilig, beheersbaar en robuust beschikbaar stellen van data op bijvoorbeeld een analytics-platform.","Softwareontwerp :  Java Software Designer; Microsoft Certified Solution Developer (etc.)\nMethoden en technieken voor Agile ontwerp :  RAD/LAD, RUP\nDatawarehouse, ETL :  Analyzing Data with Power BI, Analyzing Data with SQL Server Reporting Services\nBI Tooling :  Python Fundamentals / Advanced"]
["2.2.1 TESTMANAGEMENT","Testmanagement richt zich op het proces om de software te testen. Vaak is het testmanagement onderdeel van Agile Scrum, waarbij het testen zelf uitgevoerd wordt door medewerkers en/of via geautomatiseerd testen. Ook 'test driven development' (ontwikkelmethode met eerst de tests schrijven en daarna pas de code) wordt onder dit vakgebied geschaard. Het testen van de software geeft inzicht in, en adviseert over, de kwaliteit van de software en de daaraan gerelateerde risico's. Onderdeel van dit vakgebied kan zijn 'testengineering': hierin wordt het proces bepaald dat onder bepaalde omstandigheden tot een zo goed mogelijke test zal leiden. ","Testen en testmethoden :  Testen Foundation; ISTQB Foundation\nInformatietechnologie :  IT Foundation; A+ Essentials\nInformatiesystemen :  Informatiesystemen Foundation\nProjectmanagement :  Projectmanagement Foundation; PRINCE2 Foundation\nApplicatiemanagement :  Applicatiemanagement Foundation\nOntwikkeling van informatiesystemen :  Ontwerp en Ontwikkeling Informatiesystemen Foundation; Object Oriëntatie Foundation"]
["3.1.1 SYSTEEMBEHEER","Systeembeheer is een algemene benaming voor het beheer van servers en netwerken. In grotere organisaties is dit vakgebied vaak opgesplitst naar serverbeheerder (KWIV 3.1.4) en netwerkbeheerder (KWIV 3.1.5). De naam wordt ook wel gebruikt voor het technisch beheer van een systeem, of de combinatie van meerdere systemen en de servers waarop die draaien. Incidenten en changes kunnen grote gevolgen hebben voor de continuïteit van systemen en daarmee voor de continuïteit van en beeldvorming over de organisatie. Systeembeheer moet in dergelijke situaties onder druk nauwkeurig en volgens de voorgeschreven procedures kunnen werken. Ontwikkel- en beheerrollen worden soms samengevoegd in DevOps-teams. In dat geval zal systeembeheer naast kennis van beheer ook kennis van continuous delivery en continuous integration moeten hebben.","Servicemanagement :  ITSM Foundation; ITIL Foundation\nInformatietechnologie :  IT Foundation; A+ Essentials\nInfrastructuurmanagement :  Infrastructuurmanagement Foundation\nInformatiebeveiliging :  Information Security Foundation"]
["3.1.2 CHANGE MANAGEMENT","Changemanagement richt zich op het aanpassen, beheersen en gecoördineerd invoeren van changes (wijzigingen) in de IV-omgeving. Changemanagement helpt de organisatie met het aanvragen, prioriteren, toestaan, goedkeuren, inplannen en implementeren van allerlei soorten changes. Daarmee moet worden geborgd dat changes zonder merkbare of onacceptabele gevolgen voor gebruikers worden ingevoerd én dat de continuïteit van de informatievoorziening niet in gevaar komt. Changes in de IV-omgeving kunnen betrekking hebben op informatiesystemen of applicaties en/of de technische infrastructuur: netwerk, servers, storage (opslag). ","Servicemanagement :  ITSM Foundation; ITIL FoundationProjectmanagement :  Projectmanagement Foundation; PRINCE2 Foundation\nInformatietechnologie :  IT Foundation; A+ Essentials\nInformatiesystemen :  Informatiesystemen Foundation; MSCE, CDAA\nApplicatiemanagement :  Applicatiemanagement Foundation\nInformatiebeveiliging :  Information Security Foundation"]
["3.1.3 FUNCTIONEEL BEHEER","Functioneel beheer is de verbindende schakel tussen de uitvoering en ICT van de organisatie. Is verantwoordelijk voor het beantwoorden van gebruikersvragen en zorgt ervoor dat het informatiesysteem (blijvend) voldoet aan de eisen van de gebruikers en dat de functionaliteit consistent is. Functioneel beheer werkt nauw samen met gebruikers voor het evalueren van de functionele specificaties van een informatiesysteem en het uitwerken van de functionele specificaties bij gewenste wijzigingen. Gerealiseerde wijzigingen worden door functioneel beheer getest in acceptatietesten. Daarnaast coördineert functioneel beheer de invoering van wijzigingen in de gebruikersorganisatie. Tot slot is functioneel beheer een vraagbaak voor gebruikers (in de tweede lijn) en het coördineren van oplossingen voor problemen.","Informatiemanagement :  Business Information Management Foundation\nInformatiesystemen :  Informatiesystemen Foundation; MSCE, CDAA\nTesten :  Testen Foundation\nServicemanagement :  ITSM Foundation; ITIL Foundation\nInformatiebeveiliging :  Information Security Foundation based on ISO/IEC 27002"]
["3.1.4 SERVERBEHEER","Serverbeheer richt zich op het monitoren en onderhouden van servers om deze betrouwbaar en optimaal te laten werken. Daarbij richt het zich op het beheer van hardware, software, beveiliging en back-ups, zodat de IT-omgeving operationeel en doeltreffend blijft. Serverbeheer is betrokken bij de configuratie van een server en het installeren én configureren van wijzigingen. Serverbeheer monitort de werking van servers (vaak met specifieke tooling) en onderneemt acties of voert preventief maatregelen door om een server aan de gestelde eisen te laten voldoen. Bij storingen aan de server zorgt serverbeheer voor het oplossen daarvan. Dit profiel kan een specialisatie zijn van Systeembeheer (KWIV 3.1.1).","Servicemanagement :  ITSM Foundation; ITIL Foundation\nInformatietechnologie :  IT Foundation; A+ Essentials\nInfrastructuurmanagement :  Infrastructuurmanagement Foundation\nInformatiebeveiliging :  Information Security Foundation"]
["3.1.5 NETWERKBEHEER","Netwerkbeheer richt zich op het monitoren en onderhouden van netwerken om deze betrouwbaar en optimaal te laten werken. Daarbij richt het zich op het beheer van hardware, software, beveiliging en back-ups, zodat de IT-netwerkomgeving operationeel en doeltreffend blijft. Netwerkbeheer is betrokken bij het ontwerp van een netwerk en het installeren én configureren van wijzigingen in de netwerkcomponenten. Netwerkbeheer monitort de werking van een netwerk (vaak met specifieke monitoringtools) en neemt reactief of preventief maatregelen om het netwerk aan de gestelde eisen te laten voldoen. Storingen in het netwerk worden door netwerkbeheer opgelost. Dit profiel kan een specialisatie zijn van Systeembeheer (KWIV 3.1.1).","Servicemanagement :  ITSM Foundation; ITIL Foundation\nInformatietechnologie :  IT Foundation; A+ Essentials\nInfrastructuurmanagement :  Infrastructuurmanagement Foundation\nInformatiebeveiliging :  Information Security Foundation"]
["3.1.6 APPLICATIEBEHEER","Applicatiebeheer richt zich op het beheer en onderhoud van de applicaties conform de overeengekomen prestatiekenmerken (performance, bedrijfszekerheid). Applicatiebeheer zorgt voor het aansturen van de realisatie van gewenste wijzigingen door een programmeur of DBA. Ook zorgt applicatiebeheer voor het coördineren van de (technische) implementatie van de wijziging in de productieomgeving. Applicatiebeheer werkt vaak samen met databasebeheer (KWIV 3.1.7) en/of systeembeheer (KWIV 3.1.1). Vaak is applicatiebeheer – in de tweede lijn – betrokken bij het oplossen van incidenten en problemen die ontstaan zijn door technische redenen. ","Ontwikkeling van informatiesystemen : Ontwerp en Ontwikkeling Informatiesystemen, Foundation; RAD/LAD; XML/UML; XBRL\nWebtechnologie en gerelateerde technologieën :  HTML, ASP, SOAP, XML, XSL-T, XPath, DOM, XML Schema’s\nDatabases :  Databases en SQL Foundation\nInformatietechnologie :  IT Foundation; A+ Essentials\nInformatiesystemen :  Informatiesystemen Foundation; MSCE, CDAA \nTesten :  Testen Foundation; TMapNext Foundation; ISTQB Certified Tester Foundation Level\nApplicatiemanagement :  Applicatiemanagement Foundation\nServicemanagement :  ITSM Foundation; ITIL Foundation"]
["3.1.7 DATABASEBEHEER","Databasebeheer richt zich op het beheer en onderhoud van de data (gegevens) conform de overeengekomen prestatiekenmerken (performance, bedrijfszekerheid). Databasebeheer draagt zorg voor de kwaliteit, actualiteit, volledigheid en consistentie van gegevens in een database(s). Verder stelt Databasebeheer het gegevensmodel voor een applicatie op en beheert deze, in samenwerking met informatieanalyse (KWIV 4.3.1) of informatiearchitectuur (KWIV 1.1.1). Databasebeheer zorgt voor het verifiëren van de productieresultaten op het aspect gegevensconsistentie en –correctheid én voert de periodieke analyses op de kwaliteit van de gegevens uit.","Databases :  Databases en QSL Foundation\nOntwikkeling van informatiesystemen :  Ontwerp en Ontwikkeling Informatiesystemen Foundation\nInformatietechnologie :  IT Foundation; A+ Essentials\nInformatiesystemen :  Informatiesystemen Foundation; MSCE, CDAA \nApplicatiemanagement :  Applicatiemanagement Foundation\nInformatiebeveiliging :  Information Security Foundation"]
["3.1.8 RECORDBEHEER","Recordbeheer richt zich op het identificeren, klasseren, archiveren, bewaren en vernietigen van records (archief). Daarmee draagt het zorg voor kwalitatieve intake, formele ontsluiting, distributie en archivering van gekanaliseerde inkomende (digitale) documentstromen. Recordbeheer zorgt voor het monitoren van de eenduidigheid en juistheid van metagegevenssets op zaken, proces- en documentniveau, het tijdig signaleren van de afwijkingen én de noodzakelijke herstelbewerkingen hierop. Recordbeheer onderhoudt hiertoe veelvuldig contact met zaakhouders en/of (mede)behandelaren om de informatiebehoeften zo goed mogelijk af te stemmen en informatieprocessen bij het organisatieonderdeel beter te laten verlopen.","Informatiesystemen :  Informatiesystemen Foundation; MSCE, CDAA"]
["3.1.9 DATA STEWARDSHIP","Datastewardship richt zich voornamelijk op het ondersteunen van de klant/business in het onderhouden en creëren van data met een hoge kwaliteit. Het vakgebied zorgt voor het definiëren, meten en verbeteren van de datakwaliteit - in een continu proces. Bijvoorbeeld conform criteria voor juistheid, compleetheid of actualiteit (vanuit businessperspectief). Hier valt ook onder het correcte formaat en de correcte betekenis (vanuit vorm, perspectief, conform gegevensdefinitie). Het vakgebied kan op meerdere niveaus (zoals operationeel of tactisch) worden ingedeeld."," "]
["3.2.1 TECHNICAL SUPPORT","Technical support richt zich op het ondersteunen en oplossen van complexe technische problemen van de klant/medewerkers. Tevens voert het controles uit om problemen vroegtijdig te signaleren. Technical support is een tweede lijn support. Veelal gaat het over IT-gerelateerde problemen, maar het kan ook gaan over (rand)apparatuur of machines die niet meer naar behoren functioneren. Technical support is in staat om het totaal van een vraagstuk te overzien. Breedte (overzicht) en diepte (specialistische deskundigheid) op enkele terreinen zijn hierbij van belang. Waar technical support zich richt op de complexere technisch problemen (2de lijn), richt de 1e lijns gebruikersondersteuning (KWIV 3.2.2) op standaard storingen, problemen etc. ","Servicemanagement :  ITSM Foundation; ITIL Foundation\nProjectmanagement :  Projectmanagement Foundation; PRINCE2 Foundation\nInformatietechnologie :  IT Foundation; A+ Essentials\nInformatiesystemen :  Informatiesystemen Foundation\nApplicatiemanagement :  Applicatiemanagement Foundation15\nDatabases :  Databases en SQL Foundation\nOntwikkeling van informatiesystemen :  Ontwerp en Ontwikkeling Informatiesystemen Foundation\nFunctioneel beheer :  Functioneel Beheer Foundation\nInformatiebeveiliging :  Information Security Foundation\nKantoorautomatisering :  Europees Computer Rijbewijs"]
["3.2.2 1e LIJNS GEBRUIKERSONDERSTEUNING","1e lijns gebruikersondersteuning richt zich op het coördineren, ondersteunen en oplossen van technische problemen van de klant/medewerkers. Het is de eerste lijn support (direct klantcontact). Daarbij coördineert het dat incidenten conform de dienstverleningsovereenkomst (SLA) worden afgehandeld. Indien 1e lijns gebruikersondersteuning het probleem niet kan oplossen, dan wordt het incident doorgezet naar de 2e lijn: bijvoorbeeld technical support (KWIV 3.2.1) of applicatiebeheer (KWIV 3.1.6). Afhankelijk van de organisatie kunnen de volgende facetten ook onder het vakgebied worden geschaard: het identificeren van problemen, het coördineren van wijzigingen, het registreren van gebruikers en/of het instellen van autorisaties.","Informatietechnologie :  IT Foundation; A+ Essentials\nInformatiesystemen :  Informatiesystemen Foundation; MSCE, CDAA\nKantoorautomatisering :  Europees Computer Rijbewijs"]
["3.2.3 INCIDENT MANAGEMENT","Incidentmanagement richt zich op het vroegtijdig en snel oplossen van een ongeplande verstoring. Deze verstoring kan zich voordoen met de informatievoorziening, in de informatiesystemen of applicaties als in de technische infrastructuur. Hierbij wordt tevens de prioritering van het incident bepaald, aan de hand van urgentie en impact. Dit profiel Incident management is afgeleid van het gelijknamige ITIL-proces. Het vakgebied kan zowel procesmatig als inhoudelijk operationeel zijn ingestoken. Problem management (KWIV 3.2.4) is een direct aanpalend vakgebied.","Servicemanagement ITSM Foundation; ITIL Foundation\nInformatietechnologie :  IT Foundation; A+ Essentials\nInformatiesystemen :  Informatiesystemen Foundation; MSCE, CDAA \nApplicatiemanagement :  Applicatiemanagement Foundation\nInformatiebeveiliging :  Information Security Foundation"]
["3.2.4 PROBLEM MANAGEMENT","Problemmanagement richt zich op, een gestructureerde wijze, het bundelen van incidenten, het proactief voorkomen van een probleem/incident en het minimaliseren van de impact. Hierbij gaat het om verstoringen van de informatiesystemen/applicaties als in de technische infrastructuur. Problemmanagement onderzoekt incidenten, zodat de achterliggende (mogelijke) oorzaken helder worden en de (waarschijnlijke) impact van incidenten worden verminderd. Daarbij wordt er een Known Error Database (KED) aangelegd. Problemmanagement komt in actie wanneer het incidentmanagementproces (KWIV 3.2.3) nog niet tot de juiste oplossing heeft geleid of een structurele oplossing moet worden gerealiseerd, nadat in het kader van incidentmanagement een workaround is geïmplementeerd of geboden.","Servicemanagement :  ITSM Foundation; ITIL Foundation\nInformatietechnologie :  IT Foundation; A+ Essentials\nInformatiesystemen :  Informatiesystemen Foundation; MSCE, CDAA\nApplicatiemanagement :  Applicatiemanagement Foundation\nInformatiebeveiliging :  Information Security Foundation"]
["3.3.1 SERVICE LEVEL MANAGEMENT","Service level management (SLM) richt zich op de uitgangspunten van de overeengekomen dienstverlening. Het stelt hiervoor een raamwerk op van de processen in de vorm van overeenkomsten, verplichtingen en relaties, die worden beheerd via de zogenaamde dienstencatalogus. De eisen / wensen en behoeften van de gebruikers/lijnmanagement en leveranciers worden afgestemd en vastgelegd in service level agreements (SLA’s). SLM bewaakt proactief of de daadwerkelijk geboden dienstverlening conform de SLA wordt uitgevoerd. SLM herkent en onderscheidt patronen in dienstverlening en de naleving van de gemaakte afspraken. En stelt oplossingen voor ter voorkoming van eventuele problemen.","Servicemanagement :  ITSM Foundation; ITIL Foundation\nProjectmanagement :  Projectmanagement Foundation; PRINCE2 Foundation\nInformatiebeveiliging :  Information Security Foundation based on ISO/IEC 27002"]
["3.3.2 CAPACITY MANAGEMENT","Capacity management is erop gericht om de vraag naar en het aanbod van capaciteit (storage) op optimale wijze op elkaar af te stemmen. Onderdelen van dit vakgebied zijn onder meer het meten, analyseren en het verbeteren van performance. Dit kan door het bepalen van de vereiste capaciteit van IT-middelen, het plannen van die IT-middelen en het voorspellen van de werklast. Relevant daarin is te weten welke systeemperformance nodig is en ook of dit op piekmomenten of in het algemeen zo is. In het geval van een ketenproces worden van tevoren met ketenpartners afspraken gemaakt over de capaciteit die zij ten behoeve van de keten beschikbaar moeten hebben.","Servicemanagement :  ITSM Foundation; ITIL Foundation\nInformatietechnologie :  IT Foundation; A+ Essentials\nInformatiesystemen :  Informatiesystemen Foundation"]
["3.3.3 CONFIGURATION MANAGEMENT","Configuration management richt zich op het operationele beheer van de configuratiedatabase, identificeren en classificeren van de zogenoemde ‘configuratie-items’. Daarbij worden alle componenten van de IT-infrastructuur in kaart gebracht met de onderlinge relaties, gerelateerde documentaties en overige IT-processen welke hierop ondersteuning geven. Deze gegevens worden vastgelegd in de configuratiedatabase. Configuration management is van belang voor het configuratieproces met centraal en zorgvuldig licentiebeheer. En is hiermee een belangrijke schakel in de op- en verdere uitbouw van het configuratieproces en vervult hierin een actieve ‘voortrekkersrol’. Lifecycle-management kan nadrukkelijk als een onderdeel van dit vakgebied worden gezien.","Servicemanagement :  ITSM Foundation; ITIL Foundation\nInformatietechnologie :  IT Foundation; A+ Essentials\nInformatiesystemen :  Informatiesystemen Foundation\nApplicatiemanagement :  Applicatiemanagement Foundation\nInformatiebeveiliging Information Security Foundation"]
["3.3.4 RELEASE MANAGEMENT","Release management richt zich op het managen van het plannen, bouwen en testen van gewijzigde en nieuwe onderdelen in de software voor een stabiele versie van informatiesystemen (ook wel release). Het gaat daarbij om ervoor te zorgen dat de integriteit van de live-omgeving wordt beschermd en dat de juiste componenten worden vrijgegeven. Niet alleen de afstemming van releases op de businesseisen (zoals invoerings- en beschikbaarheidsdata) is van belang, maar ook het bewaken dat releases zonder problemen voor de continuïteit en consistentie van de IV en de bedrijfsvoering plaatsvinden. Vooral in een Agile-omgeving, waarin in korte tijd nieuwe functionaliteit wordt gebouwd, is het belangrijk op tijdige en accurate integratie van releases te letten.","Servicemanagement :  ITSM Foundation; ITIL Foundation\nInformatietechnologie :  IT Foundation; A+ Essentials\nInformatiesystemen :  Informatiesystemen Foundation"]
["4.1.1 SECURITY MANAGEMENT","IV-securitymanagement (informatiebeveiliging) richt zich op technische maatregelen die ingezet worden voor bescherming/beveiliging van een organisatie en de daarbij behorende medewerkers, klanten/gasten, data, financiën, goederen, et cetera. Het omvat het ontwerpen, implementeren, onderhouden en evalueren van beveiligingsmaatregelen met betrekking tot de IV (hardware en software). Securitymanagement is verantwoordelijk voor de beveiliging van de informatievoorziening (IV). De focus ligt op het beveiligen van de IV wat betreft de vertrouwelijkheid, de integriteit en de beschikbaarheid van informatie.","Informatiemanagement :  Business Information Management Foundation"]
["4.1.2 INFORMATIERISICOMANAGEMENT","Informatierisicomanagement (risicobeheer) richt zich op het identificeren, analyseren en evalueren van de organisatierisico's. Met als doel om de risico's te beheersen die verbonden zijn aan de beschikbaarstelling en het gebruik van componenten van de informatievoorziening (IV). Denk aan netwerken, servers, informatiesystemen en/of applicaties. Meestal is de scope van de verantwoordelijkheden beperkt tot de IV, maar soms wordt dit vakgebied ook ingezet voor het identificeren en mitigeren van risico’s in programma’s of projecten. In veel gevallen levert informatierisicomanagement bijdragen aan het beleid en de richtlijnen voor risicomanagement. Daarnaast hoort ook het opstellen van concrete risicobeheersmaatregelen en/of de gewenste werking toetsen.","Informatiemanagement :  Business Information Management Foundation\nInformatiebeveiliging :  Information Security Foundation based on ISO/IEC 27002\nProject-/programmamanagement :  Prince2 Foundation; Managing Successfull Programs Practitioner\nOrganisatie-/Proces management :  IT Management Foundation; Professional Management and Improvement of IT Service Management processes"]
["4.1.3 CYBERSECURITY MANAGEMENT","Cybersecuritymanagement richt zich op de bescherming van de systemen. Het vakgebied houdt zich bezig met het proactief detecteren van kwetsbaarheden en dreigingen en het nemen van maatregelen om gevolgen van onbekende dreigingen te voorkomen en/of te mitigeren. Verder worden er analyses en forensisch onderzoek van eventueel besmette en gecompromitteerde systemen uitgevoerd. Met als doel om kwetsbaarheden op te sporen en bedreigingen van buitenaf (waaronder hackers) te voorkomen. Het is een relatief jong vakgebied dat volop in ontwikkeling is, waardoor ook het focusgebied met de tijd wat kan verschuiven.","Aanvullende kennis :  TCP/IP, UDP, DNS. DHCP, FTP, SNMP, SMTP, SSH, SSL, HTTP, HTTPS,19\nCertificaten :  gehaald bij SANS/GIA/ ISACA / CIBIT / NCOI\nTooling :  Nmap, Wireshark, Metasploit, Javascript, HTML, Python, HP ArcSight, Splunk"]
["4.2.1 CATEGORIEMANAGEMENT IV","Categoriemanagement IV richt zich op het bundelen en beheren van de IV-inkoop, op basis van logisch samenhangende diensten of producten. Categoriemanagement IV is betrokken bij het optimaal inkopen (inclusief uitvraag specificaties) en het optimaal benutten van contracten van producten of diensten. Daarbij wordt een visie ontwikkeld ten aanzien van de levenscyclus van de producten of diensten en de sourcingstrategie, waarbij ook Sourcing management (KWIV 1.3.1) wordt betrokken. Waar categoriemanagement IV zich richt op het beheer, visie en sourcing, richt Inkoop IV (KWIV 4.2.2) zich op productspecificaties ten aanzien van de inkoop IV. NB. In het KWIK (InkoopKolom) bestaat een profiel dat raakvlakken heeft met dit KWIV-profiel.","Programma-/projectmanagement : \n       Rijksacademie voor Project- en Programmamanagement;  Managing Successfull Programs Practitioner \n(Ontwikkelingen, producten en diensten) IT-markt, functioneren van IT marktpartijen én de spelregels :\n      (Post) HBO-modules, Rijksacademie Inkoop,Aanbesteding en IV"]
["4.2.2 INKOOP IV","Inkoop IV richt zich op het inkopen van IV-producten of -diensten voor de organisatie. Daarbij levert Inkoop IV input aan de inkoopleider aan ten aanzien van de software, hardwarevereisten en de licenties. Dit door het opstellen van de productvereisten waarbij de visie en beleid van de organisatie worden meegenomen (zoals innovatie, duurzaamheid en MVO). Inkoop IV werkt hierbij samen met de business over wat de vereisten zijn van het product of de dienst. Waar Inkoop IV zich richt op productspecificaties voor de inkoop IV, richt categoriemanagement IV (KWIV 4.2.1) zich op het beheer, visie en sourcing van deze inkoop. NB. In het KWIK (InkoopKolom) bestaat een profiel dat raakvlakken heeft met dit KWIV-profiel.","(Ontwikkelingen, producten en diensten) IT-markt, functioneren van IT marktpartijen én de spelregels:\n     (Post) HBO-modules, Rijksacademie Inkoop, Aanbesteding en IV\nJuridische deelgebieden, zoals auteurs- en octrooirecht en intellectueel eigendom\nProjectmanagement :  Prince2 Foundation"]
["4.2.3 RELATIEMANAGEMENT IV","Relatiemanagement IV richt zich op het opbouwen, verdiepen en verstevigen van interne en externe relaties. Hierbij hoort het opstellen van een IV-organisatiestrategie t.a.v. alle partijen die betrokken zijn over de informatievoorziening. Relatiemanagement IV is verantwoordelijk voor het afstemmen van de communicatie, de sturing, structurering en werkwijze van alle partijen. Met als doel om het producten- en dienstenaanbod beter aan te laten sluiten op de vraag en aanbod (interne en externe relaties). Relatiemanagement IV werkt nauw samen met contractmanagement IV (KWIV 4.2.4). NB. In het KWIK (InkoopKolom) bestaat een profiel dat raakvlakken heeft met dit KWIV-profiel.","Servicemanagement :  ITSM Foundation; ITIL Foundation20\nMarketing en accountmanagement van diensten :  Nima B\nInformatiemanagement/Functioneel beheer :  Business Information Management Foundation\nInformatiesystemen :  Informatiesystemen Foundation"]
["4.2.4 CONTRACT/LEVERANCIERSMANAGEMENT IV","Contractmanagement IV richt zich op het afsluiten van contracten en bewaken van de naleving van de in het contract gemaakte afspraken (bijv. KPI's) met leveranciers. De aandacht zit vooral op de juridische en financiële aspecten. Het vakgebied heeft een overzicht van de lopende contracten, eventuele (raam)overeenkomsten, signalering van looptijden, garantietermijnen en prijsherzieningen en het aantal en soorten gecontracteerde leveranciers bij de diverse \nafdelingen. Contractmanagement IV werkt nauw samen met relatiemanagement IV (KWIV 4.2.3). NB. In het KWIK (InkoopKolom) bestaat een profiel dat raakvlakken heeft met dit KWIV-profiel.","Contractmanagement :  Contractmanagement Foundation (CATS)\n(Ontwikkelingen, producten en diensten) IT-markt, functioneren van IT marktpartijen én de spelregels :  (Post) HBO-modules\nServicemanagement :  ITSM Foundation; ITIL Foundation"]
["4.3.1 INFORMATIEANALYSE","Informatieanalyse richt zich op welke informatiebehoeften er zijn binnen de organisatie en/of gebruikers. Informatieanalyse vertaalt technologische en maatschappelijke ontwikkelingen, onderzoek naar de kwaliteit van de IV-bedrijfsprocessen en realistische IV-mogelijkheden, naar verbetervoorstellen en consequenties voor de IV-bedrijfsvoering. Waarbij er een verdiepende analyse wordt uitgevoerd van de gekozen oplossing en de validatie van de requirements. Informatieanalyse is de eerste fase in de ontwikkeling van een informatie- of gegevenssysteem. Op basis van kwalitatieve requirements kan de analyse gericht worden uitgevoerd. ","Architectuur :  TOGAF practitioner\nBestuurlijke informatica :  Bachelor Bedrijfskundige Informatica\nInformatiebeveiliging :  Information Security Foundation based on ISO/IEC 27002\nOntwikkeling informatiesystemen :  Ontwikkeling Informatiesystemen Foundation, Object Oriëntatie Foundation\nApplicatiemanagement :  Applicatiemanagement Foundation\nServicemanagement :  ITSM Foundation; ITIL Foundation"]
["4.3.2 BUSINESS ANALYSE","Business analyse richt zich op de ondersteuning van de business op het gebied van inrichten en verbeteren van de bedrijfsprocessen. Business analyse analyseert (de behoeften aan) informatie en informatiesystemen, uitgaande van de eisen aan de bedrijfsprocessen en de workflow daarbinnen. Tevens worden voorstellen gedaan ter verbetering van de IV om daarmee bedrijfsprocessen optimaal te ondersteunen. Business analyse stelt de epics (overkoepelende gebruikerswensen) van het te ontwikkelen proces op. Het vakgebied verbindt de ondersteunende directies en/of afdelingen met de business-informatiebehoefte (bijvoorbeeld met HR, IT, communicatie, bedrijfsvoering). Business analyse werkt samen met enterprisearchitectuur (KWIV 1.1.6) op corporate-, dan wel domeinportfolioniveau.","Architectuur :  TOGAF practitioner\nBestuurlijke informatica :  Bachelor Bedrijfskundige Informatica21\nInformatiebeveiliging :  Information Security Foundation based on ISO/IEC 27002\nOntwikkeling informatiesystemen :  Ontwikkeling Informatiesystemen Foundation, \nApplicatiemanagement :  Applicatiemanagement Foundation\nServicemanagement :  ITSM Foundation; ITIL Foundation\nSAFE :  SAFE Agilist, SAFe Product Owner"]
["4.3.3 BUSINESS INTELLIGENCE/DATA ANALYSE","Data-analyse richt zich op het verzamelen van gegevens binnen de eigen organisatie. Met als doel om deze gegevens om te zetten in informatie, dat vervolgens leidt tot kennis en het aanzetten tot adequate actie (slimmer werken). Het vakgebied verzamelt gegevens uit verschillende systemen (logistieke volgsystemen, ERP, enz.), analyseert deze en vormt deze om tot bruikbare informatie voor onder meer het management (dashboard en parameters). Dit vakgebied kan zowel voor de business als voor de IV-afdeling worden ingezet. Waar Data-analyse zich richt op de voorkant van de organisatievraag (adviseren MT), richt Data Science (KWIV 4.3.4) zich op de achterkant van de vraag met veel grote datasets en specialistische data.","Architectuur :  TOGAF practitioner\nOntwikkeling informatiesystemen :  Ontwikkeling Informatiesystemen Foundation, Object Oriëntatie Foundation\nBestuurlijke informatica :  Bachelor Bedrijfskundige Informatica\nBI Tooling :  Python Fundamentals / Advanced"]
["4.3.4 DATA SCIENCE","Data Science richt zich op het verkrijgen van inzichten uit (big) data. Voor de analyse worden programmeervaardigheden, statistische kennis, en afdeling- en organisatiekennis gebruikt om verbanden te leggen en inzichten te destilleren. Hiervoor wordt gebruik gemaakt van grote datasets en specialistische data door geavanceerde BI (business intelligence)-tooling en gedefinieerde algoritmen. Daarmee kunnen onder meer patronen worden ontdekt, (beleids)beslissingen worden gevalideerd en voorspellingen worden gedaan over mogelijke gebeurtenissen, gebaseerd op de historische data. Waar Data Science zich richt op de achterkant van de vraag met veel grote datasets en specialistische data, richt de Business Intelligence (KWIV 4.3.3) zich op de voorkant van de organisatievraag (zoals adviseren MT).","Informatiemanagement :  Business Information Management Foundation\nData Management :  Data Management Body of Knowledge\nBI Tooling :  Python Fundamentals / Advanced"]
["4.4.1 INFORMATIECOACHING","Informatiecoaching richt zich op het duurzaam toegankelijk maken van informatie voor en met de huidige en toekomstige medewerkers. Hieronder valt de begeleiding (instrueren) en ondersteuning van medewerkers in het leerproces hoe zij hun informatie opslaan, toegankelijk maken en houden: digivaardigheden. Inzicht en kennis van zaken (processen, kaders, richtlijnen en mogelijkheden van systemen) is hierbij van belang. Informatiecoaching stelt informatieprofielen op (informatiebehoeften en zoekgedrag persona's) en onderhoudt deze. Verder richt het vakgebied zich op het analyseren van de informatiebehoefte van medewerkers en structurele verbeteringen voorstellen.","Informatiemanagement :  Business Information Management Foundation\nInformatiesystemen :  Informatiesystemen Foundation"]
["4.4.2 LEER- EN ONTWIKKELMANAGEMENT","Leer- en ontwikkelmanagement richt zich op de leer- en ontwikkelomgeving van alle (IV)-medewerkers binnen de organisatie. Gericht op het verbeteren of verdiepen van competenties, maar ook op de persoonlijke (carrière-)ontwikkeling. En het opstellen van een leerstrategie voor de organisatie. Naast het adviseren / begeleiden van teams (naar zelforganisatie en team excellence), ondersteunt het leer- en ontwikkelmanagement de Scrummasters (KWIV 5.2.1) en de Release train engineers (KWIV 5.2.2) in het wegnemen van belemmeringen. Agile- en Lean-principes worden hierbij in ogenschouw gehouden. Continu verbeteren en het overdragen van kennis is onderdeel van dit vakgebied. ","Dienend Leiderschap :  Leergang Coachend Leidinggeven of Agile, Leidinggeven of Dienend, Faciliterend en Coachend, Leiderschap in een Agile omgeving \nCoachen :  Opleiding Teamcoach – Individueel Coachen\nVerwachtingen Management :  Resultaatgericht Leidinggeven\nDevOps :  DevOps Fundamentals"]
["4.4.3 (AGILE) COACHING","Agile coaching richt zich op de ondersteuning van teams om Agile te werken. Op basis van Agile waarden en principes wordt het team ondersteund om zich naar een effectieve, transparante samenhangende teams door te ontwikkelen. De coaching vindt plaats op proces, rol en inhoud. Verandermanagement en kennis van organisatiecultuur zijn hierin ook relevant. Agile coaching past hierop de best passende coachingstechnieken en leer- en ontwikkelinterventies toe. Een (agile) coach heeft een bredere visie op het bedrijf en de medewerkers en heeft als doelstelling om het probleemoplossend vermogen van een individu en/of team te vergroten. ","Dienend Leiderschap : Leergang Coachend Leidinggeven of Agile, Leidinggeven of Dienend, Faciliterend en Coachend , Leiderschap in een Agile omgeving \nCoachen :  Opleiding Teamcoach\nVerwachtingen Management :  Resultaatgericht Leidinggeven\nDevOps :  DevOps Fundamentals"]
["4.5.1 PRODUCT OWNER","Product owner is als \"eigenaar\" van het te ontwikkelen product het eerste aanspreekpunt voor het ontwikkel- of beleidsteam naar de rest van de organisatie. De Product owner zorgt voor stakeholdermanagement, de productvisie, -planning en stelt prioriteiten en de functionaliteit van het product vast. Waarbij het doel is om de waarde van het (business) product te maximaliseren en te waarborgen. De precieze invulling van het vakgebied hangt af van het type organisatie waarin dit voorkomt. Waar Product Owner zich richt op de functionaliteit van het te ontwikkelen product, richt Product management (KWIV 4.5.2) zich op de gehele levenscyclus van een product binnen een organisatie.","Dienend Leiderschap : Leergang Coachend Leidinggeven of Agile, Leidinggeven of Dienend, Faciliterend en Coachend, Leiderschap in een Agile omgeving \nUser Stories :  Writing User Stories \nStakeholder Management :  Stakeholder Management Training \nVerwachtingen Management :  Resultaatgericht Leidinggeven \nDevOps :  DevOps Fundamentals \nEffectief Beïnvloeden :  Effectief Beïnvloeden"]
["4.5.2 PRODUCT MANAGER","Product management richt zich op het managen van de totale levenscyclus van een product, van het begin tot het einde. Product management richt zich op productcreatie en product lifecycle management. Dit door het opstellen van de strategie van de business als geheel (bijvoorbeeld een portfolioplan en productroadmap), het tactisch management van de levenscyclus per product-marktcombinatie (infaseren of het uitfaseren van het product) en operationeel management van de waardeketen. Waar Product management zich richt op de gehele levenscyclus van een product binnen een organisatie, richt Product Owner (KWIV 4.5.1) zich op de functionaliteit van het te ontwikkelen product. ","Dienend Leiderschap Leergang :  Coachend Leidinggeven of Agile, Leidinggeven of Dienend, Faciliterend en Coachend, Leiderschap in een Agile omgeving \nUser Stories :  Writing User Stories \nStakeholder Management :  Stakeholder Management Training \nVerwachtingen Management :  Resultaatgericht Leidinggeven \nDevOps :  DevOps Fundamentals \nEffectief Beïnvloeden :  Effectief Beïnvloeden"]
["4.5.3 BUSINESS OWNER (GEDELEGEERD)","Business owner richt zich bij de productontwikkeling op het oplijnen van de strategische thema's en vertegenwoordigt hierin de business. Draagt de verantwoordelijkheid voor de governance, doelgerichtheid en rendement van het product in de business; onder andere door het beschrijven van de processen. Eventuele belemmeringen worden weggenomen of verkleind. Verder is de Business Owner het eerste aanspreekpunt voor de business ten aanzien van de productontwikkeling. Waar de Business Owner de stakeholder is binnen het ontwikkelteam namens de business, richt de Product Owner (KWIV 4.5.1) zich op de functionaliteit van het te ontwikkelen product. ","Dienend Leiderschap :  Leergang Coachend Leidinggeven of Agile, Leidinggeven of Dienend, Faciliterend en Coachend, Leiderschap in een Agile omgeving \nStakeholder Management :  Stakeholder Management Training \nVerwachtingen Management :  Resultaatgericht Leidinggeven \nDevOps :  DevOps Fundamentals \nEffectief Beïnvloeden :  Effectief Beïnvloeden"]
["4.6.1 SERVICE DESIGN","Service Design richt zich op het praktisch en creatief toepassen van design-tools en -methodes met het doel om diensten te ontwikkelen of verbeteren. Waarbij enerzijds organisatorische doelen, processen en proposities, en anderzijds (latente) behoeften, wensen en eisen van doelgroepen in kaart worden gebracht. Opgedane inzichten worden ingezet om eindproducten of -diensten te definiëren op zo’n wijze dat deze zowel voor een organisatie als voor eindgebruikers toepasbaar zijn. Hoewel Service Design qua categorie onder UX Design valt, kan deze ook buiten UX Design worden ingezet. Waar Service Design zich richt op het creëren of optimaliseren van diensten, richt User Interface Design (KWIV 4.6.2) zich op het ontwikkelen van een product voor de gebruiker."]
["4.6.2 USER INTERFACE DESIGN","User Interface Design richt zich op het ontwerpen van de gebruikersomgeving. Waarbij dit vakgebied zich bezighoudt met het vormgeven van interacties tussen de mens en een systeem. Dit resulteert in aantrekkelijke, toegankelijke (digitale) interfaces die efficiënt, effectief en intuïtief samenwerken met eindgebruikers. De activiteiten binnen User Interface Design kunnen variëren van het definiëren van interacties, het ontwerpen van interfaces tot het ontwikkelen van content. Waar User Interface Design zich richt op het ontwikkelen van producten voor de gebruiker, richt Service Design (KWIV 4.6.1) zich op creëren of optimaliseren van diensten."]
["4.6.3 UX RESEARCH","UX Research richt zich op het begrijpen van gebruikers, zodat product design een zo goed mogelijke 'fit' kan maken. Door middel van het uitvoeren van kwalitatief en kwantitatief onderzoek inzichten in de behoeftes, motivaties en emoties van eindgebruikers over een product of dienst wordt dit begrip en inzicht verkregen. Hiernaast worden relevante doelgroepen en belanghebbenden geïdentificeerd en onderzocht om de toegankelijkheid en gebruiksvriendelijkheid van oplossingen te bepalen."]
["5.1.1 PROJECTLEIDERSCHAP IV","Projectleiderschap IV richt zich op het managen van (een deel van) een IV-project; doorgaans op operationeel/tactisch niveau. Hieronder valt het (laten) opstellen van projectplanning, organiseren van de uitvoering (inclusief budget), het aansturen van het team en het bewaken van de voortgang en projectrisico’s. Tevens is dit vakgebied verantwoordelijk voor de informatievoorziening rondom het project richting de opdrachtgever en het creëren van draagvlak bij alle interne- en externe partijen. Opdrachtgever kan zijn de business, Projectmanagement IV (KWIV 5.1.2) of Programmamanagement IV (KWIV 5.1.3). ","Organisatie-/Proces management :  IT Management Foundation; Professional, Management and Improvement of IT Service Management processes\nProgramma-/projectmanagement :  Rijksacademie voor Project- en Programmamanagement\nInformatiemanagement/Functioneel beheer :  Business Information Management Foundation\nServicemanagement :  ITSM Foundation; ITIL Foundation\nAgile Scrum :  Agile Scrum Foundation"]
["5.1.2 PROJECTMANAGEMENT IV","Projectmanagement IV richt zich op het beheersen van projecten binnen de organisatie, waarbij het doel is om alle projecten in een organisatie succesvol uit te voeren. Hierbij richt een project zich op de realisatie van één vooraf overeengekomen resultaat. Projectmanagement IV bepaalt de standaarden binnen de organisatie voor IV-projecten en coördineert deze, conform standaarden voor het plannen, organiseren, monitoren, beheersen van en rapporteren over IV-projecten. Tevens is projectmanagement IV verantwoordelijk voor het definiëren van projecten en de prioritering hiervan. Waar projectmanagement IV zich richt op het beheersen van projecten, richt programmamanagement IV (KWIV 5.1.3) zich op de beheersing van programma's (met complexe en meerdere doelen). ","Organisatie-/Proces management :   IT Management Foundation; Professional Management and Improvement of IT Service Management processes\nProgramma-/projectmanagement :  Rijksacademie voor Project- en Programmamanagement\nInformatiemanagement/Functioneel beheer :  Business Information Management Foundation\nServicemanagement :  ITSM Foundation; ITIL Foundation\nApplicatiemanagement :  Applicatiemanagement Foundation\nAgile Scrum :  Agile Scrum Foundation"]
["5.1.3 PROGRAMMAMANAGEMENT IV","Programmamanagement IV richt zich op het beheersen en succesvol uitvoeren van programma's binnen de organisatie. Hierbij richt een programma zich richt op het nastreven van meerdere, soms onderling zelfs strijdige doelen in doorgaans minimaal vijf IV-projecten. Programmamanagement IV bepaalt de standaarden binnen de organisatie voor IV-programma's en coördineert deze. De standaarden betreffen het plannen, organiseren, monitoren, beheersen van en rapporteren over IV-programma's. Tevens is programmamanagement IV verantwoordelijk voor het definiëren van programma's en de prioritering hiervan. Waar programmamanagement IV zich richt op het beheersen van programma's (met complexe en meerdere doelen), richt projectmanagement IV (KWIV 5.1.2) zich op de beheersing van projecten. ","Organisatie-/Proces management :  IT Management Foundation; Professional, Management and Improvement of IT Service Management processes\nProgramma-/projectmanagement :  Rijksacademie voor Project- en Programmamanagement; Managing Successful Programs Practitioner\nInformatiemanagement/Functioneel beheer :  Business Information Management Foundation\nServicemanagement :  ITSM Foundation; ITIL Foundation\nApplicatiemanagement :  Applicatiemanagement Foundation\nScaled Agile Framework :  SAFe (Scaled Agile Framework), RTE (Rail Train Engineer)"]
["5.1.4 PORTFOLIOMANAGEMENT IV","Portfoliomanagement IV richt zich op het beheren en afstemmen van middelen (programma's, projecten, producten en diensten) binnen de (IV-)organisatie. Een portfolio-overzicht bestaat uit een serie van bij elkaar horende middelen met een eigen levenscyclus en de bijbehorende resources, budgetten en processen. Door middel van monitoring wordt er inzicht gegeven in de huidige en toekomstige inzet van deze middelen. Hiervoor stelt Portfoliomanagement IV adviezen op. Centralisatie van resources, budgetten en processen zijn hierin belangrijk. Het verschil met programmamanagement IV (5.1.3) is dat die over het managen van een combinatie van projecten gaat, waar portfoliomanagement IV zich vooral focust op het proces van afwegen, selecteren en prioriteren van projecten en programma’s.","Informatiesystemen :  Informatiesystemen Foundation\nInformatiemanagement :  Business Information Management Foundation\nProgrammanagement :  Managing Succesful Programs Foundation\nIT Management :  IT Management Foundation\nP30 :  Foundation Certificate in Portfolio, Programma and Project Offices"]
["5.2.1 SCRUM MASTER","Scrum mastership richt zich op het begrip en het op de correcte wijze uitvoeren van de scrum-aanpak (theorie, praktijk en regels). Het vakgebied ondersteunt het scrumteam en de Product Owner (KWIV 4.5.1) door middel van coaching en facilitering en is het eerste aanspreekpunt. Scrum master is dienend aan het scrumteam en beperkt eventuele belemmeringen, gericht op maximale waarde voor het scrumteam. De scrumaanpak volgens het Agile scrum-framework (rollen, artefacten en events) wordt hierin gevolgd. ","Dienend Leiderschap :  Leergang Coachend Leidinggeven of Agile Leidinggeven of Dienend, Faciliterend en Coachend Leiderschap in een Agile omgeving \nCoachen :  Opleiding Teamcoach\nVerwachtingen Management :  Resultaatgericht Leidinggeven\nDevOps :  DevOps Fundamentals"]
["5.2.2 RELEASE TRAIN ENGINEER","Release train engineering (RTE) richt zich op de ondersteuning van het totaal aan teams op meerdere niveaus (ondersteunende teams, voorbereidende teams, uitvoerende teams, afrondende teams). RTE in het Scaled Agile Framework (SAFe) is verantwoordelijk voor het geheel van de scrumteams; de ‘Agile Release Train’ (ART). De ondersteuning vindt in samenwerking plaats met de andere ondersteunende agile-vakgebieden, zoals Product management (KWIV 4.5.2) en scrum master (KWIV 5.2.1). RTE is verantwoordelijk voor het onderhouden van de ART en faciliteert alle evenementen (zoals tweedaagse planning, de systeemreview).","Dienend Leiderschap :  Leergang Coachend Leidinggeven of Agile Leidinggeven of Dienend, Faciliterend en Coachend Leiderschap in een Agile omgeving \nCoachen :  Opleiding Teamcoach \nVerwachtingen Management :  Resultaatgericht Leidinggeven \nDevOps :  DevOps Fundamentals"]
["5.3.1 INFORMATIEMANAGEMENT","Informatiemanagement richt zich op het managen van het verzamelen, opslaan en beheren van gegevens en andere soorten van informatie binnen een organisatie. Deze informatiebehoefte ontstaat vanuit verschillende bedrijfsprocessen en wordt vertaald in informatievoorziening (IV). Het vakgebied professionaliseert de vraagzijde en is daarvoor op strategisch of tactisch niveau verantwoordelijk. Het zorgt voor de IV-strategie en werkt samen met Informatiebeleid (KWIV 1.2.1) voor het meerjarig informatieplan, gericht op het verbeteren van de IV en conform het organisatiebeleid. Hierin neemt Informatiemanagement de samenhang tussen missie, de bedrijfsdoelstellingen en de (toekomstig) benodigde IV voor Informatiemanagement mee. ","Informatiemanagement :  Business Information Management Foundation\nServicemanagement :  ITSM Foundation; ITIL Foundation\nApplicatiemanagement :  Applicatiemanagement Foundation\nProjectmanagement :  Projectmanagement Foundation; PRINCE2 Foundation\nProgrammamanagement :  Managing Successful Programs Foundation\nInformatiebeveiliging :  Information Security Foundation based on ISO/IEC 27002\nIT Management :  IT Management Foundation"]
["5.3.2 DATA/GEGEVENSMANAGEMENT","Datamanagement richt zich op het managen van de technische infrastructuur voor de data / gegevens in een organisatie. Met als doel om de data optimaal te beheren en te gebruiken. Daarbij wordt beleid ontwikkeld ten aanzien van de kwaliteit, compliance-eisen, het gebruik en de opslag van deze data / gegevens. Het zorgt ook voor een corporate datamodel, met daarin onder meer de voor de organisatie relevante gegevensdefinities en technische informatie in bijvoorbeeld databases, applicaties en/of systemen. Waar datamanagement zich richt op het managen van de technische infrastructuur van de data, richt recordmanagement (KWIV 5.3.3) zich op het managen het beheer van de records. ","Databases :  Databases en QSL Foundation\nOntwikkeling van informatiesystemen :  Ontwerp en Ontwikkeling Informatiesystemen Foundation\nInformatietechnologie :  IT Foundation; A+ Essentials\nInformatiesystemen :  Informatiesystemen Foundation\nApplicatiemanagement :  Applicatiemanagement Foundation\nInformatiebeveiliging :  Information Security Foundation"]
["5.3.3 RECORDMANAGEMENT","Recordmanagement richt zich op het managen van het beheer van de records (een record is informatie die gemaakt, ontvangen en onderhouden wordt) in een organisatie. Met als doel om efficiënte en systematische controle van de records mogelijk te maken. Het vakgebied is ook vanuit kwaliteitszorg in bedrijfsinformatie- en archiveringsprocessen een fundamenteel onderdeel. Hierin neemt recordmanagement de samenhang tussen missie, de bedrijfsdoelstellingen en de (toekomstig) benodigde IV voor recordmanagement mee. Waar recordmanagement zich richt op het managen van het beheer van de records, richt datamanagement (KWIV 5.3.2) zich op het managen van de technische infrastructuur van de data. ","Databases :  Databases en QSL Foundation\nInformatietechnologie :  IT Foundation; A+ Essentials"]
["5.3.4 METADATA/GEGEVENSMANAGEMENT","Metadatamanagement richt zich op het managen van het organiseren en beheren van de data die andere data beschrijft. Ook wel data over data genoemd. Metadatamanagement borgt de eenheid in definitie en gebruik van sets van (niet) verplichte metagegevens. En biedt hiermee het fundament voor het duurzaam beheer, de (inter)departementale uitwisseling en het actief openbaar maken van overheidsinformatie. De visie over metadatamanagement sluit aan bij de doelstellingen van de organisatie en geeft inzicht in de toegevoegde waarde van metadata. Dit geheel conform wet- en regelgeving en de door de organisatie gestelde eisen op het gebied van onder andere (duurzame) toegankelijkheid, vertrouwelijkheid en privacybescherming.","Databases :  Databases en QSL Foundation\nOntwikkeling van informatiesystemen :  Ontwerp en Ontwikkeling Informatiesystemen Foundation\nInformatietechnologie :  IT Foundation; A+ Essentials\nInformatiesystemen :  Informatiesystemen Foundation\nApplicatiemanagement :  Applicatiemanagement Foundation\nInformatiebeveiliging :  Information Security Foundation"]
["5.3.5 KWALITEITSMANAGEMENT IV","Kwaliteitsmanagement IV richt zich op het managen van de optimalisatie van de kwaliteit van IV-processen, -producten en -services. Dit vakgebied kan ingezet worden binnen een (onderdeel van een) organisatie of een groot programma, maar komt ook voor in alle delen van het management van een organisatie. Kwaliteitsmanagement IV is gericht op een optimale beschikbaarheid en kwaliteit van de duurzaam toegankelijke informatiehuishouding, vanuit een ‘end-to-end’-benadering. Met als intentie om de doelen en normen te bereiken, via het handhaven van de vooropgestelde principes voor betrouwbaarheid en integriteit en methoden verder te verbeteren.","Organisatie-/Proces management :  IT Management Foundation; Professional Management and Improvement of IT Service Management processes\nProgramma-/projectmanagement :  Rijksacademie voor Project- en Programmamanagement\nInformatiemanagement/Functioneel beheer :  Business Information Management Foundation\nServicemanagement :  ITSM Foundation; ITIL Foundation\nApplicatiemanagement :  Applicatiemanagement Foundation\nAgile Scrum :  Agile Scrum Foundation"]
["5.4.1 IT-CONTROL","IT-control, beter gezegd: IV-control, richt zich op de controle van het informatiebeveiligingsbeleid of IT Risk Management. Het betreft de controle op de algemene beheersmaatregelen (zoals beleidslijnen en procedures) rond de IV-omgeving, die ervoor moeten zorgen dat beheersmaatregelen met een IV-component continu betrouwbaar werken. IV-control is verantwoordelijk voor het toetsen van de kwaliteit, de integratie en de kosten van de IV (inclusief projecten) aan die van de organisatie. Gericht om het risico te verkleinen en rapportages over de bevindingen op te stellen. Hiervoor wordt vaak een framework voor IV-control opgesteld.","Informatiesystemen :  Informatiesystemen Foundation\nInformatiemanagement :  Business Information Management Foundation\nInformatietechnologie :  IT Foundation; A+ Essentials28\nDatabasebases :  Databases en QSL Foundation\nApplicatiemanagement :  Applicatiemanagement Foundation\nArchitectuur :  TOGAF Practitioner\nInformatiebeveiliging :  Information Security Foundation based on ISO/IEC 27002\nServicemanagement :  ITSM Foundation; ITIL Foundation"]

{"sheet":"Info VOG Items","index":5,"n_rows":43,"n_cols":2,"rows_kept":43,"cut":false,"hidden":false,"merged":[]}
[null,"VOG Overzicht Items"]
[]
[null,"Specifiek screeningsprofiel"]
["01","Politieke ambtsdragers"]
["06","Visum en emigratie"]
["25","(Buitengewoon) opsporingsambtenaar"]
[40,"Vakantiegezinnen en adoptie"]
["45","Gezondheidszorg en welzijn van mens en dier"]
["50","Exploitatievergunning; Dit screeningsprofiel is van toepassing bij het aanvragen van een exploitatievergunning voor een horecabedrijf bij de gemeente"]
["55","Juridische dienstverlening"]
["60","Onderwijs Dit screeningsprofiel is van toepassing op al het personeel dat werkzaam is bij een educatieve instelling"]
["65","Taxibranche; chauffeurskaart Dit screeningsprofiel kan alleen worden gebruikt als Kiwa Register B.V. de organisatie is die de VOG verlangt"]
["70","Taxibranche; ondernemersvergunning Dit screeningsprofiel kan alleen worden gebruikt als Kiwa Register B.V. de organisatie is die de VOG verlangt"]
["75","(Gezins)voogd bij voogdijinstellingen, reclasseringswerker, raadsonderzoeker en maatschappelijk werker"]
["80","Beëdigd tolken/vertalers Dit screeningsprofiel kan alleen worden gebruikt als de Raad voor Rechtsbijstand de organisatie is die de VOG verlangt"]
["85","Lidmaatschap schietvereniging"]
["95","Financiële dienstverlening"]
[null,"Algemeen screeningsprofiel"]
["11","Bevoegdheid hebben tot het raadplegen en/of bewerken van systemen"]
["12","Met gevoelige/vertrouwelijke informatie omgaan"]
["13","Kennis dragen van veiligheidssystemen, controlemechanismen en verificatieprocessen"]
[null,"Geld"]
["21","Met contante en/of girale gelden en/of (digitale) waardepapieren omgaan"]
["22","Budgetbevoegdheid hebben"]
[null,"Goederen"]
["36","Het bewaken van productieprocessen"]
["37","Het beschikken over goederen"]
["38","Het voorhanden hebben van stoffen, objecten en voorwerpen e.d., die bij oneigenlijk of onjuist gebruik een risico vormen voor mens (en dier)"]
[null,"Diensten"]
["41","Het verlenen van diensten (advies, beveiliging, schoonmaak, catering, onderhoud, etc)"]
["43","Het verlenen van diensten in de persoonlijke leefomgeving"]
[null,"Zakelijke transacties"]
["53","Beslissen over offertes (het voeren van onderhandelingen en het afsluiten van contracten) en het doen van aanbestedingen"]
[null,"Proces"]
["61","Het onderhouden/ombouwen/bedienen van (productie)machines en/of apparaten, voertuigen en/of luchtvaartuigen"]
["62","(Rijdend) vervoer waarbij goederen, producten, post en pakketten worden getransporteerd en/of bezorgd, anders dan het intern transport binnen een bedrijf"]
["63","(Rijdend) vervoer waarbij personen worden vervoerd"]
[null,"Aansturen organisatie"]
["71","Personen die vanuit hun functie mensen en/of een organisatie (of een deel daarvan) aansturen"]
[null,"Personen"]
["84","Belast zijn met de zorg voor minderjarigen"]
["85","Belast zijn met de zorg voor (hulpbehoevende) personen, zoals ouderen en gehandicapten"]
["86","Kinderopvang (alleen aanvinken in combinatie met andere functieaspecten)"]

{"sheet":"Rapportage Info","index":6,"n_rows":12,"n_cols":16,"rows_kept":12,"cut":false,"hidden":true,"merged":[[0,0,0,2],[2,0,2,3],[3,0,3,3],[3,4,3,5]]}
["Rapportagegegevens Inhuur Aanvraag ICT",null,null,"Referentienummer",{"$f":"'Aanvraag inhuur'!D1","v":0}]
[]
["U kunt de ingevulde rubrieken overnemen (Kopiëren/Plakken) op uw rapportagewerkblad"]
["Voor vragen kunt u contact opnemen met de contractmanager bereikbaar via :",null,null,null,{"$f":"'Brongegevens dienst'!B20","v":"iuc-inhuur@iuc-noord.nl"}]
[]
["INFORMATIE VOOR RAPPORTAGE OPDRACHTNEMERS"]
[]
["Datum aanvraag\n\n(Conform opgave Deelnemer)","Referentienummer AANVRAAG van Deelnemer","Departement","Deelnemer","Directie/onderdeel binnen de Deelnemer","Functienaam (roepnaam)","Functie schaal","Functiegroep\n\n(Functie Gebouw Rijk)","Dominante kwaliteitenprofiel conform  Kwaliteitsraamwerk I(v)","Maximum tarief gesteld door Deelnemer","Doelgroep\nsocial return\ngevraagd (N.V.T.)\n","Soort Aanvraag","Startdatum initiële inhuurtermijn","Einddatum initiële inhuurtermijn","Aantal uren initiële termijn","Ongewijzigde herhalings- aanvraag (Ja/Nee)"]
[{"$f":"'Aanvraag inhuur'!C34","v":"2024-04-08T09:50:05.060"},{"$f":"'Aanvraag inhuur'!D1","v":0},{"$f":"'Aanvraag inhuur'!B17","v":"Ministerie van Justitie & Veiligheid"},{"$f":"'Aanvraag inhuur'!B18","v":"CJIB"},{"$f":"'Aanvraag inhuur'!B19","v":0},{"$f":"'Aanvraag inhuur'!B69","v":0},{"$f":"'Aanvraag inhuur'!B67","v":0},{"$f":"'Aanvraag inhuur'!B53","v":""},{"$f":"'Aanvraag inhuur'!D51","v":0},{"$f":"IF(AND('Aanvraag inhuur'!B6>0,'Aanvraag inhuur'!B6<226),\"Ja\",\"Nee\")","v":"Nee"},"Indifferent",{"$f":"'Aanvraag inhuur'!B5","v":"Regulier"},{"$f":"'Aanvraag inhuur'!C128","v":"00:00:00"},{"$f":"'Aanvraag inhuur'!C129","v":"00:00:00"},{"$f":"'Aanvraag inhuur'!C137","v":0},{"$f":"'Aanvraag inhuur'!B3","v":0}]
[]
[null,null,"Naam budgethouder bij Deelnemer","Email-adres budgethouder bij deelnemer",null,"Aantal uur initiële inhuurtermijn"]
[null,null,{"$f":"'Aanvraag inhuur'!B21","v":0},{"$f":"'Aanvraag inhuur'!D13","v":"iuc-inhuur@iuc-noord.nl"},null,{"$f":"'Aanvraag inhuur'!C137","v":0}]

{"sheet":"Brongegevens dienst","index":7,"n_rows":42,"n_cols":24,"rows_kept":42,"cut":false,"hidden":true,"merged":[[22,0,34,1],[0,17,0,23],[10,0,10,1],[0,0,0,1],[0,2,0,4],[0,7,0,16],[1,0,1,1],[9,0,9,1],[1,18,1,22]]}
["Aanvraagopties",null,"ORGANISATIE",null,null,null,null,"FEESTDAGEN",null,null,null,null,null,null,null,null,null,"LEVERANCIERSINFORMATIE"]
["Bij meerdere geschikte kandidaten behoudt CJIB zich het recht voor om meerdere gunningen te doen.",null,"Departement","Deelnemer","Directie/Bedrijfsonderdeel\n(sorteer A-Z)","Emailadres Inhuurdesk","Pad","Jaar","1e Paasdag","2e Paasdag","Hemelvaartsdag","Koningsdag","1e Pinksterdag","2e Pinksterdag","1e Kerstdag","2e Kertsdag","Nieuwjaar","Naam (sorteren!)","Worden niet gebruikt door dienst. \nWel laten staan.",null,null,null,null,"Email-adres"]
[null,null,"Ministerie van Justitie & Veiligheid","CJIB","Bedrijfsvoering","iuc-inhuur@iuc-noord.nl","K:\\5 Inkooptrajecten\\5.7 Inhuur\\ICT\\CJIB\\",2016,{"$f":"FIXED((\"4/\"&H3)/7+MOD(MOD(H3,19)*19-7,30)*14%,0)*7-6","v":42456},{"$f":"I3+1","v":42457},{"$f":"I3+39","v":42495},42487,{"$f":"I3+49","v":42505},{"$f":"I3+50","v":42506},{"$f":"DATE(H3,12,25)","v":42729},{"$f":"DATE(H3,12,26)","v":42730},{"$f":"DATE(H3,1,1)","v":42370},"Cegeka"]
[null,null,null,null,"CTO Office",null,null,2017,{"$f":"FIXED((\"4/\"&H4)/7+MOD(MOD(H4,19)*19-7,30)*14%,0)*7-6","v":42841},{"$f":"I4+1","v":42842},{"$f":"I4+39","v":42880},42852,{"$f":"I4+49","v":42890},{"$f":"I4+50","v":42891},{"$f":"DATE(H4,12,25)","v":43094},{"$f":"DATE(H4,12,26)","v":43095},{"$f":"DATE(H4,1,1)","v":42736},"Cimsolutions"]
["Lijst 1","Lijst 2",null,null,"Dienstverlening & Incasso",null,null,2018,43191,43192,43230,43217,43240,43241,43459,43460,43101,"Circle8"]
["Ja","Ja",null,null,"Executie",null,null,2019,43576,43577,43615,null,43625,43626,43824,43825,43466,"Get There"]
["Nee","Nee",null,null,"IT & Data algemeen",null,null,2020,43933,43934,43972,43948,43982,43983,44190,44191,43831,"Linkit"]
[null,"Indifferent",null,null,"IT Data en innovatie",null,null,2021,44290,44291,44329,44313,44339,44340,44555,44556,44197,"Need Staffing"]
["Stamlocatie ICT Inhuur Documenten",null,null,null,"IT Voortbrenging",null,null,2022,44668,44669,44707,44678,44717,44718,44920,44921,44562,"Quest4"]
["K:\\5 Inkooptrajecten\\5.7 Inhuur\\ICT\\CJIB\\",null,null,null,"IT Voorzieningen",null,null,2023,45025,45026,45064,45043,45074,45075,45285,45286,44927]
[null,null,null,null,"Strategie & Beleid",null,null,2024,45382,45383,45421,null,45431,45432,45651,45652,45292]
["Versienummer formulier","5.6",null,null,"Strategisch programma management",null,null,2025,45767,45768,45806,null,45816,45817,46016,46017,45658]
["Status Aanvraag","Status Kandidaat",null,null,null,null,null,2026,46117,46118,46156,46139,46166,46167,46381,46382,46023]
["Open","Open",null,null,null,null,null,2027,46474,46475,46513,46504,46523,46524,46746,46747,46388]
["In beoordeling","Beoordelen",null,null,null,null,null,2028,46859,46860,46898,46870,46908,46909,47112,47113,46753]
["Gunnen","Gesprek",null,null,null,null,null,2029,47209,47210,47248,47235,47258,47259,47477,47478,47119]
["Geen gunning","Afgewezen",null,null,null,null,null,2030,47594,47595,{"$f":"I17+39","v":47633},null,{"$f":"I17+49","v":47643},{"$f":"I17+50","v":47644},{"$f":"DATE(H17,12,25)","v":47842},{"$f":"DATE(H17,12,26)","v":47843},{"$f":"DATE(H17,1,1)","v":47484}]
[null,null,null,null,null,null,null,2031,47951,47952,{"$f":"I18+39","v":47990},11440,{"$f":"I18+49","v":48000},{"$f":"I18+50","v":48001},{"$f":"DATE(H18,12,25)","v":48207},{"$f":"DATE(H18,12,26)","v":48208},{"$f":"DATE(H18,1,1)","v":47849}]
["Contractmanager",null,null,null,null,null,null,2032,48301,48302,48340,11806,48350,48351,48573,48574,48214]
["Emailadres","iuc-inhuur@iuc-noord.nl",null,null,null,null,null,2033,48686,48687,48725,12171,48735,48736,48938,48939,48580]
["Telefoonnummer",null,null,null,null,null,null,2034,49043,49044,49082,12536,49092,49093,49303,49304,48945]
["Standaard tekst dienst",null,null,null,null,null,null,2035,49393,49394,49432,null,49442,49443,49668,49669,49310]
["Het CJIB is een relatief jonge en ambitieuze uitvoeringsorganisatie van het Ministerie van Justitie en Veiligheid en is gevestigd te Leeuwarden. \nRuim 1900 gedreven medewerkers zorgen ervoor dat de taken op een juiste wijze, ondersteund door adequate en slimme ICT, binnen het gestelde kader worden uitgevoerd. De ICT-organisatie heeft een interne schil medewerkers met de mogelijkheid om flexibel personeel bij te schakelen. Er wordt gewerkt met DevOps-teams die hoogwaardige (ICT) producten ontwikkelen en beheren.",null,null,null,null,null,null,2036,49778,49779,49817,13267,49827,49828,50034,50035,49675]
[null,null,null,null,null,null,null,2037,50135,50136,50174,13632,50184,50185,50399,50400,50041]
[null,null,null,null,null,null,null,2038,50520,50521,50559,13997,50569,50570,50764,50765,50406]
[null,null,null,null,null,null,null,2039,50870,50871,50909,14362,50919,50920,51129,51130,50771]
[]
[]
[]
[]
[]
[]
[]
[]
[]
["Soort","Soort minicompetitie"]
["Regulier","Met leiding en toezicht"]
["Proactief","Zonder leiding en toezicht"]
["Strippenkaart"]
["Cluster"]
["Vrijblijvend"]
["Verambtelijking"]